NUMERO_MANDATO;RIGA_MANDATO;QUIET;IMPORTO_RIGA;IMPORTO_MANDATO;BENEFICIARIO;CIG;TITOLO_PAGAMENTO;DATA_MANDATO;CAPITOLO;ARTICOLO;NUMERO_IMPEGNO;TITOLO;DESCR_TITOLO;LIVELLO_II;DESCR_LIVELLO_II;LIVELLO_III;DESCR_LIVELLO_III;LIVELLO_IV;DESCR_LIVELLO_IV;LIVELLO_V;DESCR_LIVELLO_V;DATA_PAG_EFF;
931;1;0;"24,72";"1.906,50";MC LINK SPA;ZEE229F76B;Fatt.n. 610001419 del 14/06/2018 FATTURA DI VENDITA SERVIZI;02-07-2018;118;3;48;1;Spese correnti;3;Acquisto di beni e servizi;2;Acquisto di servizi;5;Utenze e canoni;1;Telefonia fissa;02-07-2018;
931;2;0;"48,80";"1.906,50";MC LINK SPA;ZEE229F76B;Fatt.n. 610001555 del 18/06/2018 FATTURA DI VENDITA SERVIZI;02-07-2018;118;3;48;1;Spese correnti;3;Acquisto di beni e servizi;2;Acquisto di servizi;5;Utenze e canoni;1;Telefonia fissa;02-07-2018;
931;3;0;"154,26";"1.906,50";MC LINK SPA;ZEE229F76B;Fatt.n. 610001560 del 18/06/2018 FATTURA DI VENDITA SERVIZI;02-07-2018;118;3;48;1;Spese correnti;3;Acquisto di beni e servizi;2;Acquisto di servizi;5;Utenze e canoni;1;Telefonia fissa;02-07-2018;
931;4;0;"156,16";"1.906,50";MC LINK SPA;ZEE229F76B;Fatt.n. 610001559 del 18/06/2018 FATTURA DI VENDITA SERVIZI;02-07-2018;118;3;48;1;Spese correnti;3;Acquisto di beni e servizi;2;Acquisto di servizi;5;Utenze e canoni;1;Telefonia fissa;02-07-2018;
931;5;0;"204,96";"1.906,50";MC LINK SPA;ZEE229F76B;Fatt.n. 610001558 del 18/06/2018 FATTURA DI VENDITA SERVIZI;02-07-2018;118;3;48;1;Spese correnti;3;Acquisto di beni e servizi;2;Acquisto di servizi;5;Utenze e canoni;1;Telefonia fissa;02-07-2018;
931;6;0;"536,80";"1.906,50";MC LINK SPA;ZEE229F76B;Fatt.n. 610001556 del 18/06/2018 FATTURA DI VENDITA SERVIZI;02-07-2018;118;3;48;1;Spese correnti;3;Acquisto di beni e servizi;2;Acquisto di servizi;5;Utenze e canoni;1;Telefonia fissa;02-07-2018;
931;7;0;"780,80";"1.906,50";MC LINK SPA;ZEE229F76B;Fatt.n. 610001557 del 18/06/2018 FATTURA DI VENDITA SERVIZI;02-07-2018;118;3;48;1;Spese correnti;3;Acquisto di beni e servizi;2;Acquisto di servizi;5;Utenze e canoni;1;Telefonia fissa;02-07-2018;
932;1;0;"1.600,00";"1.600,00";COMITATO CARNEVALE TULESE;ZEE229F76B;"Programma di assegnazione contributi alle Associazioni locali e Comitati per l'organizzazione delle manifestazioni di carattere sociale, culturale, religioso e sportivo - Anno 2018. Impegno di spesa";02-07-2018;760;0;168;1;Spese correnti;4;Trasferimenti correnti;4;Trasferimenti correnti a Istituzioni Sociali Private;1;Trasferimenti correnti a Istituzioni Sociali Private;1;Trasferimenti correnti a Istituzioni Sociali Private;02-07-2018;
934;1;0;"300,00";"300,00";OMESSO NOMINATIVO NEL RISPETTO DELLA NORMATIVA SULLA PROTEZIONE DATI PERSONALI; ;IMPEGNO DI SPESA PER CONTRIBUTO A FAVORE DI CITTADINI SOFFERENTI MENTALI INSERITI IN STRUTTURE RESIDENZIALI ANNUALITA' 2018.;03-07-2018;1412;0;3;1;Spese correnti;3;Acquisto di beni e servizi;2;Acquisto di servizi;15;Contratti di servizio pubblico;8;Contratti di servizio di assistenza sociale residenziale e semiresidenziale;03-07-2018;
935;1;0;"236,72";"236,72";OMESSO NOMINATIVO NEL RISPETTO DELLA NORMATIVA SULLA PROTEZIONE DATI PERSONALI; ;IMPEGNO DI SPESA PER PIANI PERSONALIZZATI IN SOSTEGNO DELLE PERSONE CON DISABILITA' GRAVE DI CUI ALLA L.162/1998 -DGR 55/12 DEL 31.12.2017.;03-07-2018;1420;2;142;1;Spese correnti;4;Trasferimenti correnti;2;Trasferimenti correnti a Famiglie;2;Interventi assistenziali;999;Altri assegni e sussidi assistenziali;03-07-2018;
936;1;0;"317,39";"317,39";OMESSO NOMINATIVO NEL RISPETTO DELLA NORMATIVA SULLA PROTEZIONE DATI PERSONALI; ;IMPEGNO DI SPESA PER PIANI PERSONALIZZATI IN SOSTEGNO DELLE PERSONE CON DISABILITA' GRAVE DI CUI ALLA L.162/1998 -DGR 55/12 DEL 31.12.2017.;03-07-2018;1420;2;142;1;Spese correnti;4;Trasferimenti correnti;2;Trasferimenti correnti a Famiglie;2;Interventi assistenziali;999;Altri assegni e sussidi assistenziali;03-07-2018;
937;1;0;"708,23";"708,23";OMESSO NOMINATIVO NEL RISPETTO DELLA NORMATIVA SULLA PROTEZIONE DATI PERSONALI; ;IMPEGNO DI SPESA PER PIANI PERSONALIZZATI IN SOSTEGNO DELLE PERSONE CON DISABILITA' GRAVE DI CUI ALLA L.162/1998 -DGR 55/12 DEL 31.12.2017.;03-07-2018;1420;2;142;1;Spese correnti;4;Trasferimenti correnti;2;Trasferimenti correnti a Famiglie;2;Interventi assistenziali;999;Altri assegni e sussidi assistenziali;03-07-2018;
938;1;0;"1.098,74";"1.098,74";OMESSO NOMINATIVO NEL RISPETTO DELLA NORMATIVA SULLA PROTEZIONE DATI PERSONALI; ;IMPEGNO DI SPESA PER PIANI PERSONALIZZATI IN SOSTEGNO DELLE PERSONE CON DISABILITA' GRAVE DI CUI ALLA L.162/1998 -DGR 55/12 DEL 31.12.2017.;03-07-2018;1420;2;142;1;Spese correnti;4;Trasferimenti correnti;2;Trasferimenti correnti a Famiglie;2;Interventi assistenziali;999;Altri assegni e sussidi assistenziali;03-07-2018;
939;1;0;"100,80";"100,80";OMESSO NOMINATIVO NEL RISPETTO DELLA NORMATIVA SULLA PROTEZIONE DATI PERSONALI; ;IMPEGNO DI SPESA PER PIANI PERSONALIZZATI IN SOSTEGNO DELLE PERSONE CON DISABILITA' GRAVE DI CUI ALLA L.162/1998 -DGR 55/12 DEL 31.12.2017.;03-07-2018;1420;2;142;1;Spese correnti;4;Trasferimenti correnti;2;Trasferimenti correnti a Famiglie;2;Interventi assistenziali;999;Altri assegni e sussidi assistenziali;03-07-2018;
940;1;0;"154,41";"154,41";OMESSO NOMINATIVO NEL RISPETTO DELLA NORMATIVA SULLA PROTEZIONE DATI PERSONALI; ;IMPEGNO DI SPESA PER PIANI PERSONALIZZATI IN SOSTEGNO DELLE PERSONE CON DISABILITA' GRAVE DI CUI ALLA L.162/1998 -DGR 55/12 DEL 31.12.2017.;03-07-2018;1420;2;142;1;Spese correnti;4;Trasferimenti correnti;2;Trasferimenti correnti a Famiglie;2;Interventi assistenziali;999;Altri assegni e sussidi assistenziali;03-07-2018;
941;1;0;"307,18";"307,18";OMESSO NOMINATIVO NEL RISPETTO DELLA NORMATIVA SULLA PROTEZIONE DATI PERSONALI; ;IMPEGNO DI SPESA PER PIANI PERSONALIZZATI IN SOSTEGNO DELLE PERSONE CON DISABILITA' GRAVE DI CUI ALLA L.162/1998 -DGR 55/12 DEL 31.12.2017.;03-07-2018;1420;2;142;1;Spese correnti;4;Trasferimenti correnti;2;Trasferimenti correnti a Famiglie;2;Interventi assistenziali;999;Altri assegni e sussidi assistenziali;03-07-2018;
942;1;0;"615,63";"615,63";OMESSO NOMINATIVO NEL RISPETTO DELLA NORMATIVA SULLA PROTEZIONE DATI PERSONALI; ;IMPEGNO DI SPESA PER PIANI PERSONALIZZATI IN SOSTEGNO DELLE PERSONE CON DISABILITA' GRAVE DI CUI ALLA L.162/1998 -DGR 55/12 DEL 31.12.2017.;03-07-2018;1420;2;142;1;Spese correnti;4;Trasferimenti correnti;2;Trasferimenti correnti a Famiglie;2;Interventi assistenziali;999;Altri assegni e sussidi assistenziali;03-07-2018;
943;1;0;"274,96";"274,96";OMESSO NOMINATIVO NEL RISPETTO DELLA NORMATIVA SULLA PROTEZIONE DATI PERSONALI; ;IMPEGNO DI SPESA PER PIANI PERSONALIZZATI IN SOSTEGNO DELLE PERSONE CON DISABILITA' GRAVE DI CUI ALLA L.162/1998 -DGR 55/12 DEL 31.12.2017.;03-07-2018;1420;2;142;1;Spese correnti;4;Trasferimenti correnti;2;Trasferimenti correnti a Famiglie;2;Interventi assistenziali;999;Altri assegni e sussidi assistenziali;03-07-2018;
944;1;0;"356,49";"356,49";OMESSO NOMINATIVO NEL RISPETTO DELLA NORMATIVA SULLA PROTEZIONE DATI PERSONALI; ;IMPEGNO DI SPESA PER PIANI PERSONALIZZATI IN SOSTEGNO DELLE PERSONE CON DISABILITA' GRAVE DI CUI ALLA L.162/1998 -DGR 55/12 DEL 31.12.2017.;03-07-2018;1420;2;142;1;Spese correnti;4;Trasferimenti correnti;2;Trasferimenti correnti a Famiglie;2;Interventi assistenziali;999;Altri assegni e sussidi assistenziali;03-07-2018;
945;1;0;"2.501,00";"2.501,00";HALLEY SARDEGNA SRL;Z9422A628B;Fatt.n. 0000772 del 30/06/2018;03-07-2018;82;2;75;1;Spese correnti;3;Acquisto di beni e servizi;2;Acquisto di servizi;19;Servizi informatici e di telecomunicazioni;1;Gestione e manutenzione applicazioni;03-07-2018;
946;1;0;"1.244,40";"1.244,40";PRATICO' DOMENICO;Z4323022F2;Fatt.n. FATTPA 4_18 del 21/06/2018;03-07-2018;3368;1;246;2;Spese in conto capitale;2;Investimenti fissi lordi e acquisto di terreni;1;Beni materiali;9;Beni immobili;999;Beni immobili n.a.c.;03-07-2018;
947;1;0;"220,03";"220,03";FIORI MARIO;Z1A21931AC;Fatt.n. FATTPA 6_18 del 29/06/2018;03-07-2018;1300;8;2;1;Spese correnti;3;Acquisto di beni e servizi;1;Acquisto di beni;2;Altri beni di consumo;2;"Carburanti, combustibili e lubrificanti";03-07-2018;
948;1;0;"4.007,70";"4.007,70";BBG SARDEGNA SRL;ZA22298E9D;Fatt.n. FATTPA 41_18 del 02/07/2018;03-07-2018;200;0;93;1;Spese correnti;3;Acquisto di beni e servizi;2;Acquisto di servizi;99;Altri servizi;999;Altri servizi diversi n.a.c.;03-07-2018;
949;1;0;"1.811,76";"1.811,76";Gavini Roberto;Z7424020DD;Fatt.n. FATTPA 1_18 del 29/06/2018 Vs. dare per Coordinamento per la Sicurezza in fase di Progettazione dei Lavori di riqualificazione ed efficientamento energetico del centro sportivo comunale Det. n. 100 del 11.06.2018 CIG Z7424020DD;03-07-2018;2098;0;154;2;Spese in conto capitale;2;Investimenti fissi lordi e acquisto di terreni;3;Beni immateriali;5;Incarichi professionali per la realizzazione di investimenti;1;Incarichi professionali per la realizzazione di investimenti;03-07-2018;
950;1;0;"118,97";"118,97";OMESSO NOMINATIVO NEL RISPETTO DELLA NORMATIVA SULLA PROTEZIONE DATI PERSONALI; ;IMPEGNO DI SPESA PER PIANI PERSONALIZZATI IN SOSTEGNO DELLE PERSONE CON DISABILITA' GRAVE DI CUI ALLA L.162/1998 -DGR 55/12 DEL 31.12.2017.;03-07-2018;1420;2;142;1;Spese correnti;4;Trasferimenti correnti;2;Trasferimenti correnti a Famiglie;2;Interventi assistenziali;999;Altri assegni e sussidi assistenziali;03-07-2018;
951;1;0;"164,66";"164,66";OMESSO NOMINATIVO NEL RISPETTO DELLA NORMATIVA SULLA PROTEZIONE DATI PERSONALI; ;IMPEGNO DI SPESA PER PIANI PERSONALIZZATI IN SOSTEGNO DELLE PERSONE CON DISABILITA' GRAVE DI CUI ALLA L.162/1998 -DGR 55/12 DEL 31.12.2017.;03-07-2018;1420;2;142;1;Spese correnti;4;Trasferimenti correnti;2;Trasferimenti correnti a Famiglie;2;Interventi assistenziali;999;Altri assegni e sussidi assistenziali;03-07-2018;
952;1;0;"217,47";"217,47";OMESSO NOMINATIVO NEL RISPETTO DELLA NORMATIVA SULLA PROTEZIONE DATI PERSONALI; ;IMPEGNO DI SPESA PER PIANI PERSONALIZZATI IN SOSTEGNO DELLE PERSONE CON DISABILITA' GRAVE DI CUI ALLA L.162/1998 -DGR 55/12 DEL 31.12.2017.;03-07-2018;1420;2;142;1;Spese correnti;4;Trasferimenti correnti;2;Trasferimenti correnti a Famiglie;2;Interventi assistenziali;999;Altri assegni e sussidi assistenziali;03-07-2018;
953;1;0;"564,93";"564,93";OMESSO NOMINATIVO NEL RISPETTO DELLA NORMATIVA SULLA PROTEZIONE DATI PERSONALI; ;IMPEGNO DI SPESA PER PIANI PERSONALIZZATI IN SOSTEGNO DELLE PERSONE CON DISABILITA' GRAVE DI CUI ALLA L.162/1998 -DGR 55/12 DEL 31.12.2017.;03-07-2018;1420;2;142;1;Spese correnti;4;Trasferimenti correnti;2;Trasferimenti correnti a Famiglie;2;Interventi assistenziali;999;Altri assegni e sussidi assistenziali;03-07-2018;
954;1;0;"1.065,27";"1.065,27";OMESSO NOMINATIVO NEL RISPETTO DELLA NORMATIVA SULLA PROTEZIONE DATI PERSONALI; ;IMPEGNO DI SPESA PER PIANI PERSONALIZZATI IN SOSTEGNO DELLE PERSONE CON DISABILITA' GRAVE DI CUI ALLA L.162/1998 -DGR 55/12 DEL 31.12.2017.;03-07-2018;1420;2;142;1;Spese correnti;4;Trasferimenti correnti;2;Trasferimenti correnti a Famiglie;2;Interventi assistenziali;999;Altri assegni e sussidi assistenziali;03-07-2018;
955;1;0;"200,00";"200,00";OMESSO NOMINATIVO NEL RISPETTO DELLA NORMATIVA SULLA PROTEZIONE DATI PERSONALI; ;IMPEGNO DI SPESA PER PIANI PERSONALIZZATI IN SOSTEGNO DELLE PERSONE CON DISABILITA' GRAVE DI CUI ALLA L.162/1998 -DGR 55/12 DEL 31.12.2017.;03-07-2018;1420;2;142;1;Spese correnti;4;Trasferimenti correnti;2;Trasferimenti correnti a Famiglie;2;Interventi assistenziali;999;Altri assegni e sussidi assistenziali;03-07-2018;
956;1;0;"156,25";"156,25";OMESSO NOMINATIVO NEL RISPETTO DELLA NORMATIVA SULLA PROTEZIONE DATI PERSONALI; ;IMPEGNO DI SPESA PER PIANI PERSONALIZZATI IN SOSTEGNO DELLE PERSONE CON DISABILITA' GRAVE DI CUI ALLA L.162/1998 -DGR 55/12 DEL 31.12.2017.;03-07-2018;1420;2;142;1;Spese correnti;4;Trasferimenti correnti;2;Trasferimenti correnti a Famiglie;2;Interventi assistenziali;999;Altri assegni e sussidi assistenziali;03-07-2018;
957;1;0;"208,83";"208,83";OMESSO NOMINATIVO NEL RISPETTO DELLA NORMATIVA SULLA PROTEZIONE DATI PERSONALI; ;IMPEGNO DI SPESA PER PIANI PERSONALIZZATI IN SOSTEGNO DELLE PERSONE CON DISABILITA' GRAVE DI CUI ALLA L.162/1998 -DGR 55/12 DEL 31.12.2017.;03-07-2018;1420;2;142;1;Spese correnti;4;Trasferimenti correnti;2;Trasferimenti correnti a Famiglie;2;Interventi assistenziali;999;Altri assegni e sussidi assistenziali;03-07-2018;
958;1;0;"923,10";"923,10";OMESSO NOMINATIVO NEL RISPETTO DELLA NORMATIVA SULLA PROTEZIONE DATI PERSONALI; ;IMPEGNO DI SPESA PER PIANI PERSONALIZZATI IN SOSTEGNO DELLE PERSONE CON DISABILITA' GRAVE DI CUI ALLA L.162/1998 -DGR 55/12 DEL 31.12.2017.;03-07-2018;1420;2;142;1;Spese correnti;4;Trasferimenti correnti;2;Trasferimenti correnti a Famiglie;2;Interventi assistenziali;999;Altri assegni e sussidi assistenziali;03-07-2018;
959;1;0;"358,58";"358,58";OMESSO NOMINATIVO NEL RISPETTO DELLA NORMATIVA SULLA PROTEZIONE DATI PERSONALI; ;IMPEGNO DI SPESA PER PIANI PERSONALIZZATI IN SOSTEGNO DELLE PERSONE CON DISABILITA' GRAVE DI CUI ALLA L.162/1998 -DGR 55/12 DEL 31.12.2017.;03-07-2018;1420;2;142;1;Spese correnti;4;Trasferimenti correnti;2;Trasferimenti correnti a Famiglie;2;Interventi assistenziali;999;Altri assegni e sussidi assistenziali;03-07-2018;
960;1;0;"187,50";"187,50";OMESSO NOMINATIVO NEL RISPETTO DELLA NORMATIVA SULLA PROTEZIONE DATI PERSONALI; ;IMPEGNO DI SPESA PER PIANI PERSONALIZZATI IN SOSTEGNO DELLE PERSONE CON DISABILITA' GRAVE DI CUI ALLA L.162/1998 -DGR 55/12 DEL 31.12.2017.;03-07-2018;1420;2;142;1;Spese correnti;4;Trasferimenti correnti;2;Trasferimenti correnti a Famiglie;2;Interventi assistenziali;999;Altri assegni e sussidi assistenziali;03-07-2018;
961;1;0;"155,69";"155,69";OMESSO NOMINATIVO NEL RISPETTO DELLA NORMATIVA SULLA PROTEZIONE DATI PERSONALI; ;IMPEGNO DI SPESA PER PIANI PERSONALIZZATI IN SOSTEGNO DELLE PERSONE CON DISABILITA' GRAVE DI CUI ALLA L.162/1998 -DGR 55/12 DEL 31.12.2017.;03-07-2018;1420;2;142;1;Spese correnti;4;Trasferimenti correnti;2;Trasferimenti correnti a Famiglie;2;Interventi assistenziali;999;Altri assegni e sussidi assistenziali;03-07-2018;
962;1;0;"187,50";"187,50";OMESSO NOMINATIVO NEL RISPETTO DELLA NORMATIVA SULLA PROTEZIONE DATI PERSONALI; ;IMPEGNO DI SPESA PER PIANI PERSONALIZZATI IN SOSTEGNO DELLE PERSONE CON DISABILITA' GRAVE DI CUI ALLA L.162/1998 -DGR 55/12 DEL 31.12.2017.;03-07-2018;1420;2;142;1;Spese correnti;4;Trasferimenti correnti;2;Trasferimenti correnti a Famiglie;2;Interventi assistenziali;999;Altri assegni e sussidi assistenziali;03-07-2018;
963;1;0;"211,03";"211,03";OMESSO NOMINATIVO NEL RISPETTO DELLA NORMATIVA SULLA PROTEZIONE DATI PERSONALI; ;IMPEGNO DI SPESA PER PIANI PERSONALIZZATI IN SOSTEGNO DELLE PERSONE CON DISABILITA' GRAVE DI CUI ALLA L.162/1998 -DGR 55/12 DEL 31.12.2017.;03-07-2018;1420;2;142;1;Spese correnti;4;Trasferimenti correnti;2;Trasferimenti correnti a Famiglie;2;Interventi assistenziali;999;Altri assegni e sussidi assistenziali;03-07-2018;
964;1;0;"291,18";"291,18";OMESSO NOMINATIVO NEL RISPETTO DELLA NORMATIVA SULLA PROTEZIONE DATI PERSONALI; ;IMPEGNO DI SPESA PER PIANI PERSONALIZZATI IN SOSTEGNO DELLE PERSONE CON DISABILITA' GRAVE DI CUI ALLA L.162/1998 -DGR 55/12 DEL 31.12.2017.;03-07-2018;1420;2;142;1;Spese correnti;4;Trasferimenti correnti;2;Trasferimenti correnti a Famiglie;2;Interventi assistenziali;999;Altri assegni e sussidi assistenziali;03-07-2018;
965;1;0;"10.006,34";"10.006,34";Cambula Roberto Mario;ZCE23EBBB8;Fatt.n. FATTPA 2_18 del 29/06/2018;03-07-2018;2098;0;146;2;Spese in conto capitale;2;Investimenti fissi lordi e acquisto di terreni;3;Beni immateriali;5;Incarichi professionali per la realizzazione di investimenti;1;Incarichi professionali per la realizzazione di investimenti;03-07-2018;
966;1;0;"1.561,60";"1.561,60";MONGILI FRANCO;Z452426852;Fatt.n. 4PA del 02/07/2018;03-07-2018;3126;0;162;2;Spese in conto capitale;2;Investimenti fissi lordi e acquisto di terreni;1;Beni materiali;9;Beni immobili;14;Opere per la sistemazione del suolo;03-07-2018;
967;1;0;"457,50";"457,50";OTIS SERVIZI SRL;ZF62193515;Fatt.n. 3FO18061251 del 22/06/2018 Competenze Servizi di Manutenzione;04-07-2018;255;0;177;1;Spese correnti;3;Acquisto di beni e servizi;2;Acquisto di servizi;9;Manutenzione ordinaria e riparazioni;8;Manutenzione ordinaria e riparazioni di beni immobili;04-07-2018;
968;1;0;"281,10";"281,10";LEONI S.R.L.;Z37242037B;Fatt.n. 29 del 12/06/2018 PRESTAZIONE CON AUTOSPURGO PER DISINTASAMENTO CONDOTTA FOGNARIA CENTRO ANZIANI CIG Z271FDF32E;04-07-2018;3121;0;166;2;Spese in conto capitale;2;Investimenti fissi lordi e acquisto di terreni;1;Beni materiali;9;Beni immobili;12;Infrastrutture stradali;04-07-2018;
969;1;0;"487,10";"487,10";LEONI S.R.L.;Z37242037B;Fatt.n. 30 del 12/06/2018 PRESTAZIONE CON AUTOSPURGO PER DISINTASAMENTO CONDOTTA FOGNARIA SCUOLE MEDIE CIG Z37242037B;04-07-2018;3121;0;166;2;Spese in conto capitale;2;Investimenti fissi lordi e acquisto di terreni;1;Beni materiali;9;Beni immobili;12;Infrastrutture stradali;04-07-2018;
970;1;0;"11.388,01";"11.388,01";CONSAI SRL;ZA8241F1E5;CONTRATTI POLIZZE ASSICURATIVE - LIQ. N. 307;04-07-2018;100;0;159;1;Spese correnti;10;Altre spese correnti;4;Premi di assicurazione;1;Premi di assicurazione contro i danni;3;Premi di assicurazione per responsabilità civile verso terzi;04-07-2018;
971;1;0;"3.002,59";"3.002,59";CONSAI SRL;ZA8241F1E5;CONTRATTI POLIZZE ASSICURATIVE - LIQ. N. 307;04-07-2018;1302;7;160;1;Spese correnti;3;Acquisto di beni e servizi;2;Acquisto di servizi;11;Prestazioni professionali e specialistiche;999;Altre prestazioni professionali e specialistiche n.a.c.;04-07-2018;
972;1;0;"227,29";"227,29";DNA RANDAGIO;ZD021761F1;Fatt.n. 000088-2018-CANILE del 02/07/2018 SERVIZIO DI RICOVERO E CUSTODIA CANI RANDAGI;04-07-2018;1349;0;33;1;Spese correnti;3;Acquisto di beni e servizi;2;Acquisto di servizi;15;Contratti di servizio pubblico;11;Contratti di servizio per la lotta al randagismo;04-07-2018;
973;1;0;"2.023,19";"2.023,19";COOP. SPES a r.l.;Z422136A24;Fatt.n. 28 PA del 30/06/2018 Fattura Cliente;04-07-2018;118;5;12;1;Spese correnti;3;Acquisto di beni e servizi;2;Acquisto di servizi;13;Servizi ausiliari per il funzionamento dell'ente;2;Servizi di pulizia e lavanderia;04-07-2018;
975;1;0;"156,33";"156,33";OMESSO NOMINATIVO NEL RISPETTO DELLA NORMATIVA SULLA PROTEZIONE DATI PERSONALI; ;IMPEGNO DI SPESA PER PIANI PERSONALIZZATI IN SOSTEGNO DELLE PERSONE CON DISABILITA' GRAVE DI CUI ALLA L.162/1998 -DGR 55/12 DEL 31.12.2017.;09-07-2018;1420;2;142;1;Spese correnti;4;Trasferimenti correnti;2;Trasferimenti correnti a Famiglie;2;Interventi assistenziali;999;Altri assegni e sussidi assistenziali;09-07-2018;
976;1;0;"40,32";"40,32";OMESSO NOMINATIVO NEL RISPETTO DELLA NORMATIVA SULLA PROTEZIONE DATI PERSONALI; ;IMPEGNO DI SPESA PER PIANI PERSONALIZZATI IN SOSTEGNO DELLE PERSONE CON DISABILITA' GRAVE DI CUI ALLA L.162/1998 -DGR 55/12 DEL 31.12.2017.;09-07-2018;1420;2;142;1;Spese correnti;4;Trasferimenti correnti;2;Trasferimenti correnti a Famiglie;2;Interventi assistenziali;999;Altri assegni e sussidi assistenziali;09-07-2018;
977;1;0;"300,78";"300,78";OMESSO NOMINATIVO NEL RISPETTO DELLA NORMATIVA SULLA PROTEZIONE DATI PERSONALI; ;IMPEGNO DI SPESA PER PIANI PERSONALIZZATI IN SOSTEGNO DELLE PERSONE CON DISABILITA' GRAVE DI CUI ALLA L.162/1998 -DGR 55/12 DEL 31.12.2017.;09-07-2018;1420;2;142;1;Spese correnti;4;Trasferimenti correnti;2;Trasferimenti correnti a Famiglie;2;Interventi assistenziali;999;Altri assegni e sussidi assistenziali;09-07-2018;
978;1;0;"142,00";"142,00";OMESSO NOMINATIVO NEL RISPETTO DELLA NORMATIVA SULLA PROTEZIONE DATI PERSONALI; ;IMPEGNO DI SPESA PER PIANI PERSONALIZZATI IN SOSTEGNO DELLE PERSONE CON DISABILITA' GRAVE DI CUI ALLA L.162/1998 -DGR 55/12 DEL 31.12.2017.;09-07-2018;1420;2;142;1;Spese correnti;4;Trasferimenti correnti;2;Trasferimenti correnti a Famiglie;2;Interventi assistenziali;999;Altri assegni e sussidi assistenziali;09-07-2018;
979;1;0;"246,45";"246,45";OMESSO NOMINATIVO NEL RISPETTO DELLA NORMATIVA SULLA PROTEZIONE DATI PERSONALI; ;IMPEGNO DI SPESA PER PIANI PERSONALIZZATI IN SOSTEGNO DELLE PERSONE CON DISABILITA' GRAVE DI CUI ALLA L.162/1998 -DGR 55/12 DEL 31.12.2017.;09-07-2018;1420;2;142;1;Spese correnti;4;Trasferimenti correnti;2;Trasferimenti correnti a Famiglie;2;Interventi assistenziali;999;Altri assegni e sussidi assistenziali;09-07-2018;
980;1;0;"471,72";"471,72";OMESSO NOMINATIVO NEL RISPETTO DELLA NORMATIVA SULLA PROTEZIONE DATI PERSONALI; ;IMPEGNO DI SPESA PER PIANI PERSONALIZZATI IN SOSTEGNO DELLE PERSONE CON DISABILITA' GRAVE DI CUI ALLA L.162/1998 -DGR 55/12 DEL 31.12.2017.;09-07-2018;1420;2;142;1;Spese correnti;4;Trasferimenti correnti;2;Trasferimenti correnti a Famiglie;2;Interventi assistenziali;999;Altri assegni e sussidi assistenziali;09-07-2018;
981;1;0;"604,00";"604,00";OMESSO NOMINATIVO NEL RISPETTO DELLA NORMATIVA SULLA PROTEZIONE DATI PERSONALI; ;IMPEGNO DI SPESA PER L.R. 11/185-PROVVIDENZE A FAVORE DI NEFROPATICI-PRESA IN CARICO ANNO 2018.;09-07-2018;1438;0;19;1;Spese correnti;4;Trasferimenti correnti;2;Trasferimenti correnti a Famiglie;2;Interventi assistenziali;999;Altri assegni e sussidi assistenziali;09-07-2018;
982;1;0;"200,00";"200,00";OMESSO NOMINATIVO NEL RISPETTO DELLA NORMATIVA SULLA PROTEZIONE DATI PERSONALI; ;IMPEGNO DI SPESA PER CONTRIBUTO A FAVORE DI CITTADINI SOFFERENTI MENTALI INSERITI IN STRUTTURE RESIDENZIALI ANNUALITA' 2018.;09-07-2018;1412;0;3;1;Spese correnti;3;Acquisto di beni e servizi;2;Acquisto di servizi;15;Contratti di servizio pubblico;8;Contratti di servizio di assistenza sociale residenziale e semiresidenziale;09-07-2018;
983;1;0;"328,53";"328,53";OMESSO NOMINATIVO NEL RISPETTO DELLA NORMATIVA SULLA PROTEZIONE DATI PERSONALI; ;IMPEGNO DI SPESA PER PIANI PERSONALIZZATI IN SOSTEGNO DELLE PERSONE CON DISABILITA' GRAVE DI CUI ALLA L.162/1998 -DGR 55/12 DEL 31.12.2017.;09-07-2018;1420;2;142;1;Spese correnti;4;Trasferimenti correnti;2;Trasferimenti correnti a Famiglie;2;Interventi assistenziali;999;Altri assegni e sussidi assistenziali;09-07-2018;
984;1;0;"753,42";"753,42";OMESSO NOMINATIVO NEL RISPETTO DELLA NORMATIVA SULLA PROTEZIONE DATI PERSONALI; ;IMPEGNO DI SPESA PER PIANI PERSONALIZZATI IN SOSTEGNO DELLE PERSONE CON DISABILITA' GRAVE DI CUI ALLA L.162/1998 -DGR 55/12 DEL 31.12.2017.;09-07-2018;1420;2;142;1;Spese correnti;4;Trasferimenti correnti;2;Trasferimenti correnti a Famiglie;2;Interventi assistenziali;999;Altri assegni e sussidi assistenziali;09-07-2018;
985;1;0;"226,74";"226,74";OMESSO NOMINATIVO NEL RISPETTO DELLA NORMATIVA SULLA PROTEZIONE DATI PERSONALI; ;IMPEGNO DI SPESA PER PIANI PERSONALIZZATI IN SOSTEGNO DELLE PERSONE CON DISABILITA' GRAVE DI CUI ALLA L.162/1998 -DGR 55/12 DEL 31.12.2017.;09-07-2018;1420;2;142;1;Spese correnti;4;Trasferimenti correnti;2;Trasferimenti correnti a Famiglie;2;Interventi assistenziali;999;Altri assegni e sussidi assistenziali;09-07-2018;
986;1;0;"604,00";"604,00";OMESSO NOMINATIVO NEL RISPETTO DELLA NORMATIVA SULLA PROTEZIONE DATI PERSONALI; ;IMPEGNO DI SPESA PER L.R. 11/185-PROVVIDENZE A FAVORE DI NEFROPATICI-PRESA IN CARICO ANNO 2018.;09-07-2018;1438;0;19;1;Spese correnti;4;Trasferimenti correnti;2;Trasferimenti correnti a Famiglie;2;Interventi assistenziali;999;Altri assegni e sussidi assistenziali;09-07-2018;
987;1;0;"604,00";"604,00";OMESSO NOMINATIVO NEL RISPETTO DELLA NORMATIVA SULLA PROTEZIONE DATI PERSONALI; ;IMPEGNO DI SPESA PER L.R. 11/185-PROVVIDENZE A FAVORE DI NEFROPATICI-PRESA IN CARICO ANNO 2018.;09-07-2018;1438;0;19;1;Spese correnti;4;Trasferimenti correnti;2;Trasferimenti correnti a Famiglie;2;Interventi assistenziali;999;Altri assegni e sussidi assistenziali;09-07-2018;
988;1;0;"1,00";"1,00";TESORIERE COMUNALE BANCO SARDEGNA SASSARI; ;COMMISSIONI MANDATO CASSA DEPOSITI E PRESTITI;09-07-2018;152;0;0;1;Spese correnti;3;Acquisto di beni e servizi;2;Acquisto di servizi;17;Servizi finanziari;999;Spese per servizi finanziari n.a.c.;09-07-2018;
989;1;0;"1,00";"1,00";TESORIERE COMUNALE BANCO SARDEGNA SASSARI; ;COMMISSIONI MANDATO ISTITUTO PER IL CRED. SPORTIVO;09-07-2018;152;0;0;1;Spese correnti;3;Acquisto di beni e servizi;2;Acquisto di servizi;17;Servizi finanziari;999;Spese per servizi finanziari n.a.c.;09-07-2018;
990;1;0;"3.985,74";"3.985,74";MACAGI SRL;Z3623AD1E4;Fatt.n. 2018-FE-0000129 del 15/06/2018 Fatture Emesse;09-07-2018;3413;0;135;2;Spese in conto capitale;5;Altre spese in conto capitale;99;Altre spese in conto capitale n.a.c.;99;Altre spese in conto capitale n.a.c.;999;Altre spese in conto capitale n.a.c.;09-07-2018;
991;1;0;"894,87";"894,87";ELMI SRL;Z452197C03;Fatt.n. FatPAM 90 del 05/07/2018;09-07-2018;255;0;6;1;Spese correnti;3;Acquisto di beni e servizi;2;Acquisto di servizi;9;Manutenzione ordinaria e riparazioni;8;Manutenzione ordinaria e riparazioni di beni immobili;09-07-2018;
992;1;0;"562,08";"562,08";CERAMICHE ORVEJ DI MASALA FERNANDO;ZA32380B04;"Fatt.n. 2/PA del 05/07/2018 VOSTRO DARE PER ACQUISTO MATERIALE FERRAMENTA VARIO, DET. 159 DEL 09/05/2018 CIG ZA32380B04";09-07-2018;1422;0;118;1;Spese correnti;3;Acquisto di beni e servizi;1;Acquisto di beni;2;Altri beni di consumo;999;Altri beni e materiali di consumo n.a.c.;09-07-2018;
993;1;0;"54,27";"54,27";ENEL ENERGIA;ZB5225B867;Fatt.n. 004811006746 del 13/06/2018;09-07-2018;1012;4;26;1;Spese correnti;3;Acquisto di beni e servizi;2;Acquisto di servizi;5;Utenze e canoni;4;Energia elettrica;09-07-2018;
994;1;0;"1.200,00";"1.200,00";SORO MICHELE; ;Intitolazione del campo sportivo comunale ai calciatori Marini Michele Antonio (noto Antonello) e Masia Andrea. Concessione contributo per la realizzazione della targa in pietra;10-07-2018;840;0;169;1;Spese correnti;4;Trasferimenti correnti;4;Trasferimenti correnti a Istituzioni Sociali Private;1;Trasferimenti correnti a Istituzioni Sociali Private;1;Trasferimenti correnti a Istituzioni Sociali Private;10-07-2018;
995;1;0;"3.549,07";"3.549,07";ORVEI COOPERATIVA SOCIALE ONLUS;Z3E2138775;"Fatt.n. 12/PA del 09/07/2018 LAVORI DI MANUTENZIONE VERDE, CIMITERO, PULIZIA STRADE, PULIZIA SORGENTI, MANUTENZIONE IMPIANTI DI IRRIGAZIONE - CIG Z3E2138775 DET. N.431 DEL 29/12/2017 GIUGNO 2018";10-07-2018;1488;0;10;1;Spese correnti;3;Acquisto di beni e servizi;2;Acquisto di servizi;13;Servizi ausiliari per il funzionamento dell'ente;999;Altri servizi ausiliari n.a.c.;10-07-2018;
996;1;0;"740,45";"740,45";OMESSO NOMINATIVO NEL RISPETTO DELLA NORMATIVA SULLA PROTEZIONE DATI PERSONALI; ;IMPEGNO DI SPESA PER PIANI PERSONALIZZATI IN SOSTEGNO DELLE PERSONE CON DISABILITA' GRAVE DI CUI ALLA L.162/1998 -DGR 55/12 DEL 31.12.2017.;11-07-2018;1420;2;142;1;Spese correnti;4;Trasferimenti correnti;2;Trasferimenti correnti a Famiglie;2;Interventi assistenziali;999;Altri assegni e sussidi assistenziali;11-07-2018;
997;1;0;"212,00";"212,00";OMESSO NOMINATIVO NEL RISPETTO DELLA NORMATIVA SULLA PROTEZIONE DATI PERSONALI; ;IMPEGNO DI SPESA PER PIANI PERSONALIZZATI IN SOSTEGNO DELLE PERSONE CON DISABILITA' GRAVE DI CUI ALLA L.162/1998 -DGR 55/12 DEL 31.12.2017.;11-07-2018;1420;2;142;1;Spese correnti;4;Trasferimenti correnti;2;Trasferimenti correnti a Famiglie;2;Interventi assistenziali;999;Altri assegni e sussidi assistenziali;11-07-2018;
998;1;0;"240,00";"240,00";OMESSO NOMINATIVO NEL RISPETTO DELLA NORMATIVA SULLA PROTEZIONE DATI PERSONALI; ;IMPEGNO DI SPESA PER PIANI PERSONALIZZATI IN SOSTEGNO DELLE PERSONE CON DISABILITA' GRAVE DI CUI ALLA L.162/1998 -DGR 55/12 DEL 31.12.2017.;11-07-2018;1420;2;142;1;Spese correnti;4;Trasferimenti correnti;2;Trasferimenti correnti a Famiglie;2;Interventi assistenziali;999;Altri assegni e sussidi assistenziali;11-07-2018;
999;1;0;"301,20";"301,20";OMESSO NOMINATIVO NEL RISPETTO DELLA NORMATIVA SULLA PROTEZIONE DATI PERSONALI; ;IMPEGNO DI SPESA PER PIANI PERSONALIZZATI IN SOSTEGNO DELLE PERSONE CON DISABILITA' GRAVE DI CUI ALLA L.162/1998 -DGR 55/12 DEL 31.12.2017.;11-07-2018;1420;2;142;1;Spese correnti;4;Trasferimenti correnti;2;Trasferimenti correnti a Famiglie;2;Interventi assistenziali;999;Altri assegni e sussidi assistenziali;11-07-2018;
1000;1;0;"514,80";"514,80";OMESSO NOMINATIVO NEL RISPETTO DELLA NORMATIVA SULLA PROTEZIONE DATI PERSONALI; ;IMPEGNO DI SPESA PER PIANI PERSONALIZZATI IN SOSTEGNO DELLE PERSONE CON DISABILITA' GRAVE DI CUI ALLA L.162/1998 -DGR 55/12 DEL 31.12.2017.;11-07-2018;1420;2;142;1;Spese correnti;4;Trasferimenti correnti;2;Trasferimenti correnti a Famiglie;2;Interventi assistenziali;999;Altri assegni e sussidi assistenziali;11-07-2018;
1001;1;0;"543,92";"543,92";OMESSO NOMINATIVO NEL RISPETTO DELLA NORMATIVA SULLA PROTEZIONE DATI PERSONALI; ;IMPEGNO DI SPESA PER PIANI PERSONALIZZATI IN SOSTEGNO DELLE PERSONE CON DISABILITA' GRAVE DI CUI ALLA L.162/1998 -DGR 55/12 DEL 31.12.2017.;11-07-2018;1420;2;142;1;Spese correnti;4;Trasferimenti correnti;2;Trasferimenti correnti a Famiglie;2;Interventi assistenziali;999;Altri assegni e sussidi assistenziali;11-07-2018;
1002;1;0;"5.612,00";"5.612,00";NATURALMENTE VERDE SOC. COOP. SOCIALE;ZBC244F7F9;Fatt.n. FATTPA 3_18 del 11/07/2018;12-07-2018;3520;0;293;2;Spese in conto capitale;5;Altre spese in conto capitale;99;Altre spese in conto capitale n.a.c.;99;Altre spese in conto capitale n.a.c.;999;Altre spese in conto capitale n.a.c.;12-07-2018;
1003;1;0;"4.083,10";"4.083,10";SOC. SEGASIDDA SRL;6855216F30;Fatt.n. E/44 del 11/07/2018;12-07-2018;3520;0;293;2;Spese in conto capitale;5;Altre spese in conto capitale;99;Altre spese in conto capitale n.a.c.;99;Altre spese in conto capitale n.a.c.;999;Altre spese in conto capitale n.a.c.;12-07-2018;
1004;1;0;"27,81";"27,81";POSTE ITALIANE Spa;Z8D1F0ACEA;Fatt.n. 8718227603 del 11/07/2018 Fattura Elettronica relativa all'Identificativo Rendiconto 2097905620;12-07-2018;118;2;127;1;Spese correnti;3;Acquisto di beni e servizi;2;Acquisto di servizi;16;Servizi amministrativi;2;Spese postali;12-07-2018;
1005;1;0;"2.364,36";"2.364,36";PRATICO' DOMENICO;ZA9240660E;Fatt.n. FATTPA 5_18 del 10/07/2018;12-07-2018;2098;0;156;2;Spese in conto capitale;2;Investimenti fissi lordi e acquisto di terreni;3;Beni immateriali;5;Incarichi professionali per la realizzazione di investimenti;1;Incarichi professionali per la realizzazione di investimenti;12-07-2018;
1006;1;0;"335,53";"335,53";OMESSO NOMINATIVO NEL RISPETTO DELLA NORMATIVA SULLA PROTEZIONE DATI PERSONALI; ;IMPEGNO DI SPESA PER PIANI PERSONALIZZATI IN SOSTEGNO DELLE PERSONE CON DISABILITA' GRAVE DI CUI ALLA L.162/1998 -DGR 55/12 DEL 31.12.2017.;12-07-2018;1420;2;142;1;Spese correnti;4;Trasferimenti correnti;2;Trasferimenti correnti a Famiglie;2;Interventi assistenziali;999;Altri assegni e sussidi assistenziali;12-07-2018;
1007;1;0;"186,89";"186,89";OMESSO NOMINATIVO NEL RISPETTO DELLA NORMATIVA SULLA PROTEZIONE DATI PERSONALI; ;IMPEGNO DI SPESA PER PIANI PERSONALIZZATI IN SOSTEGNO DELLE PERSONE CON DISABILITA' GRAVE DI CUI ALLA L.162/1998 -DGR 55/12 DEL 31.12.2017.;12-07-2018;1420;2;142;1;Spese correnti;4;Trasferimenti correnti;2;Trasferimenti correnti a Famiglie;2;Interventi assistenziali;999;Altri assegni e sussidi assistenziali;12-07-2018;
1008;1;0;"639,80";"639,80";OMESSO NOMINATIVO NEL RISPETTO DELLA NORMATIVA SULLA PROTEZIONE DATI PERSONALI; ;IMPEGNO DI SPESA PER PIANI PERSONALIZZATI IN SOSTEGNO DELLE PERSONE CON DISABILITA' GRAVE DI CUI ALLA L.162/1998 -DGR 55/12 DEL 31.12.2017.;12-07-2018;1420;2;142;1;Spese correnti;4;Trasferimenti correnti;2;Trasferimenti correnti a Famiglie;2;Interventi assistenziali;999;Altri assegni e sussidi assistenziali;12-07-2018;
1009;1;0;"169,20";"169,20";OMESSO NOMINATIVO NEL RISPETTO DELLA NORMATIVA SULLA PROTEZIONE DATI PERSONALI; ;IMPEGNO DI SPESA PER PIANI PERSONALIZZATI IN SOSTEGNO DELLE PERSONE CON DISABILITA' GRAVE DI CUI ALLA L.162/1998 -DGR 55/12 DEL 31.12.2017.;12-07-2018;1420;2;142;1;Spese correnti;4;Trasferimenti correnti;2;Trasferimenti correnti a Famiglie;2;Interventi assistenziali;999;Altri assegni e sussidi assistenziali;12-07-2018;
1010;1;0;"810,53";"810,53";OMESSO NOMINATIVO NEL RISPETTO DELLA NORMATIVA SULLA PROTEZIONE DATI PERSONALI; ;IMPEGNO DI SPESA PER PIANI PERSONALIZZATI IN SOSTEGNO DELLE PERSONE CON DISABILITA' GRAVE DI CUI ALLA L.162/1998 -DGR 55/12 DEL 31.12.2017.;12-07-2018;1420;2;142;1;Spese correnti;4;Trasferimenti correnti;2;Trasferimenti correnti a Famiglie;2;Interventi assistenziali;999;Altri assegni e sussidi assistenziali;12-07-2018;
1011;1;0;"1.019,00";"1.019,00";OMESSO NOMINATIVO NEL RISPETTO DELLA NORMATIVA SULLA PROTEZIONE DATI PERSONALI; ;IMPEGNO DI SPESA PER L.R. 27/83 -TALASSEMICI ED EMOLINFOPATICI-ANNO 2018.;12-07-2018;1438;0;101;1;Spese correnti;4;Trasferimenti correnti;2;Trasferimenti correnti a Famiglie;2;Interventi assistenziali;999;Altri assegni e sussidi assistenziali;12-07-2018;
1013;1;0;"900,00";"900,00";BECCIU ANTONELLA; ;"Programma di assegnazione contributi alle Associazioni locali e Comitati per l'organizzazione delle manifestazioni di carattere sociale, culturale, religioso e sportivo SANT'ELENA - Anno 2018.ACCONTO";12-07-2018;760;0;168;1;Spese correnti;4;Trasferimenti correnti;4;Trasferimenti correnti a Istituzioni Sociali Private;1;Trasferimenti correnti a Istituzioni Sociali Private;1;Trasferimenti correnti a Istituzioni Sociali Private;12-07-2018;
1014;1;0;"3.847,97";"3.847,97";CONSORZIO NETWORK ETICO;687819848C;Fatt.n. 2/1282 del 12/07/2018 SERV.SAD;12-07-2018;1412;0;14;1;Spese correnti;3;Acquisto di beni e servizi;2;Acquisto di servizi;15;Contratti di servizio pubblico;9;Contratti di servizio di assistenza sociale domiciliare;12-07-2018;
1015;1;0;"3.713,35";"3.713,35";CONSORZIO NETWORK ETICO;7391758FA7;Fatt.n. 2/1283 del 12/07/2018;12-07-2018;1416;0;88;1;Spese correnti;3;Acquisto di beni e servizi;2;Acquisto di servizi;11;Prestazioni professionali e specialistiche;999;Altre prestazioni professionali e specialistiche n.a.c.;12-07-2018;
1016;1;0;"818,18";"818,18";COOP. NUOVE IDEE;Z782197FF4;Fatt.n. FATTPA 66_18 del 11/07/2018;12-07-2018;1413;0;32;1;Spese correnti;3;Acquisto di beni e servizi;2;Acquisto di servizi;99;Altri servizi;999;Altri servizi diversi n.a.c.;12-07-2018;
1017;1;0;"8.064,22";"8.064,22";COOP. NUOVE IDEE; ;Fatt.n. FATTPA 65_18 del 11/07/2018;12-07-2018;1420;0;141;1;Spese correnti;3;Acquisto di beni e servizi;2;Acquisto di servizi;15;Contratti di servizio pubblico;9;Contratti di servizio di assistenza sociale domiciliare;12-07-2018;
1018;1;0;"118,00";"118,00";COILADU SUSANNA; ;RIMBORSO SPESE VIAGGIO STUDENTI PENDOLARI DELLE SCUOLE SECONDARIE DI II GRADO  A.S. 2017/2018-SALDO 70%.;13-07-2018;674;0;185;1;Spese correnti;4;Trasferimenti correnti;2;Trasferimenti correnti a Famiglie;2;Interventi assistenziali;999;Altri assegni e sussidi assistenziali;13-07-2018;
1019;1;0;"414,00";"414,00";SOLINAS MARIA GIUSEPPINA; ;RIMBORSO SPESE VIAGGIO STUDENTI PENDOLARI DELLE SCUOLE SECONDARIE DI II GRADO  A.S. 2017/2018-SALDO 70%.;13-07-2018;674;0;185;1;Spese correnti;4;Trasferimenti correnti;2;Trasferimenti correnti a Famiglie;2;Interventi assistenziali;999;Altri assegni e sussidi assistenziali;13-07-2018;
1020;1;0;"118,00";"118,00";ASOLE SILVIA; ;RIMBORSO SPESE VIAGGIO STUDENTI PENDOLARI DELLE SCUOLE SECONDARIE DI II GRADO  A.S. 2017/2018-SALDO 70%.;13-07-2018;674;0;185;1;Spese correnti;4;Trasferimenti correnti;2;Trasferimenti correnti a Famiglie;2;Interventi assistenziali;999;Altri assegni e sussidi assistenziali;13-07-2018;
1021;1;0;"700,00";"700,00";BECCIU ANTONELLA; ;SALDO FESTA PATRONALE SANT'ELENA.;13-07-2018;760;0;168;1;Spese correnti;4;Trasferimenti correnti;4;Trasferimenti correnti a Istituzioni Sociali Private;1;Trasferimenti correnti a Istituzioni Sociali Private;1;Trasferimenti correnti a Istituzioni Sociali Private;13-07-2018;
1022;1;0;"414,00";"414,00";TANDA SALVATORE; ;RIMBORSO SPESE VIAGGIO STUDENTI PENDOLARI DELLE SCUOLE SECONDARIE DI II GRADO  A.S. 2017/2018-SALDO 70%.;13-07-2018;674;0;185;1;Spese correnti;4;Trasferimenti correnti;2;Trasferimenti correnti a Famiglie;2;Interventi assistenziali;999;Altri assegni e sussidi assistenziali;13-07-2018;
1023;1;0;"207,00";"207,00";SECHI ALESSIA; ;RIMBORSO SPESE VIAGGIO STUDENTI PENDOLARI DELLE SCUOLE SECONDARIE DI II GRADO  A.S. 2017/2018-SALDO 70%.;13-07-2018;674;0;185;1;Spese correnti;4;Trasferimenti correnti;2;Trasferimenti correnti a Famiglie;2;Interventi assistenziali;999;Altri assegni e sussidi assistenziali;13-07-2018;
1024;1;0;"118,00";"118,00";SANNA MARGHERITA; ;RIMBORSO SPESE VIAGGIO STUDENTI PENDOLARI DELLE SCUOLE SECONDARIE DI II GRADO  A.S. 2017/2018-SALDO 70%.;13-07-2018;674;0;185;1;Spese correnti;4;Trasferimenti correnti;2;Trasferimenti correnti a Famiglie;2;Interventi assistenziali;999;Altri assegni e sussidi assistenziali;13-07-2018;
1025;1;0;"674,00";"674,00";SANNA CRISTINA; ;RIMBORSO SPESE VIAGGIO STUDENTI PENDOLARI DELLE SCUOLE SECONDARIE DI II GRADO  A.S. 2017/2018-SALDO 70%.;13-07-2018;674;0;185;1;Spese correnti;4;Trasferimenti correnti;2;Trasferimenti correnti a Famiglie;2;Interventi assistenziali;999;Altri assegni e sussidi assistenziali;13-07-2018;
1026;1;0;"207,00";"207,00";SALIS SALVATORINA; ;RIMBORSO SPESE VIAGGIO STUDENTI PENDOLARI DELLE SCUOLE SECONDARIE DI II GRADO  A.S. 2017/2018-SALDO 70%.;13-07-2018;674;0;185;1;Spese correnti;4;Trasferimenti correnti;2;Trasferimenti correnti a Famiglie;2;Interventi assistenziali;999;Altri assegni e sussidi assistenziali;13-07-2018;
1027;1;0;"325,00";"325,00";SINI LORETA; ;RIMBORSO SPESE VIAGGIO STUDENTI PENDOLARI DELLE SCUOLE SECONDARIE DI II GRADO  A.S. 2017/2018-SALDO 70%.;13-07-2018;674;0;185;1;Spese correnti;4;Trasferimenti correnti;2;Trasferimenti correnti a Famiglie;2;Interventi assistenziali;999;Altri assegni e sussidi assistenziali;13-07-2018;
1028;1;0;"118,00";"118,00";FIORI LAURA; ;RIMBORSO SPESE VIAGGIO STUDENTI PENDOLARI DELLE SCUOLE SECONDARIE DI II GRADO  A.S. 2017/2018-SALDO 70%.;13-07-2018;674;0;185;1;Spese correnti;4;Trasferimenti correnti;2;Trasferimenti correnti a Famiglie;2;Interventi assistenziali;999;Altri assegni e sussidi assistenziali;13-07-2018;
1029;1;0;"414,00";"414,00";BERRIA MARIA GIOVANNA; ;RIMBORSO SPESE VIAGGIO STUDENTI PENDOLARI DELLE SCUOLE SECONDARIE DI II GRADO  A.S. 2017/2018-SALDO 70%.;13-07-2018;674;0;185;1;Spese correnti;4;Trasferimenti correnti;2;Trasferimenti correnti a Famiglie;2;Interventi assistenziali;999;Altri assegni e sussidi assistenziali;13-07-2018;
1030;1;0;"849,00";"849,00";FURRU MARIA LEONARDA; ;RIMBORSO SPESE VIAGGIO STUDENTI PENDOLARI DELLE SCUOLE SECONDARIE DI II GRADO  A.S. 2017/2018-SALDO 70%.;13-07-2018;674;0;185;1;Spese correnti;4;Trasferimenti correnti;2;Trasferimenti correnti a Famiglie;2;Interventi assistenziali;999;Altri assegni e sussidi assistenziali;13-07-2018;
1031;1;0;"118,00";"118,00";TESTONI RITA; ;RIMBORSO SPESE VIAGGIO STUDENTI PENDOLARI DELLE SCUOLE SECONDARIE DI II GRADO  A.S. 2017/2018-SALDO 70%.;13-07-2018;674;0;185;1;Spese correnti;4;Trasferimenti correnti;2;Trasferimenti correnti a Famiglie;2;Interventi assistenziali;999;Altri assegni e sussidi assistenziali;13-07-2018;
1032;1;0;"118,00";"118,00";SPANU PIERA RITA; ;RIMBORSO SPESE VIAGGIO STUDENTI PENDOLARI DELLE SCUOLE SECONDARIE DI II GRADO  A.S. 2017/2018-SALDO 70%.;13-07-2018;674;0;185;1;Spese correnti;4;Trasferimenti correnti;2;Trasferimenti correnti a Famiglie;2;Interventi assistenziali;999;Altri assegni e sussidi assistenziali;13-07-2018;
1033;1;0;"236,00";"236,00";FARINA MARIA RITA; ;RIMBORSO SPESE VIAGGIO STUDENTI PENDOLARI DELLE SCUOLE SECONDARIE DI II GRADO  A.S. 2017/2018-SALDO 70%.;13-07-2018;674;0;185;1;Spese correnti;4;Trasferimenti correnti;2;Trasferimenti correnti a Famiglie;2;Interventi assistenziali;999;Altri assegni e sussidi assistenziali;13-07-2018;
1034;1;0;"118,00";"118,00";SECHI DONATELLA; ;RIMBORSO SPESE VIAGGIO STUDENTI PENDOLARI DELLE SCUOLE SECONDARIE DI II GRADO  A.S. 2017/2018-SALDO 70%.;13-07-2018;674;0;185;1;Spese correnti;4;Trasferimenti correnti;2;Trasferimenti correnti a Famiglie;2;Interventi assistenziali;999;Altri assegni e sussidi assistenziali;13-07-2018;
1035;1;0;"207,00";"207,00";BECCA MARIA MADDALENA; ;RIMBORSO SPESE VIAGGIO STUDENTI PENDOLARI DELLE SCUOLE SECONDARIE DI II GRADO  A.S. 2017/2018-SALDO 70%.;13-07-2018;674;0;185;1;Spese correnti;4;Trasferimenti correnti;2;Trasferimenti correnti a Famiglie;2;Interventi assistenziali;999;Altri assegni e sussidi assistenziali;13-07-2018;
1036;1;0;"118,00";"118,00";FURRU ELENA; ;RIMBORSO SPESE VIAGGIO STUDENTI PENDOLARI DELLE SCUOLE SECONDARIE DI II GRADO  A.S. 2017/2018-SALDO 70%.;13-07-2018;674;0;185;1;Spese correnti;4;Trasferimenti correnti;2;Trasferimenti correnti a Famiglie;2;Interventi assistenziali;999;Altri assegni e sussidi assistenziali;13-07-2018;
1037;1;0;"207,00";"207,00";PINTADU MARIA CATERINA; ;RIMBORSO SPESE VIAGGIO STUDENTI PENDOLARI DELLE SCUOLE SECONDARIE DI II GRADO  A.S. 2017/2018-SALDO 70%.;13-07-2018;674;0;185;1;Spese correnti;4;Trasferimenti correnti;2;Trasferimenti correnti a Famiglie;2;Interventi assistenziali;999;Altri assegni e sussidi assistenziali;13-07-2018;
1038;1;0;"236,00";"236,00";CAMPESI MANILA; ;RIMBORSO SPESE VIAGGIO STUDENTI PENDOLARI DELLE SCUOLE SECONDARIE DI II GRADO  A.S. 2017/2018-SALDO 70%.;13-07-2018;674;0;185;1;Spese correnti;4;Trasferimenti correnti;2;Trasferimenti correnti a Famiglie;2;Interventi assistenziali;999;Altri assegni e sussidi assistenziali;13-07-2018;
1039;1;0;"207,00";"207,00";MUNDINU MARISA; ;RIMBORSO SPESE VIAGGIO STUDENTI PENDOLARI DELLE SCUOLE SECONDARIE DI II GRADO  A.S. 2017/2018-SALDO 70%.;13-07-2018;674;0;185;1;Spese correnti;4;Trasferimenti correnti;2;Trasferimenti correnti a Famiglie;2;Interventi assistenziali;999;Altri assegni e sussidi assistenziali;13-07-2018;
1040;1;0;"207,00";"207,00";FRAU PAOLA; ;RIMBORSO SPESE VIAGGIO STUDENTI PENDOLARI DELLE SCUOLE SECONDARIE DI II GRADO  A.S. 2017/2018-SALDO 70%.;13-07-2018;674;0;185;1;Spese correnti;4;Trasferimenti correnti;2;Trasferimenti correnti a Famiglie;2;Interventi assistenziali;999;Altri assegni e sussidi assistenziali;13-07-2018;
1041;1;0;"207,00";"207,00";SECCHI LUCIA; ;RIMBORSO SPESE VIAGGIO STUDENTI PENDOLARI DELLE SCUOLE SECONDARIE DI II GRADO  A.S. 2017/2018-SALDO 70%.;13-07-2018;674;0;185;1;Spese correnti;4;Trasferimenti correnti;2;Trasferimenti correnti a Famiglie;2;Interventi assistenziali;999;Altri assegni e sussidi assistenziali;13-07-2018;
1042;1;0;"207,00";"207,00";SOLINAS MARIA ELENA; ;RIMBORSO SPESE VIAGGIO STUDENTI PENDOLARI DELLE SCUOLE SECONDARIE DI II GRADO  A.S. 2017/2018-SALDO 70%.;13-07-2018;674;0;185;1;Spese correnti;4;Trasferimenti correnti;2;Trasferimenti correnti a Famiglie;2;Interventi assistenziali;999;Altri assegni e sussidi assistenziali;13-07-2018;
1043;1;0;"118,00";"118,00";SERUSI SILVANA; ;RIMBORSO SPESE VIAGGIO STUDENTI PENDOLARI DELLE SCUOLE SECONDARIE DI II GRADO  A.S. 2017/2018-SALDO 70%.;13-07-2018;674;0;185;1;Spese correnti;4;Trasferimenti correnti;2;Trasferimenti correnti a Famiglie;2;Interventi assistenziali;999;Altri assegni e sussidi assistenziali;13-07-2018;
1044;1;0;"414,00";"414,00";OBINO PAOLO; ;RIMBORSO SPESE VIAGGIO STUDENTI PENDOLARI DELLE SCUOLE SECONDARIE DI II GRADO  A.S. 2017/2018-SALDO 70%.;13-07-2018;674;0;185;1;Spese correnti;4;Trasferimenti correnti;2;Trasferimenti correnti a Famiglie;2;Interventi assistenziali;999;Altri assegni e sussidi assistenziali;13-07-2018;
1045;1;0;"207,00";"207,00";CHESSA GRAZIETTA; ;RIMBORSO SPESE VIAGGIO STUDENTI PENDOLARI DELLE SCUOLE SECONDARIE DI II GRADO  A.S. 2017/2018-SALDO 70%.;13-07-2018;674;0;185;1;Spese correnti;4;Trasferimenti correnti;2;Trasferimenti correnti a Famiglie;2;Interventi assistenziali;999;Altri assegni e sussidi assistenziali;13-07-2018;
1046;1;0;"118,00";"118,00";LANGIU CONSUELO; ;RIMBORSO SPESE VIAGGIO STUDENTI PENDOLARI DELLE SCUOLE SECONDARIE DI II GRADO  A.S. 2017/2018-SALDO 70%.;13-07-2018;674;0;185;1;Spese correnti;4;Trasferimenti correnti;2;Trasferimenti correnti a Famiglie;2;Interventi assistenziali;999;Altri assegni e sussidi assistenziali;13-07-2018;
1047;1;0;"414,00";"414,00";MURGIA ROSALIA; ;RIMBORSO SPESE VIAGGIO STUDENTI PENDOLARI DELLE SCUOLE SECONDARIE DI II GRADO  A.S. 2017/2018-SALDO 70%.;13-07-2018;674;0;185;1;Spese correnti;4;Trasferimenti correnti;2;Trasferimenti correnti a Famiglie;2;Interventi assistenziali;999;Altri assegni e sussidi assistenziali;13-07-2018;
1048;1;0;"118,00";"118,00";DEMONTIS ANTONELLA; ;RIMBORSO SPESE VIAGGIO STUDENTI PENDOLARI DELLE SCUOLE SECONDARIE DI II GRADO  A.S. 2017/2018-SALDO 70%.;13-07-2018;674;0;185;1;Spese correnti;4;Trasferimenti correnti;2;Trasferimenti correnti a Famiglie;2;Interventi assistenziali;999;Altri assegni e sussidi assistenziali;13-07-2018;
1049;1;0;"207,00";"207,00";SOTGIU GAVINA; ;RIMBORSO SPESE VIAGGIO STUDENTI PENDOLARI DELLE SCUOLE SECONDARIE DI II GRADO  A.S. 2017/2018-SALDO 70%.;13-07-2018;674;0;185;1;Spese correnti;4;Trasferimenti correnti;2;Trasferimenti correnti a Famiglie;2;Interventi assistenziali;999;Altri assegni e sussidi assistenziali;13-07-2018;
1050;1;0;"414,00";"414,00";FURRU SILVANA; ;RIMBORSO SPESE VIAGGIO STUDENTI PENDOLARI DELLE SCUOLE SECONDARIE DI II GRADO  A.S. 2017/2018-SALDO 70%.;13-07-2018;674;0;185;1;Spese correnti;4;Trasferimenti correnti;2;Trasferimenti correnti a Famiglie;2;Interventi assistenziali;999;Altri assegni e sussidi assistenziali;13-07-2018;
1051;1;0;"857,00";"857,00";CHESSA MARIA GIOVANNA; ;RIMBORSO SPESE VIAGGIO STUDENTI PENDOLARI DELLE SCUOLE SECONDARIE DI II GRADO  A.S. 2017/2018-SALDO 70%.;13-07-2018;674;0;185;1;Spese correnti;4;Trasferimenti correnti;2;Trasferimenti correnti a Famiglie;2;Interventi assistenziali;999;Altri assegni e sussidi assistenziali;13-07-2018;
1052;1;0;"207,00";"207,00";COLOMAIU CHIARA; ;RIMBORSO SPESE VIAGGIO STUDENTI PENDOLARI DELLE SCUOLE SECONDARIE DI II GRADO  A.S. 2017/2018-SALDO 70%.;13-07-2018;674;0;185;1;Spese correnti;4;Trasferimenti correnti;2;Trasferimenti correnti a Famiglie;2;Interventi assistenziali;999;Altri assegni e sussidi assistenziali;13-07-2018;
1053;1;0;"319,00";"319,00";PULINAS CATERINA; ;RIMBORSO SPESE VIAGGIO STUDENTI PENDOLARI DELLE SCUOLE SECONDARIE DI II GRADO  A.S. 2017/2018-SALDO 70%.;13-07-2018;674;0;185;1;Spese correnti;4;Trasferimenti correnti;2;Trasferimenti correnti a Famiglie;2;Interventi assistenziali;999;Altri assegni e sussidi assistenziali;13-07-2018;
1054;1;0;"207,00";"207,00";FIORI OLGA; ;RIMBORSO SPESE VIAGGIO STUDENTI PENDOLARI DELLE SCUOLE SECONDARIE DI II GRADO  A.S. 2017/2018-SALDO 70%.;13-07-2018;674;0;185;1;Spese correnti;4;Trasferimenti correnti;2;Trasferimenti correnti a Famiglie;2;Interventi assistenziali;999;Altri assegni e sussidi assistenziali;13-07-2018;
1055;1;0;"207,00";"207,00";LADU MARIA CRISTINA; ;RIMBORSO SPESE VIAGGIO STUDENTI PENDOLARI DELLE SCUOLE SECONDARIE DI II GRADO  A.S. 2017/2018-SALDO 70%.;13-07-2018;674;0;185;1;Spese correnti;4;Trasferimenti correnti;2;Trasferimenti correnti a Famiglie;2;Interventi assistenziali;999;Altri assegni e sussidi assistenziali;13-07-2018;
1056;1;0;"118,00";"118,00";DETTORI MARIA LUISA; ;RIMBORSO SPESE VIAGGIO STUDENTI PENDOLARI DELLE SCUOLE SECONDARIE DI II GRADO  A.S. 2017/2018-SALDO 70%.;13-07-2018;674;0;185;1;Spese correnti;4;Trasferimenti correnti;2;Trasferimenti correnti a Famiglie;2;Interventi assistenziali;999;Altri assegni e sussidi assistenziali;13-07-2018;
1057;1;0;"325,00";"325,00";SOTGIU ANASTASIA; ;RIMBORSO SPESE VIAGGIO STUDENTI PENDOLARI DELLE SCUOLE SECONDARIE DI II GRADO  A.S. 2017/2018-SALDO 70%.;13-07-2018;674;0;185;1;Spese correnti;4;Trasferimenti correnti;2;Trasferimenti correnti a Famiglie;2;Interventi assistenziali;999;Altri assegni e sussidi assistenziali;13-07-2018;
1058;1;0;"118,00";"118,00";SPANU ANTONIETTA; ;RIMBORSO SPESE VIAGGIO STUDENTI PENDOLARI DELLE SCUOLE SECONDARIE DI II GRADO  A.S. 2017/2018-SALDO 70%.;13-07-2018;674;0;185;1;Spese correnti;4;Trasferimenti correnti;2;Trasferimenti correnti a Famiglie;2;Interventi assistenziali;999;Altri assegni e sussidi assistenziali;13-07-2018;
1059;1;0;"207,00";"207,00";VINCIS SILVANA; ;RIMBORSO SPESE VIAGGIO STUDENTI PENDOLARI DELLE SCUOLE SECONDARIE DI II GRADO  A.S. 2017/2018-SALDO 70%.;13-07-2018;674;0;185;1;Spese correnti;4;Trasferimenti correnti;2;Trasferimenti correnti a Famiglie;2;Interventi assistenziali;999;Altri assegni e sussidi assistenziali;13-07-2018;
1060;1;0;"207,00";"207,00";COCCO SARA; ;RIMBORSO SPESE VIAGGIO STUDENTI PENDOLARI DELLE SCUOLE SECONDARIE DI II GRADO  A.S. 2017/2018-SALDO 70%.;13-07-2018;674;0;185;1;Spese correnti;4;Trasferimenti correnti;2;Trasferimenti correnti a Famiglie;2;Interventi assistenziali;999;Altri assegni e sussidi assistenziali;13-07-2018;
1061;1;0;"371,00";"371,00";BARROCU ELEONORA FRANCA; ;RIMBORSO SPESE VIAGGIO STUDENTI PENDOLARI DELLE SCUOLE SECONDARIE DI II GRADO  A.S. 2017/2018-SALDO 70%.;13-07-2018;674;0;185;1;Spese correnti;4;Trasferimenti correnti;2;Trasferimenti correnti a Famiglie;2;Interventi assistenziali;999;Altri assegni e sussidi assistenziali;13-07-2018;
1062;1;0;"650,00";"650,00";BUA GIACOMINA; ;RIMBORSO SPESE VIAGGIO STUDENTI PENDOLARI DELLE SCUOLE SECONDARIE DI II GRADO  A.S. 2017/2018-SALDO 70%.;13-07-2018;674;0;185;1;Spese correnti;4;Trasferimenti correnti;2;Trasferimenti correnti a Famiglie;2;Interventi assistenziali;999;Altri assegni e sussidi assistenziali;13-07-2018;
1063;1;0;"650,00";"650,00";MARENIC VINCENZA; ;RIMBORSO SPESE VIAGGIO STUDENTI PENDOLARI DELLE SCUOLE SECONDARIE DI II GRADO  A.S. 2017/2018-SALDO 70%.;13-07-2018;674;0;185;1;Spese correnti;4;Trasferimenti correnti;2;Trasferimenti correnti a Famiglie;2;Interventi assistenziali;999;Altri assegni e sussidi assistenziali;13-07-2018;
1064;1;0;"650,00";"650,00";FIORI VALENTINA; ;RIMBORSO SPESE VIAGGIO STUDENTI PENDOLARI DELLE SCUOLE SECONDARIE DI II GRADO  A.S. 2017/2018-SALDO 70%.;13-07-2018;674;0;185;1;Spese correnti;4;Trasferimenti correnti;2;Trasferimenti correnti a Famiglie;2;Interventi assistenziali;999;Altri assegni e sussidi assistenziali;13-07-2018;
1065;1;0;"650,00";"650,00";SALIS VITTORIA; ;RIMBORSO SPESE VIAGGIO STUDENTI PENDOLARI DELLE SCUOLE SECONDARIE DI II GRADO  A.S. 2017/2018-SALDO 70%.;13-07-2018;674;0;185;1;Spese correnti;4;Trasferimenti correnti;2;Trasferimenti correnti a Famiglie;2;Interventi assistenziali;999;Altri assegni e sussidi assistenziali;13-07-2018;
1066;1;0;"650,00";"650,00";PUDDU CATERINA; ;RIMBORSO SPESE VIAGGIO STUDENTI PENDOLARI DELLE SCUOLE SECONDARIE DI II GRADO  A.S. 2017/2018-SALDO 70%.;13-07-2018;674;0;185;1;Spese correnti;4;Trasferimenti correnti;2;Trasferimenti correnti a Famiglie;2;Interventi assistenziali;999;Altri assegni e sussidi assistenziali;13-07-2018;
1067;1;0;"650,00";"650,00";BAZZU MONICA; ;RIMBORSO SPESE VIAGGIO STUDENTI PENDOLARI DELLE SCUOLE SECONDARIE DI II GRADO  A.S. 2017/2018-SALDO 70%.;13-07-2018;674;0;185;1;Spese correnti;4;Trasferimenti correnti;2;Trasferimenti correnti a Famiglie;2;Interventi assistenziali;999;Altri assegni e sussidi assistenziali;13-07-2018;
1068;1;0;"371,00";"371,00";MANNU NATASCIA; ;RIMBORSO SPESE VIAGGIO STUDENTI PENDOLARI DELLE SCUOLE SECONDARIE DI II GRADO  A.S. 2017/2018-SALDO 70%.;13-07-2018;674;0;185;1;Spese correnti;4;Trasferimenti correnti;2;Trasferimenti correnti a Famiglie;2;Interventi assistenziali;999;Altri assegni e sussidi assistenziali;13-07-2018;
1069;1;0;"371,00";"371,00";NICHOLSON SIOBHAN MARIA; ;RIMBORSO SPESE VIAGGIO STUDENTI PENDOLARI DELLE SCUOLE SECONDARIE DI II GRADO  A.S. 2017/2018-SALDO 70%.;13-07-2018;674;0;185;1;Spese correnti;4;Trasferimenti correnti;2;Trasferimenti correnti a Famiglie;2;Interventi assistenziali;999;Altri assegni e sussidi assistenziali;13-07-2018;
1070;1;0;"371,00";"371,00";FODDIS TERESA; ;RIMBORSO SPESE VIAGGIO STUDENTI PENDOLARI DELLE SCUOLE SECONDARIE DI II GRADO  A.S. 2017/2018-SALDO 70%.;13-07-2018;674;0;185;1;Spese correnti;4;Trasferimenti correnti;2;Trasferimenti correnti a Famiglie;2;Interventi assistenziali;999;Altri assegni e sussidi assistenziali;13-07-2018;
1071;1;0;"1.300,00";"1.300,00";PILIU FRANCESCO; ;RIMBORSO SPESE VIAGGIO STUDENTI PENDOLARI DELLE SCUOLE SECONDARIE DI II GRADO  A.S. 2017/2018-SALDO 70%.;13-07-2018;674;0;185;1;Spese correnti;4;Trasferimenti correnti;2;Trasferimenti correnti a Famiglie;2;Interventi assistenziali;999;Altri assegni e sussidi assistenziali;13-07-2018;
1072;1;0;"1.300,00";"1.300,00";SATTA LEONARDA; ;RIMBORSO SPESE VIAGGIO STUDENTI PENDOLARI DELLE SCUOLE SECONDARIE DI II GRADO  A.S. 2017/2018-SALDO 70%.;13-07-2018;674;0;185;1;Spese correnti;4;Trasferimenti correnti;2;Trasferimenti correnti a Famiglie;2;Interventi assistenziali;999;Altri assegni e sussidi assistenziali;13-07-2018;
1073;1;0;"650,00";"650,00";FRAU GIUSEPPINA; ;RIMBORSO SPESE VIAGGIO STUDENTI PENDOLARI DELLE SCUOLE SECONDARIE DI II GRADO  A.S. 2017/2018-SALDO 70%.;13-07-2018;674;0;185;1;Spese correnti;4;Trasferimenti correnti;2;Trasferimenti correnti a Famiglie;2;Interventi assistenziali;999;Altri assegni e sussidi assistenziali;13-07-2018;
1074;1;0;"650,00";"650,00";MASALA BARTOLOMEO; ;RIMBORSO SPESE VIAGGIO STUDENTI PENDOLARI DELLE SCUOLE SECONDARIE DI II GRADO  A.S. 2017/2018-SALDO 70%.;13-07-2018;674;0;185;1;Spese correnti;4;Trasferimenti correnti;2;Trasferimenti correnti a Famiglie;2;Interventi assistenziali;999;Altri assegni e sussidi assistenziali;13-07-2018;
1075;1;0;"339,90";"339,90";"CARLO DELFINO EDITORE &amp; C. S.N.C.";Z7D23AECDF;SALDO Fatt.n. 000586  del 10/07/2018;13-07-2018;714;0;134;1;Spese correnti;3;Acquisto di beni e servizi;1;Acquisto di beni;1;"Giornali, riviste e pubblicazioni";2;Pubblicazioni;13-07-2018;
1076;1;0;"1.247,88";"1.247,88";SIAE;Z5724577AA;Fatt.n. 1618020261 del 04/07/2018;16-07-2018;746;0;184;1;Spese correnti;3;Acquisto di beni e servizi;2;Acquisto di servizi;2;"Organizzazione eventi, pubblicita` e servizi per trasferta";5;Organizzazione e partecipazione a manifestazioni e convegni;16-07-2018;
1077;1;0;"1.214,40";"1.214,40";COOP. NUOVE IDEE;Z52230BA0F;Fatt.n. FATTPA 67_18 del 11/07/2018;16-07-2018;715;0;87;1;Spese correnti;3;Acquisto di beni e servizi;2;Acquisto di servizi;11;Prestazioni professionali e specialistiche;999;Altre prestazioni professionali e specialistiche n.a.c.;16-07-2018;
1078;1;0;"2.840,40";"2.840,40";HALLEY SARDEGNA SRL;Z9422A628B;Fatt.n. 0000909 del 12/07/2018;16-07-2018;82;2;75;1;Spese correnti;3;Acquisto di beni e servizi;2;Acquisto di servizi;19;Servizi informatici e di telecomunicazioni;1;Gestione e manutenzione applicazioni;16-07-2018;
1079;1;0;"151,76";"151,76";L'ARCOBALENO di Muggianu Rosanna;Z7D23AECDF;Fatt.n. 356B del 13/07/2018;17-07-2018;714;0;134;1;Spese correnti;3;Acquisto di beni e servizi;1;Acquisto di beni;1;"Giornali, riviste e pubblicazioni";2;Pubblicazioni;17-07-2018;
1080;1;0;"2.893,84";"2.893,84";PRECO SYSTEM  SRL;Z88240921B;Fatt.n. 74 del 28/06/2018;17-07-2018;3781;0;157;2;Spese in conto capitale;2;Investimenti fissi lordi e acquisto di terreni;1;Beni materiali;9;Beni immobili;15;Cimiteri;17-07-2018;
1081;1;0;"207,00";"207,00";CAMPESI TIZIANA; ;RIMBORSO SPESE VIAGGIO STUDENTI PENDOLARI DELLE SCUOLE SECONDARIE DI II GRADO  A.S. 2017/2018-SALDO 70%.;17-07-2018;674;0;185;1;Spese correnti;4;Trasferimenti correnti;2;Trasferimenti correnti a Famiglie;2;Interventi assistenziali;999;Altri assegni e sussidi assistenziali;17-07-2018;
1082;1;0;"366,00";"366,00";SINI CARLO;ZB32420D5F;Fatt.n. FATTPA 3_18 del 12/07/2018;17-07-2018;255;0;164;1;Spese correnti;3;Acquisto di beni e servizi;2;Acquisto di servizi;9;Manutenzione ordinaria e riparazioni;8;Manutenzione ordinaria e riparazioni di beni immobili;17-07-2018;
1083;1;0;"35,38";"35,38";"EDILCAMPUS S.N.C. DI CAMPUS MASSIMILIANO &amp; CAMPUS";ZA32380B04;Fatt.n. 6/PA del 30/06/2018;17-07-2018;1422;0;118;1;Spese correnti;3;Acquisto di beni e servizi;1;Acquisto di beni;2;Altri beni di consumo;999;Altri beni e materiali di consumo n.a.c.;17-07-2018;
1084;1;0;"1.903,20";"1.903,20";BRUNDU PIETRO;Z062437799;Fatt.n. FATTPA 6_18 del 14/07/2018;17-07-2018;2098;0;172;2;Spese in conto capitale;2;Investimenti fissi lordi e acquisto di terreni;3;Beni immateriali;5;Incarichi professionali per la realizzazione di investimenti;1;Incarichi professionali per la realizzazione di investimenti;17-07-2018;
1085;1;0;"5.200,00";"5.200,00";MANNU GIOVANNA MARIA; ;Approvazione Bando Contributi a privati per interventi volti al risparmio energetico. annualita 2018;18-07-2018;1820;0;99;1;Spese correnti;4;Trasferimenti correnti;2;Trasferimenti correnti a Famiglie;5;Altri trasferimenti a famiglie;999;Altri trasferimenti a famiglie n.a.c.;18-07-2018;
1086;1;0;"5.000,00";"5.000,00";SABA MARCELLINO; ;Approvazione Bando Contributi a privati per interventi volti al risparmio energetico. annualita 2018;18-07-2018;1820;0;99;1;Spese correnti;4;Trasferimenti correnti;2;Trasferimenti correnti a Famiglie;5;Altri trasferimenti a famiglie;999;Altri trasferimenti a famiglie n.a.c.;18-07-2018;
1087;1;0;"156,68";"156,68";SERVIZIO ELETTRICO NAZIONALE - SERVIZIO DI MAGGIOR TUTE;X7A192E4F0;Fatt.n. 907157770720013 del 10/07/2018;18-07-2018;1013;0;84;1;Spese correnti;3;Acquisto di beni e servizi;2;Acquisto di servizi;5;Utenze e canoni;4;Energia elettrica;18-07-2018;
1088;1;0;"71,27";"71,27";SERVIZIO ELETTRICO NAZIONALE - SERVIZIO DI MAGGIOR TUTE;Z731EA1467;Fatt.n. 907154150716013 del 10/07/2018;18-07-2018;1013;0;107;1;Spese correnti;3;Acquisto di beni e servizi;2;Acquisto di servizi;5;Utenze e canoni;4;Energia elettrica;18-07-2018;
1089;1;0;"27,41";"81,38";SERVIZIO ELETTRICO NAZIONALE - SERVIZIO DI MAGGIOR TUTE;ZAF225B6C9;Fatt.n. 907152430000413 del 10/07/2018;18-07-2018;1012;4;24;1;Spese correnti;3;Acquisto di beni e servizi;2;Acquisto di servizi;5;Utenze e canoni;4;Energia elettrica;18-07-2018;
1089;2;0;"53,97";"81,38";SERVIZIO ELETTRICO NAZIONALE - SERVIZIO DI MAGGIOR TUTE;ZAF225B6C9;Fatt.n. 907152430000313 del 10/07/2018;18-07-2018;1012;4;24;1;Spese correnti;3;Acquisto di beni e servizi;2;Acquisto di servizi;5;Utenze e canoni;4;Energia elettrica;18-07-2018;
1090;1;0;"117,50";"117,50";ENEL ENERGIA;Z6C22BB7C0;Fatt.n. 004811176651 del 09/07/2018;18-07-2018;1013;0;61;1;Spese correnti;3;Acquisto di beni e servizi;2;Acquisto di servizi;5;Utenze e canoni;4;Energia elettrica;18-07-2018;
1091;1;0;"327,53";"327,53";ENEL ENERGIA;Z83225B9A2;Fatt.n. 004811176640 del 09/07/2018;18-07-2018;1300;0;58;1;Spese correnti;3;Acquisto di beni e servizi;1;Acquisto di beni;2;Altri beni di consumo;999;Altri beni e materiali di consumo n.a.c.;18-07-2018;
1092;1;0;"218,04";"218,04";ENEL ENERGIA;Z83225B9A2;Fatt.n. 004811176641 del 09/07/2018;18-07-2018;1488;3;28;1;Spese correnti;3;Acquisto di beni e servizi;2;Acquisto di servizi;5;Utenze e canoni;4;Energia elettrica;18-07-2018;
1093;1;0;"68,71";"68,71";ENEL ENERGIA;Z6C22BB7C0;Fatt.n. 004811176650 del 09/07/2018;18-07-2018;1013;0;61;1;Spese correnti;3;Acquisto di beni e servizi;2;Acquisto di servizi;5;Utenze e canoni;4;Energia elettrica;18-07-2018;
1094;1;0;"15,34";"15,34";ENEL ENERGIA;ZB5225B867;Fatt.n. 004811174992 del 09/07/2018;18-07-2018;1012;4;26;1;Spese correnti;3;Acquisto di beni e servizi;2;Acquisto di servizi;5;Utenze e canoni;4;Energia elettrica;18-07-2018;
1095;1;0;"609,18";"609,18";ENEL ENERGIA;ZB5225B867;Fatt.n. 004811175489 del 09/07/2018;18-07-2018;1012;4;26;1;Spese correnti;3;Acquisto di beni e servizi;2;Acquisto di servizi;5;Utenze e canoni;4;Energia elettrica;18-07-2018;
1096;1;0;"76,18";"76,18";ENEL ENERGIA;ZB5225B867;Fatt.n. 004811175490 del 09/07/2018;18-07-2018;1012;4;26;1;Spese correnti;3;Acquisto di beni e servizi;2;Acquisto di servizi;5;Utenze e canoni;4;Energia elettrica;18-07-2018;
1097;1;0;"1.281,16";"1.281,16";ENEL ENERGIA;ZB5225B867;Fatt.n. 004811175491 del 09/07/2018;18-07-2018;1012;4;26;1;Spese correnti;3;Acquisto di beni e servizi;2;Acquisto di servizi;5;Utenze e canoni;4;Energia elettrica;18-07-2018;
1098;1;0;"157,72";"157,72";ENEL ENERGIA;ZB5225B867;Fatt.n. 004811175492 del 09/07/2018;18-07-2018;1012;4;26;1;Spese correnti;3;Acquisto di beni e servizi;2;Acquisto di servizi;5;Utenze e canoni;4;Energia elettrica;18-07-2018;
1099;1;0;"499,27";"499,27";SATTA MARCO;ZBF1FDD689;Fatt.n. 3/A del 11/07/2018 Predisposizione domanda bando PSR;18-07-2018;254;0;177;1;Spese correnti;3;Acquisto di beni e servizi;2;Acquisto di servizi;11;Prestazioni professionali e specialistiche;999;Altre prestazioni professionali e specialistiche n.a.c.;18-07-2018;
1100;1;0;"5.359,11";"5.359,11";MURGIA GIACOMO;Z692342108;Fatt.n. 1/A del 17/07/2018 REALIZZAZIONE CADITOIA STRADALE VIA SAN GIUSEPPE - RIPRISTINO TRATTO STRADALE VIA AMSICORA;18-07-2018;3121;0;115;2;Spese in conto capitale;2;Investimenti fissi lordi e acquisto di terreni;1;Beni materiali;9;Beni immobili;12;Infrastrutture stradali;18-07-2018;
1101;1;0;"2.537,60";"2.537,60";MELONI GIAMMARIA;Z9923AB89C;Fatt.n. FATTPA 2_18 del 17/07/2018 INCARICO PER PRESENTAZIONE ALLA RAS DELLA RICHIESTA DI AUTORIZZAZIONE ALLA PROSECUZIONE DELL'ESERCIZIO - SBARRAMENTO IN LOC. SA RUINOSA;18-07-2018;2098;0;137;2;Spese in conto capitale;2;Investimenti fissi lordi e acquisto di terreni;3;Beni immateriali;5;Incarichi professionali per la realizzazione di investimenti;1;Incarichi professionali per la realizzazione di investimenti;18-07-2018;
1102;1;0;"55,63";"55,63";SERVIZIO ELETTRICO NAZIONALE - SERVIZIO DI MAGGIOR TUTE;ZAF225B6C9;Fatt.n. 907152430000213 del 10/07/2018;18-07-2018;1012;4;24;1;Spese correnti;3;Acquisto di beni e servizi;2;Acquisto di servizi;5;Utenze e canoni;4;Energia elettrica;18-07-2018;
1103;1;0;"1.993,68";"1.993,68";SODEXO Motivation Solutions;Z2D22E446E;SALDO Fatt.n. VY18700104  del 01/06/2018 SCISSIONE DEI PAGAMENTI - IVA  ex.art. 17-ter DPR 633/72;18-07-2018;82;0;138;1;Spese correnti;3;Acquisto di beni e servizi;1;Acquisto di beni;2;Altri beni di consumo;999;Altri beni e materiali di consumo n.a.c.;18-07-2018;
1140;1;0;"1.260,55";"1.260,55";TESORERIA PROV.LE DELLO STATO; ;CODICE CA01299934K DEPOSITI DEFINITIVI DITTA SANNA;19-07-2018;2611;0;243;2;Spese in conto capitale;2;Investimenti fissi lordi e acquisto di terreni;1;Beni materiali;9;Beni immobili;999;Beni immobili n.a.c.;19-07-2018;
1141;1;0;"2.744,95";"2.744,95";TESORERIA PROV.LE DELLO STATO; ;ACCONTO CODICE CA01325044Q DEPOSITI DEFINITIVI MIGALI SALVATORE  ESPROPRI COMPLETAMENTO VIA SAN GIUSEPPE. DET. N. 21/2016;19-07-2018;3070;0;324;2;Spese in conto capitale;2;Investimenti fissi lordi e acquisto di terreni;1;Beni materiali;9;Beni immobili;13;Altre vie di comunicazione;19-07-2018;
1142;1;0;"243,05";"243,05";TESORERIA PROV.LE DELLO STATO; ;SALDO CODICE CA01325044Q DEPOSITI DEFINITIVI MIGALI SALVATORE  ESPROPRI COMPLETAMENTO VIA SAN GIUSEPPE. DET. N. 21/2016;19-07-2018;3121;0;340;2;Spese in conto capitale;2;Investimenti fissi lordi e acquisto di terreni;1;Beni materiali;9;Beni immobili;12;Infrastrutture stradali;19-07-2018;
1143;1;0;"101,02";"101,02";ENEL ENERGIA;ZE4229C6A4;Fatt.n. 004811203824 del 12/07/2018;19-07-2018;824;0;39;1;Spese correnti;3;Acquisto di beni e servizi;2;Acquisto di servizi;5;Utenze e canoni;4;Energia elettrica;19-07-2018;
1144;1;0;"37,49";"37,49";MC LINK SPA;ZEE229F76B;Fatt.n. 610001782 del 06/07/2018 FATTURA DI VENDITA SERVIZI;19-07-2018;118;3;48;1;Spese correnti;3;Acquisto di beni e servizi;2;Acquisto di servizi;5;Utenze e canoni;1;Telefonia fissa;19-07-2018;
1145;1;0;"330,22";"330,22";FATICONI;Z332447005;Fatt.n. 000819PA del 16/07/2018;19-07-2018;82;3;179;1;Spese correnti;3;Acquisto di beni e servizi;1;Acquisto di beni;2;Altri beni di consumo;6;Materiale informatico;19-07-2018;
1146;1;0;"2.074,00";"2.074,00";ORVEI COOPERATIVA SOCIALE ONLUS;ZE822BC39A;"Fatt.n. 13/PA del 19/07/2018 LAVORI DI PIANTUMAZIONE ALBERI, POTATURA OLIVI, RIPRISTINO PARCOGIOCHI. CIG ZE822BC39A IMPEGNO DI SPESA N. 35 DEL 13/03/2018.";20-07-2018;3413;0;63;2;Spese in conto capitale;5;Altre spese in conto capitale;99;Altre spese in conto capitale n.a.c.;99;Altre spese in conto capitale n.a.c.;999;Altre spese in conto capitale n.a.c.;20-07-2018;
1147;1;0;"854,00";"854,00";ORVEI COOPERATIVA SOCIALE ONLUS;ZCB2396B00;Fatt.n. 14/PA del 19/07/2018 IMPEGNO DI SPESA N.77 DEL 10/05/2018.;20-07-2018;3121;0;128;2;Spese in conto capitale;2;Investimenti fissi lordi e acquisto di terreni;1;Beni materiali;9;Beni immobili;12;Infrastrutture stradali;20-07-2018;
1148;1;0;"915,00";"915,00";ORVEI COOPERATIVA SOCIALE ONLUS;ZAC2426E83;Fatt.n. 15/PA del 19/07/2018 IMPEGNO DI SPESA N. 113 DEL 26/06/2018.;20-07-2018;1302;0;163;1;Spese correnti;3;Acquisto di beni e servizi;2;Acquisto di servizi;13;Servizi ausiliari per il funzionamento dell'ente;999;Altri servizi ausiliari n.a.c.;20-07-2018;
1149;1;0;"207,00";"207,00";FOIS GIOVANNA; ;RIMBORSO SPESE VIAGGIO STUDENTI PENDOLARI DELLE SCUOLE SECONDARIE DI II GRADO  A.S. 2017/2018-SALDO 70%.;24-07-2018;674;0;185;1;Spese correnti;4;Trasferimenti correnti;2;Trasferimenti correnti a Famiglie;2;Interventi assistenziali;999;Altri assegni e sussidi assistenziali;24-07-2018;
1150;1;0;"207,00";"207,00";MANNU MARINELLA; ;RIMBORSO SPESE VIAGGIO STUDENTI PENDOLARI DELLE SCUOLE SECONDARIE DI II GRADO  A.S. 2017/2018-SALDO 70%.;24-07-2018;674;0;185;1;Spese correnti;4;Trasferimenti correnti;2;Trasferimenti correnti a Famiglie;2;Interventi assistenziali;999;Altri assegni e sussidi assistenziali;24-07-2018;
1151;1;0;"118,00";"118,00";PUDDU ELVEZIO; ;RIMBORSO SPESE VIAGGIO STUDENTI PENDOLARI DELLE SCUOLE SECONDARIE DI II GRADO  A.S. 2017/2018-SALDO 70%.;24-07-2018;674;0;185;1;Spese correnti;4;Trasferimenti correnti;2;Trasferimenti correnti a Famiglie;2;Interventi assistenziali;999;Altri assegni e sussidi assistenziali;24-07-2018;
1152;1;0;"1.250,00";"1.250,00";COMITATO CARNEVALE TULESE;Z5724577AA;OOrganizzazione Rassegna estiva denominata E-STATE A TULA 2018. ACCONTO FESTA EMIGRATO;24-07-2018;746;0;184;1;Spese correnti;3;Acquisto di beni e servizi;2;Acquisto di servizi;2;"Organizzazione eventi, pubblicita` e servizi per trasferta";5;Organizzazione e partecipazione a manifestazioni e convegni;24-07-2018;
1153;1;0;"2.280,00";"2.280,00";Gruppo Folk San Giorgio USINI;Z5724577AA;Organizzazione Rassegna estiva denominata E-STATE A TULA 2018. ACCONTO FESTA SANT'ALENE E EMIGRADOS.;24-07-2018;746;0;184;1;Spese correnti;3;Acquisto di beni e servizi;2;Acquisto di servizi;2;"Organizzazione eventi, pubblicita` e servizi per trasferta";5;Organizzazione e partecipazione a manifestazioni e convegni;24-07-2018;
1155;1;0;"1.399,08";"1.399,08";PERSONALE DIVERSO (Confr.Allegato); ;INDENNITA' MESE DI: LUGLIO 18;24-07-2018;14;1;15;1;Spese correnti;3;Acquisto di beni e servizi;2;Acquisto di servizi;1;Organi e incarichi istituzionali dell'amministrazione;1;Organi istituzionali dell'amministrazione - Indennità;24-07-2018;
1159;1;0;"231,34";"231,34";ENEL ENERGIA;Z5C23A1DEC;Fatt.n. 004811176652 del 09/07/2018;24-07-2018;566;4;130;1;Spese correnti;3;Acquisto di beni e servizi;2;Acquisto di servizi;5;Utenze e canoni;4;Energia elettrica;24-07-2018;
1160;1;0;"270,00";"270,00";OMESSO NOMINATIVO NEL RISPETTO DELLA NORMATIVA SULLA PROTEZIONE DATI PERSONALI; ;IMPEGNO DI SPESA PER PIANI PERSONALIZZATI IN SOSTEGNO DELLE PERSONE CON DISABILITA' GRAVE DI CUI ALLA L.162/1998 -DGR 55/12 DEL 31.12.2017.;24-07-2018;1420;2;142;1;Spese correnti;4;Trasferimenti correnti;2;Trasferimenti correnti a Famiglie;2;Interventi assistenziali;999;Altri assegni e sussidi assistenziali;24-07-2018;
1161;1;0;"215,18";"215,18";OMESSO NOMINATIVO NEL RISPETTO DELLA NORMATIVA SULLA PROTEZIONE DATI PERSONALI; ;IMPEGNO DI SPESA PER PIANI PERSONALIZZATI IN SOSTEGNO DELLE PERSONE CON DISABILITA' GRAVE DI CUI ALLA L.162/1998 -DGR 55/12 DEL 31.12.2017.;24-07-2018;1420;2;142;1;Spese correnti;4;Trasferimenti correnti;2;Trasferimenti correnti a Famiglie;2;Interventi assistenziali;999;Altri assegni e sussidi assistenziali;24-07-2018;
1162;1;0;"500,00";"500,00";SEU SILVIA; ;IMPEGNO DI SPESA PER INTERVENTO DENOMINATO BONUS BEBE'-ANNO 2018.;24-07-2018;1430;0;82;1;Spese correnti;4;Trasferimenti correnti;2;Trasferimenti correnti a Famiglie;2;Interventi assistenziali;999;Altri assegni e sussidi assistenziali;24-07-2018;
1163;1;0;"100,00";"100,00";OMESSO NOMINATIVO NEL RISPETTO DELLA NORMATIVA SULLA PROTEZIONE DATI PERSONALI; ;IMPEGNO DI SPESA SERVIZI ALLA PERSONA-CONCESSIONE CONTRIBUTO ECONOMICO.;24-07-2018;1434;0;123;1;Spese correnti;4;Trasferimenti correnti;2;Trasferimenti correnti a Famiglie;2;Interventi assistenziali;999;Altri assegni e sussidi assistenziali;24-07-2018;
1164;1;0;"604,00";"604,00";OMESSO NOMINATIVO NEL RISPETTO DELLA NORMATIVA SULLA PROTEZIONE DATI PERSONALI; ;IMPEGNO DI SPESA E PRESA IN CARICO L.R. 20/1997- ANNO 2018.;24-07-2018;1438;0;178;1;Spese correnti;4;Trasferimenti correnti;2;Trasferimenti correnti a Famiglie;2;Interventi assistenziali;999;Altri assegni e sussidi assistenziali;24-07-2018;
1165;1;0;"1.445,90";"1.445,90";OMESSO NOMINATIVO NEL RISPETTO DELLA NORMATIVA SULLA PROTEZIONE DATI PERSONALI;7394433F22;Fatt.n. X-748 del 05/07/2018;31-07-2018;1412;1;85;1;Spese correnti;3;Acquisto di beni e servizi;2;Acquisto di servizi;15;Contratti di servizio pubblico;8;Contratti di servizio di assistenza sociale residenziale e semiresidenziale;31-07-2018;
1166;1;0;"118,00";"118,00";BRUNDU TONINO; ;RIMBORSO SPESE VIAGGIO STUDENTI PENDOLARI DELLE SCUOLE SECONDARIE DI II GRADO  A.S. 2017/2018-SALDO 70%.;31-07-2018;674;0;185;1;Spese correnti;4;Trasferimenti correnti;2;Trasferimenti correnti a Famiglie;2;Interventi assistenziali;999;Altri assegni e sussidi assistenziali;31-07-2018;
1167;1;0;"346,14";"346,14";OMESSO NOMINATIVO NEL RISPETTO DELLA NORMATIVA SULLA PROTEZIONE DATI PERSONALI; ;IMPEGNO DI SPESA PER PIANI PERSONALIZZATI IN SOSTEGNO DELLE PERSONE CON DISABILITA' GRAVE DI CUI ALLA L.162/1998 -DGR 55/12 DEL 31.12.2017.;31-07-2018;1420;2;142;1;Spese correnti;4;Trasferimenti correnti;2;Trasferimenti correnti a Famiglie;2;Interventi assistenziali;999;Altri assegni e sussidi assistenziali;31-07-2018;
1168;1;0;"165,15";"165,15";OMESSO NOMINATIVO NEL RISPETTO DELLA NORMATIVA SULLA PROTEZIONE DATI PERSONALI; ;IMPEGNO DI SPESA PER PIANI PERSONALIZZATI IN SOSTEGNO DELLE PERSONE CON DISABILITA' GRAVE DI CUI ALLA L.162/1998 -DGR 55/12 DEL 31.12.2017.;31-07-2018;1420;2;142;1;Spese correnti;4;Trasferimenti correnti;2;Trasferimenti correnti a Famiglie;2;Interventi assistenziali;999;Altri assegni e sussidi assistenziali;31-07-2018;
1169;1;0;"420,65";"420,65";OMESSO NOMINATIVO NEL RISPETTO DELLA NORMATIVA SULLA PROTEZIONE DATI PERSONALI; ;IMPEGNO DI SPESA PER PIANI PERSONALIZZATI IN SOSTEGNO DELLE PERSONE CON DISABILITA' GRAVE DI CUI ALLA L.162/1998 -DGR 55/12 DEL 31.12.2017.;31-07-2018;1420;2;142;1;Spese correnti;4;Trasferimenti correnti;2;Trasferimenti correnti a Famiglie;2;Interventi assistenziali;999;Altri assegni e sussidi assistenziali;31-07-2018;
1171;1;0;"280,60";"280,60";CHIRIGONI ALESSANDRO;ZD923F25A2;Fatt.n. 08PA_18 del 13/06/2018;31-07-2018;82;1;147;1;Spese correnti;3;Acquisto di beni e servizi;2;Acquisto di servizi;9;Manutenzione ordinaria e riparazioni;11;Manutenzione ordinaria e riparazioni di altri beni materiali;31-07-2018;
1173;1;0;"287,36";"287,36";L'ARCOBALENO di Muggianu Rosanna;Z7D23AECDF;Fatt.n. 384B del 30/07/2018;01-08-2018;714;0;134;1;Spese correnti;3;Acquisto di beni e servizi;1;Acquisto di beni;1;"Giornali, riviste e pubblicazioni";2;Pubblicazioni;01-08-2018;
1174;1;0;"4.270,00";"4.270,00";MURGIA GIACOMO;Z1C2462ECC;Fatt.n. 2/A del 25/07/2018 REALIZZAZIONE NUOVA CONDOTTA ACQUE BIANCHE IN VIA SAN GIUSEPPE;01-08-2018;3121;0;192;2;Spese in conto capitale;2;Investimenti fissi lordi e acquisto di terreni;1;Beni materiali;9;Beni immobili;12;Infrastrutture stradali;01-08-2018;
1175;1;0;"416,00";"416,00";FARINA ANTEA;ZCE2406639;Fatt.n. 1PA del 25/07/2018;01-08-2018;254;0;155;1;Spese correnti;3;Acquisto di beni e servizi;2;Acquisto di servizi;11;Prestazioni professionali e specialistiche;999;Altre prestazioni professionali e specialistiche n.a.c.;01-08-2018;
1176;1;0;"2.989,00";"2.989,00";PUDDU PALMIRO;Z23243B361;Fatt.n. 03/PA/2018 del 26/07/2018 SERVIZIO;01-08-2018;3126;0;175;2;Spese in conto capitale;2;Investimenti fissi lordi e acquisto di terreni;1;Beni materiali;9;Beni immobili;14;Opere per la sistemazione del suolo;01-08-2018;
1177;1;0;"1.159,00";"1.159,00";MONGILI FRANCO;Z802485748;Fatt.n. 5PA del 30/07/2018;01-08-2018;3121;0;200;2;Spese in conto capitale;2;Investimenti fissi lordi e acquisto di terreni;1;Beni materiali;9;Beni immobili;12;Infrastrutture stradali;01-08-2018;
1178;1;0;"3.549,07";"3.549,07";ORVEI COOPERATIVA SOCIALE ONLUS;Z3E2138775;"Fatt.n. 16/PA del 31/07/2018 LAVORI DI MANUTENZIONE VERDE, CIMITERO, PULIZIA STRADE, PULIZIA SORGENTI, MANUTENZIONE IMPIANTI DI IRRIGAZIONE - CIG Z3E2138775 DET. N.431 DEL 29/12/2017 LUGLIO 2018";01-08-2018;1264;0;8;1;Spese correnti;3;Acquisto di beni e servizi;2;Acquisto di servizi;15;Contratti di servizio pubblico;4;Contratti di servizio per la raccolta rifiuti;01-08-2018;
1179;1;0;"74,01";"74,01";FIORI MARIO;Z1A21931AC;Fatt.n. FATTPA 7_18 del 01/08/2018;01-08-2018;1300;8;2;1;Spese correnti;3;Acquisto di beni e servizi;1;Acquisto di beni;2;Altri beni di consumo;2;"Carburanti, combustibili e lubrificanti";01-08-2018;
1180;1;0;"200,00";"200,00";OMESSO NOMINATIVO NEL RISPETTO DELLA NORMATIVA SULLA PROTEZIONE DATI PERSONALI; ;IMPEGNO DI SPESA PER CONTRIBUTO A FAVORE DI CITTADINI SOFFERENTI MENTALI INSERITI IN STRUTTURE RESIDENZIALI ANNUALITA' 2018.;01-08-2018;1412;0;3;1;Spese correnti;3;Acquisto di beni e servizi;2;Acquisto di servizi;15;Contratti di servizio pubblico;8;Contratti di servizio di assistenza sociale residenziale e semiresidenziale;01-08-2018;
1181;1;0;"300,00";"300,00";OMESSO NOMINATIVO NEL RISPETTO DELLA NORMATIVA SULLA PROTEZIONE DATI PERSONALI; ;IMPEGNO DI SPESA PER CONTRIBUTO A FAVORE DI CITTADINI SOFFERENTI MENTALI INSERITI IN STRUTTURE RESIDENZIALI ANNUALITA' 2018.;01-08-2018;1412;0;3;1;Spese correnti;3;Acquisto di beni e servizi;2;Acquisto di servizi;15;Contratti di servizio pubblico;8;Contratti di servizio di assistenza sociale residenziale e semiresidenziale;01-08-2018;
1182;1;0;"1.089,55";"1.089,55";OMESSO NOMINATIVO NEL RISPETTO DELLA NORMATIVA SULLA PROTEZIONE DATI PERSONALI; ;IMPEGNO DI SPESA PER PIANI PERSONALIZZATI IN SOSTEGNO DELLE PERSONE CON DISABILITA' GRAVE DI CUI ALLA L.162/1998 -DGR 55/12 DEL 31.12.2017.;01-08-2018;1420;2;142;1;Spese correnti;4;Trasferimenti correnti;2;Trasferimenti correnti a Famiglie;2;Interventi assistenziali;999;Altri assegni e sussidi assistenziali;01-08-2018;
1183;1;0;"101,08";"101,08";OMESSO NOMINATIVO NEL RISPETTO DELLA NORMATIVA SULLA PROTEZIONE DATI PERSONALI; ;IMPEGNO DI SPESA PER PIANI PERSONALIZZATI IN SOSTEGNO DELLE PERSONE CON DISABILITA' GRAVE DI CUI ALLA L.162/1998 -DGR 55/12 DEL 31.12.2017.;01-08-2018;1420;2;142;1;Spese correnti;4;Trasferimenti correnti;2;Trasferimenti correnti a Famiglie;2;Interventi assistenziali;999;Altri assegni e sussidi assistenziali;01-08-2018;
1184;1;0;"216,92";"216,92";OMESSO NOMINATIVO NEL RISPETTO DELLA NORMATIVA SULLA PROTEZIONE DATI PERSONALI; ;IMPEGNO DI SPESA PER PIANI PERSONALIZZATI IN SOSTEGNO DELLE PERSONE CON DISABILITA' GRAVE DI CUI ALLA L.162/1998 -DGR 55/12 DEL 31.12.2017.;01-08-2018;1420;2;142;1;Spese correnti;4;Trasferimenti correnti;2;Trasferimenti correnti a Famiglie;2;Interventi assistenziali;999;Altri assegni e sussidi assistenziali;01-08-2018;
1185;1;0;"114,84";"114,84";OMESSO NOMINATIVO NEL RISPETTO DELLA NORMATIVA SULLA PROTEZIONE DATI PERSONALI; ;IMPEGNO DI SPESA PER PIANI PERSONALIZZATI IN SOSTEGNO DELLE PERSONE CON DISABILITA' GRAVE DI CUI ALLA L.162/1998 -DGR 55/12 DEL 31.12.2017.;01-08-2018;1420;2;142;1;Spese correnti;4;Trasferimenti correnti;2;Trasferimenti correnti a Famiglie;2;Interventi assistenziali;999;Altri assegni e sussidi assistenziali;01-08-2018;
1186;1;0;"115,38";"115,38";OMESSO NOMINATIVO NEL RISPETTO DELLA NORMATIVA SULLA PROTEZIONE DATI PERSONALI; ;IMPEGNO DI SPESA PER PIANI PERSONALIZZATI IN SOSTEGNO DELLE PERSONE CON DISABILITA' GRAVE DI CUI ALLA L.162/1998 -DGR 55/12 DEL 31.12.2017.;01-08-2018;1420;2;142;1;Spese correnti;4;Trasferimenti correnti;2;Trasferimenti correnti a Famiglie;2;Interventi assistenziali;999;Altri assegni e sussidi assistenziali;01-08-2018;
1187;1;0;"50,76";"50,76";OMESSO NOMINATIVO NEL RISPETTO DELLA NORMATIVA SULLA PROTEZIONE DATI PERSONALI; ;IMPEGNO DI SPESA PER PIANI PERSONALIZZATI IN SOSTEGNO DELLE PERSONE CON DISABILITA' GRAVE DI CUI ALLA L.162/1998 -DGR 55/12 DEL 31.12.2017.;01-08-2018;1420;2;142;1;Spese correnti;4;Trasferimenti correnti;2;Trasferimenti correnti a Famiglie;2;Interventi assistenziali;999;Altri assegni e sussidi assistenziali;01-08-2018;
1188;1;0;"148,26";"148,26";OMESSO NOMINATIVO NEL RISPETTO DELLA NORMATIVA SULLA PROTEZIONE DATI PERSONALI; ;IMPEGNO DI SPESA PER PIANI PERSONALIZZATI IN SOSTEGNO DELLE PERSONE CON DISABILITA' GRAVE DI CUI ALLA L.162/1998 -DGR 55/12 DEL 31.12.2017.;01-08-2018;1420;2;142;1;Spese correnti;4;Trasferimenti correnti;2;Trasferimenti correnti a Famiglie;2;Interventi assistenziali;999;Altri assegni e sussidi assistenziali;01-08-2018;
1189;1;0;"283,41";"283,41";OMESSO NOMINATIVO NEL RISPETTO DELLA NORMATIVA SULLA PROTEZIONE DATI PERSONALI; ;IMPEGNO DI SPESA PER PIANI PERSONALIZZATI IN SOSTEGNO DELLE PERSONE CON DISABILITA' GRAVE DI CUI ALLA L.162/1998 -DGR 55/12 DEL 31.12.2017.;01-08-2018;1420;2;142;1;Spese correnti;4;Trasferimenti correnti;2;Trasferimenti correnti a Famiglie;2;Interventi assistenziali;999;Altri assegni e sussidi assistenziali;01-08-2018;
1190;1;0;"154,81";"154,81";OMESSO NOMINATIVO NEL RISPETTO DELLA NORMATIVA SULLA PROTEZIONE DATI PERSONALI; ;IMPEGNO DI SPESA PER PIANI PERSONALIZZATI IN SOSTEGNO DELLE PERSONE CON DISABILITA' GRAVE DI CUI ALLA L.162/1998 -DGR 55/12 DEL 31.12.2017.;01-08-2018;1420;2;142;1;Spese correnti;4;Trasferimenti correnti;2;Trasferimenti correnti a Famiglie;2;Interventi assistenziali;999;Altri assegni e sussidi assistenziali;01-08-2018;
1191;1;0;"135,51";"135,51";OMESSO NOMINATIVO NEL RISPETTO DELLA NORMATIVA SULLA PROTEZIONE DATI PERSONALI; ;IMPEGNO DI SPESA PER PIANI PERSONALIZZATI IN SOSTEGNO DELLE PERSONE CON DISABILITA' GRAVE DI CUI ALLA L.162/1998 -DGR 55/12 DEL 31.12.2017.;01-08-2018;1420;2;142;1;Spese correnti;4;Trasferimenti correnti;2;Trasferimenti correnti a Famiglie;2;Interventi assistenziali;999;Altri assegni e sussidi assistenziali;01-08-2018;
1192;1;0;"154,81";"154,81";OMESSO NOMINATIVO NEL RISPETTO DELLA NORMATIVA SULLA PROTEZIONE DATI PERSONALI; ;IMPEGNO DI SPESA PER PIANI PERSONALIZZATI IN SOSTEGNO DELLE PERSONE CON DISABILITA' GRAVE DI CUI ALLA L.162/1998 -DGR 55/12 DEL 31.12.2017.;01-08-2018;1420;2;142;1;Spese correnti;4;Trasferimenti correnti;2;Trasferimenti correnti a Famiglie;2;Interventi assistenziali;999;Altri assegni e sussidi assistenziali;01-08-2018;
1193;1;0;"187,50";"187,50";OMESSO NOMINATIVO NEL RISPETTO DELLA NORMATIVA SULLA PROTEZIONE DATI PERSONALI; ;IMPEGNO DI SPESA PER PIANI PERSONALIZZATI IN SOSTEGNO DELLE PERSONE CON DISABILITA' GRAVE DI CUI ALLA L.162/1998 -DGR 55/12 DEL 31.12.2017.;01-08-2018;1420;2;142;1;Spese correnti;4;Trasferimenti correnti;2;Trasferimenti correnti a Famiglie;2;Interventi assistenziali;999;Altri assegni e sussidi assistenziali;01-08-2018;
1194;1;0;"130,00";"130,00";OMESSO NOMINATIVO NEL RISPETTO DELLA NORMATIVA SULLA PROTEZIONE DATI PERSONALI; ;IMPEGNO DI SPESA PER PIANI PERSONALIZZATI IN SOSTEGNO DELLE PERSONE CON DISABILITA' GRAVE DI CUI ALLA L.162/1998 -DGR 55/12 DEL 31.12.2017.;01-08-2018;1420;2;142;1;Spese correnti;4;Trasferimenti correnti;2;Trasferimenti correnti a Famiglie;2;Interventi assistenziali;999;Altri assegni e sussidi assistenziali;01-08-2018;
1195;1;0;"160,74";"160,74";OMESSO NOMINATIVO NEL RISPETTO DELLA NORMATIVA SULLA PROTEZIONE DATI PERSONALI; ;IMPEGNO DI SPESA PER PIANI PERSONALIZZATI IN SOSTEGNO DELLE PERSONE CON DISABILITA' GRAVE DI CUI ALLA L.162/1998 -DGR 55/12 DEL 31.12.2017.;01-08-2018;1420;2;142;1;Spese correnti;4;Trasferimenti correnti;2;Trasferimenti correnti a Famiglie;2;Interventi assistenziali;999;Altri assegni e sussidi assistenziali;01-08-2018;
1196;1;0;"113,57";"113,57";OMESSO NOMINATIVO NEL RISPETTO DELLA NORMATIVA SULLA PROTEZIONE DATI PERSONALI; ;IMPEGNO DI SPESA PER PIANI PERSONALIZZATI IN SOSTEGNO DELLE PERSONE CON DISABILITA' GRAVE DI CUI ALLA L.162/1998 -DGR 55/12 DEL 31.12.2017.;01-08-2018;1420;2;142;1;Spese correnti;4;Trasferimenti correnti;2;Trasferimenti correnti a Famiglie;2;Interventi assistenziali;999;Altri assegni e sussidi assistenziali;01-08-2018;
1197;1;0;"172,47";"172,47";OMESSO NOMINATIVO NEL RISPETTO DELLA NORMATIVA SULLA PROTEZIONE DATI PERSONALI; ;IMPEGNO DI SPESA PER PIANI PERSONALIZZATI IN SOSTEGNO DELLE PERSONE CON DISABILITA' GRAVE DI CUI ALLA L.162/1998 -DGR 55/12 DEL 31.12.2017.;01-08-2018;1420;2;142;1;Spese correnti;4;Trasferimenti correnti;2;Trasferimenti correnti a Famiglie;2;Interventi assistenziali;999;Altri assegni e sussidi assistenziali;01-08-2018;
1198;1;0;"209,51";"209,51";OMESSO NOMINATIVO NEL RISPETTO DELLA NORMATIVA SULLA PROTEZIONE DATI PERSONALI; ;IMPEGNO DI SPESA PER PIANI PERSONALIZZATI IN SOSTEGNO DELLE PERSONE CON DISABILITA' GRAVE DI CUI ALLA L.162/1998 -DGR 55/12 DEL 31.12.2017.;01-08-2018;1420;2;142;1;Spese correnti;4;Trasferimenti correnti;2;Trasferimenti correnti a Famiglie;2;Interventi assistenziali;999;Altri assegni e sussidi assistenziali;01-08-2018;
1199;1;0;"164,62";"164,62";OMESSO NOMINATIVO NEL RISPETTO DELLA NORMATIVA SULLA PROTEZIONE DATI PERSONALI; ;IMPEGNO DI SPESA PER PIANI PERSONALIZZATI IN SOSTEGNO DELLE PERSONE CON DISABILITA' GRAVE DI CUI ALLA L.162/1998 -DGR 55/12 DEL 31.12.2017.;01-08-2018;1420;2;142;1;Spese correnti;4;Trasferimenti correnti;2;Trasferimenti correnti a Famiglie;2;Interventi assistenziali;999;Altri assegni e sussidi assistenziali;01-08-2018;
1200;1;0;"261,89";"261,89";OMESSO NOMINATIVO NEL RISPETTO DELLA NORMATIVA SULLA PROTEZIONE DATI PERSONALI; ;IMPEGNO DI SPESA PER PIANI PERSONALIZZATI IN SOSTEGNO DELLE PERSONE CON DISABILITA' GRAVE DI CUI ALLA L.162/1998 -DGR 55/12 DEL 31.12.2017.;01-08-2018;1420;2;142;1;Spese correnti;4;Trasferimenti correnti;2;Trasferimenti correnti a Famiglie;2;Interventi assistenziali;999;Altri assegni e sussidi assistenziali;01-08-2018;
1201;1;0;"564,93";"564,93";OMESSO NOMINATIVO NEL RISPETTO DELLA NORMATIVA SULLA PROTEZIONE DATI PERSONALI; ;IMPEGNO DI SPESA PER PIANI PERSONALIZZATI IN SOSTEGNO DELLE PERSONE CON DISABILITA' GRAVE DI CUI ALLA L.162/1998 -DGR 55/12 DEL 31.12.2017.;01-08-2018;1420;2;142;1;Spese correnti;4;Trasferimenti correnti;2;Trasferimenti correnti a Famiglie;2;Interventi assistenziali;999;Altri assegni e sussidi assistenziali;01-08-2018;
1202;1;0;"104,75";"104,75";OMESSO NOMINATIVO NEL RISPETTO DELLA NORMATIVA SULLA PROTEZIONE DATI PERSONALI; ;IMPEGNO DI SPESA PER PIANI PERSONALIZZATI IN SOSTEGNO DELLE PERSONE CON DISABILITA' GRAVE DI CUI ALLA L.162/1998 -DGR 55/12 DEL 31.12.2017.;01-08-2018;1420;2;142;1;Spese correnti;4;Trasferimenti correnti;2;Trasferimenti correnti a Famiglie;2;Interventi assistenziali;999;Altri assegni e sussidi assistenziali;01-08-2018;
1203;1;0;"300,00";"300,00";OMESSO NOMINATIVO NEL RISPETTO DELLA NORMATIVA SULLA PROTEZIONE DATI PERSONALI; ;IMPEGNO DI SPESA PER SERVIZI ALLA PERSONA-CONCESSIONE CONTRIBUTO ECONOMICO STRAORDINARIO.;01-08-2018;1434;0;201;1;Spese correnti;4;Trasferimenti correnti;2;Trasferimenti correnti a Famiglie;2;Interventi assistenziali;999;Altri assegni e sussidi assistenziali;01-08-2018;
1204;1;0;"306,15";"306,15";OMESSO NOMINATIVO NEL RISPETTO DELLA NORMATIVA SULLA PROTEZIONE DATI PERSONALI; ;IMPEGNO DI SPESA E PRESA IN CARICO PER L.R. N. 9/2004-ART. 1.;01-08-2018;1438;0;202;1;Spese correnti;4;Trasferimenti correnti;2;Trasferimenti correnti a Famiglie;2;Interventi assistenziali;999;Altri assegni e sussidi assistenziali;01-08-2018;
1205;1;0;"10.163,82";"10.163,82";M.N. MANIFATTURA NULESE S.R.L.;ZC820EE311;Fatt.n. 13E del 01/08/2018 REALIZZAZIONE ECOCENTRO COMUNALE TULA -  2 LOTTO  S.A.L. N. 2  E ULTIMO CIG ZC820EG311;02-08-2018;3368;1;246;2;Spese in conto capitale;2;Investimenti fissi lordi e acquisto di terreni;1;Beni materiali;9;Beni immobili;999;Beni immobili n.a.c.;02-08-2018;
1206;1;0;"6.661,88";"6.661,88";M.N. MANIFATTURA NULESE S.R.L.;ZC820EG311;Fatt.n. 14E del 01/08/2018 LAVORI DI COMPLETAMENTO ECOCENTRO  COMUNALE  -   CIG ZC820EG311;02-08-2018;3368;1;246;2;Spese in conto capitale;2;Investimenti fissi lordi e acquisto di terreni;1;Beni materiali;9;Beni immobili;999;Beni immobili n.a.c.;02-08-2018;
1207;1;0;"2.887,70";"2.887,70";M.N. MANIFATTURA NULESE S.R.L.;Z5B2484381;Fatt.n. 15E del 01/08/2018 COMPLETAMENTO SVINCOLO CIG. Z5B2484381;02-08-2018;3126;0;198;2;Spese in conto capitale;2;Investimenti fissi lordi e acquisto di terreni;1;Beni materiali;9;Beni immobili;14;Opere per la sistemazione del suolo;02-08-2018;
1208;1;0;"29.097,00";"29.097,00";UNIONE DEI COMUNI DEL LOGUDORO; ;Gestione associata servizio di raccolta differenziata e avvio allo smaltimento dei r.s.u. PAGAMENTO II  TRIMESTRE 2018.;02-08-2018;1265;0;100;1;Spese correnti;4;Trasferimenti correnti;1;Trasferimenti correnti a Amministrazioni Pubbliche;2;Trasferimenti correnti a Amministrazioni Locali;5;Trasferimenti correnti a Unioni di Comuni;02-08-2018;
1209;1;0;"2.562,00";"2.562,00";CAMPANA MICHELE;Z102464DE1;Fatt.n. 1/E del 27/07/2018 CIG Z102464DE1;02-08-2018;3126;0;193;2;Spese in conto capitale;2;Investimenti fissi lordi e acquisto di terreni;1;Beni materiali;9;Beni immobili;14;Opere per la sistemazione del suolo;02-08-2018;
1210;1;0;"567,33";"567,33";OMESSO NOMINATIVO NEL RISPETTO DELLA NORMATIVA SULLA PROTEZIONE DATI PERSONALI; ;IMPEGNO DI SPESA PER PIANI PERSONALIZZATI IN SOSTEGNO DELLE PERSONE CON DISABILITA' GRAVE DI CUI ALLA L.162/1998 -DGR 55/12 DEL 31.12.2017.;03-08-2018;1420;2;142;1;Spese correnti;4;Trasferimenti correnti;2;Trasferimenti correnti a Famiglie;2;Interventi assistenziali;999;Altri assegni e sussidi assistenziali;03-08-2018;
1211;1;0;"171,29";"171,29";OMESSO NOMINATIVO NEL RISPETTO DELLA NORMATIVA SULLA PROTEZIONE DATI PERSONALI; ;IMPEGNO DI SPESA PER PIANI PERSONALIZZATI IN SOSTEGNO DELLE PERSONE CON DISABILITA' GRAVE DI CUI ALLA L.162/1998 -DGR 55/12 DEL 31.12.2017.;03-08-2018;1420;2;142;1;Spese correnti;4;Trasferimenti correnti;2;Trasferimenti correnti a Famiglie;2;Interventi assistenziali;999;Altri assegni e sussidi assistenziali;03-08-2018;
1212;1;0;"657,66";"657,66";OMESSO NOMINATIVO NEL RISPETTO DELLA NORMATIVA SULLA PROTEZIONE DATI PERSONALI; ;IMPEGNO DI SPESA PER PIANI PERSONALIZZATI IN SOSTEGNO DELLE PERSONE CON DISABILITA' GRAVE DI CUI ALLA L.162/1998 -DGR 55/12 DEL 31.12.2017.;03-08-2018;1420;2;142;1;Spese correnti;4;Trasferimenti correnti;2;Trasferimenti correnti a Famiglie;2;Interventi assistenziali;999;Altri assegni e sussidi assistenziali;03-08-2018;
1213;1;0;"404,41";"404,41";OMESSO NOMINATIVO NEL RISPETTO DELLA NORMATIVA SULLA PROTEZIONE DATI PERSONALI; ;IMPEGNO DI SPESA PER PIANI PERSONALIZZATI IN SOSTEGNO DELLE PERSONE CON DISABILITA' GRAVE DI CUI ALLA L.162/1998 -DGR 55/12 DEL 31.12.2017.;03-08-2018;1420;2;142;1;Spese correnti;4;Trasferimenti correnti;2;Trasferimenti correnti a Famiglie;2;Interventi assistenziali;999;Altri assegni e sussidi assistenziali;03-08-2018;
1214;1;0;"604,00";"604,00";OMESSO NOMINATIVO NEL RISPETTO DELLA NORMATIVA SULLA PROTEZIONE DATI PERSONALI; ;IMPEGNO DI SPESA PER L.R. 11/185-PROVVIDENZE A FAVORE DI NEFROPATICI-PRESA IN CARICO ANNO 2018.;03-08-2018;1438;0;19;1;Spese correnti;4;Trasferimenti correnti;2;Trasferimenti correnti a Famiglie;2;Interventi assistenziali;999;Altri assegni e sussidi assistenziali;03-08-2018;
1215;1;0;"2,00";"101,88";POSTE ITALIANE Spa;Z8D1F0ACEA;Fatt.n. 8718263426 del 02/08/2018 Fattura Elettronica relativa all'Identificativo Rendiconto 2098429962;03-08-2018;118;2;127;1;Spese correnti;3;Acquisto di beni e servizi;2;Acquisto di servizi;16;Servizi amministrativi;2;Spese postali;03-08-2018;
1215;2;0;"99,88";"101,88";POSTE ITALIANE Spa;Z8D1F0ACEA;Fatt.n. 8718263426 del 02/08/2018 Fattura Elettronica relativa all'Identificativo Rendiconto 2098429962;03-08-2018;118;2;127;1;Spese correnti;3;Acquisto di beni e servizi;2;Acquisto di servizi;16;Servizi amministrativi;2;Spese postali;03-08-2018;
1216;1;0;"2.023,19";"2.023,19";COOP. SPES a r.l.;Z422136A24;Fatt.n. 33 PA del 31/07/2018 Fattura Cliente;03-08-2018;118;5;12;1;Spese correnti;3;Acquisto di beni e servizi;2;Acquisto di servizi;13;Servizi ausiliari per il funzionamento dell'ente;2;Servizi di pulizia e lavanderia;03-08-2018;
1217;1;0;"183,54";"183,54";GBR ROSSETTO SPA;Z2D23D1BBF;Fatt.n. 60738/2018/V1 del 30/06/2018;03-08-2018;82;0;140;1;Spese correnti;3;Acquisto di beni e servizi;1;Acquisto di beni;2;Altri beni di consumo;1;"Carta, cancelleria e stampati";03-08-2018;
1218;1;0;"234,86";"234,86";DNA RANDAGIO;ZD021761F1;Fatt.n. 000101-2018-CANILE del 02/08/2018 SERVIZIO DI RICOVERO E CUSTODIA CANI RANDAGI;03-08-2018;1349;0;33;1;Spese correnti;3;Acquisto di beni e servizi;2;Acquisto di servizi;15;Contratti di servizio pubblico;11;Contratti di servizio per la lotta al randagismo;03-08-2018;
1219;1;0;"4.331,00";"4.331,00";SOTGIU GIUSEPPE;ZED2493AB7;Fatt.n. 16PA del 03/08/2018 ACCONTO su manutenzione impianti elettrici presso vostro ente. DET Reg.Ge.le. n. 269 del 03/08/2018 CIG ZED2493AB7.;03-08-2018;1012;0;203;1;Spese correnti;3;Acquisto di beni e servizi;2;Acquisto di servizi;9;Manutenzione ordinaria e riparazioni;4;Manutenzione ordinaria e riparazioni di impianti e macchinari;03-08-2018;
1220;1;0;"42,30";"42,30";OMESSO NOMINATIVO NEL RISPETTO DELLA NORMATIVA SULLA PROTEZIONE DATI PERSONALI; ;IMPEGNO DI SPESA PER PIANI PERSONALIZZATI IN SOSTEGNO DELLE PERSONE CON DISABILITA' GRAVE DI CUI ALLA L.162/1998 -DGR 55/12 DEL 31.12.2017.;03-08-2018;1420;2;142;1;Spese correnti;4;Trasferimenti correnti;2;Trasferimenti correnti a Famiglie;2;Interventi assistenziali;999;Altri assegni e sussidi assistenziali;03-08-2018;
1221;1;0;"344,73";"344,73";OMESSO NOMINATIVO NEL RISPETTO DELLA NORMATIVA SULLA PROTEZIONE DATI PERSONALI; ;IMPEGNO DI SPESA PER PIANI PERSONALIZZATI IN SOSTEGNO DELLE PERSONE CON DISABILITA' GRAVE DI CUI ALLA L.162/1998 -DGR 55/12 DEL 31.12.2017.;03-08-2018;1420;2;142;1;Spese correnti;4;Trasferimenti correnti;2;Trasferimenti correnti a Famiglie;2;Interventi assistenziali;999;Altri assegni e sussidi assistenziali;03-08-2018;
1222;1;0;"541,56";"541,56";OMESSO NOMINATIVO NEL RISPETTO DELLA NORMATIVA SULLA PROTEZIONE DATI PERSONALI; ;IMPEGNO DI SPESA PER PIANI PERSONALIZZATI IN SOSTEGNO DELLE PERSONE CON DISABILITA' GRAVE DI CUI ALLA L.162/1998 -DGR 55/12 DEL 31.12.2017.;03-08-2018;1420;2;142;1;Spese correnti;4;Trasferimenti correnti;2;Trasferimenti correnti a Famiglie;2;Interventi assistenziali;999;Altri assegni e sussidi assistenziali;03-08-2018;
1223;1;0;"2.700,01";"2.700,01";CONSAI SRL;Z1D1B035DF;RATA PREMIO POLIZZA RC COLPA LIEVE DUAL - IMPEGNO E LIQUIDAZIONE;20-08-2018;100;0;204;1;Spese correnti;10;Altre spese correnti;4;Premi di assicurazione;1;Premi di assicurazione contro i danni;3;Premi di assicurazione per responsabilità civile verso terzi;20-08-2018;
1224;1;0;"194,54";"194,54";OMESSO NOMINATIVO NEL RISPETTO DELLA NORMATIVA SULLA PROTEZIONE DATI PERSONALI; ;IMPEGNO DI SPESA PER PIANI PERSONALIZZATI IN SOSTEGNO DELLE PERSONE CON DISABILITA' GRAVE DI CUI ALLA L.162/1998 -DGR 55/12 DEL 31.12.2017.;20-08-2018;1420;2;142;1;Spese correnti;4;Trasferimenti correnti;2;Trasferimenti correnti a Famiglie;2;Interventi assistenziali;999;Altri assegni e sussidi assistenziali;20-08-2018;
1225;1;0;"604,00";"604,00";OMESSO NOMINATIVO NEL RISPETTO DELLA NORMATIVA SULLA PROTEZIONE DATI PERSONALI; ;IMPEGNO DI SPESA PER L.R. 11/185-PROVVIDENZE A FAVORE DI NEFROPATICI-PRESA IN CARICO ANNO 2018.;20-08-2018;1438;0;19;1;Spese correnti;4;Trasferimenti correnti;2;Trasferimenti correnti a Famiglie;2;Interventi assistenziali;999;Altri assegni e sussidi assistenziali;20-08-2018;
1226;1;0;"604,00";"604,00";OMESSO NOMINATIVO NEL RISPETTO DELLA NORMATIVA SULLA PROTEZIONE DATI PERSONALI; ;IMPEGNO DI SPESA PER L.R. 11/185-PROVVIDENZE A FAVORE DI NEFROPATICI-PRESA IN CARICO ANNO 2018.;20-08-2018;1438;0;19;1;Spese correnti;4;Trasferimenti correnti;2;Trasferimenti correnti a Famiglie;2;Interventi assistenziali;999;Altri assegni e sussidi assistenziali;20-08-2018;
1227;1;0;"145,57";"145,57";OMESSO NOMINATIVO NEL RISPETTO DELLA NORMATIVA SULLA PROTEZIONE DATI PERSONALI; ;IMPEGNO DI SPESA PER PIANI PERSONALIZZATI IN SOSTEGNO DELLE PERSONE CON DISABILITA' GRAVE DI CUI ALLA L.162/1998 -DGR 55/12 DEL 31.12.2017.;20-08-2018;1420;2;142;1;Spese correnti;4;Trasferimenti correnti;2;Trasferimenti correnti a Famiglie;2;Interventi assistenziali;999;Altri assegni e sussidi assistenziali;20-08-2018;
1228;1;0;"229,49";"229,49";OMESSO NOMINATIVO NEL RISPETTO DELLA NORMATIVA SULLA PROTEZIONE DATI PERSONALI; ;IMPEGNO DI SPESA PER PIANI PERSONALIZZATI IN SOSTEGNO DELLE PERSONE CON DISABILITA' GRAVE DI CUI ALLA L.162/1998 -DGR 55/12 DEL 31.12.2017.;20-08-2018;1420;2;142;1;Spese correnti;4;Trasferimenti correnti;2;Trasferimenti correnti a Famiglie;2;Interventi assistenziali;999;Altri assegni e sussidi assistenziali;20-08-2018;
1229;1;0;"542,98";"542,98";OMESSO NOMINATIVO NEL RISPETTO DELLA NORMATIVA SULLA PROTEZIONE DATI PERSONALI; ;IMPEGNO DI SPESA PER PIANI PERSONALIZZATI IN SOSTEGNO DELLE PERSONE CON DISABILITA' GRAVE DI CUI ALLA L.162/1998 -DGR 55/12 DEL 31.12.2017.;20-08-2018;1420;2;142;1;Spese correnti;4;Trasferimenti correnti;2;Trasferimenti correnti a Famiglie;2;Interventi assistenziali;999;Altri assegni e sussidi assistenziali;20-08-2018;
1230;1;0;"160,57";"160,57";OMESSO NOMINATIVO NEL RISPETTO DELLA NORMATIVA SULLA PROTEZIONE DATI PERSONALI; ;IMPEGNO DI SPESA PER PIANI PERSONALIZZATI IN SOSTEGNO DELLE PERSONE CON DISABILITA' GRAVE DI CUI ALLA L.162/1998 -DGR 55/12 DEL 31.12.2017.;20-08-2018;1420;2;142;1;Spese correnti;4;Trasferimenti correnti;2;Trasferimenti correnti a Famiglie;2;Interventi assistenziali;999;Altri assegni e sussidi assistenziali;20-08-2018;
1231;1;0;"347,11";"347,11";OMESSO NOMINATIVO NEL RISPETTO DELLA NORMATIVA SULLA PROTEZIONE DATI PERSONALI; ;IMPEGNO DI SPESA PER PIANI PERSONALIZZATI IN SOSTEGNO DELLE PERSONE CON DISABILITA' GRAVE DI CUI ALLA L.162/1998 -DGR 55/12 DEL 31.12.2017.;20-08-2018;1420;2;142;1;Spese correnti;4;Trasferimenti correnti;2;Trasferimenti correnti a Famiglie;2;Interventi assistenziali;999;Altri assegni e sussidi assistenziali;20-08-2018;
1232;1;0;"115,24";"115,24";OMESSO NOMINATIVO NEL RISPETTO DELLA NORMATIVA SULLA PROTEZIONE DATI PERSONALI; ;IMPEGNO DI SPESA PER PIANI PERSONALIZZATI IN SOSTEGNO DELLE PERSONE CON DISABILITA' GRAVE DI CUI ALLA L.162/1998 -DGR 55/12 DEL 31.12.2017.;20-08-2018;1420;2;142;1;Spese correnti;4;Trasferimenti correnti;2;Trasferimenti correnti a Famiglie;2;Interventi assistenziali;999;Altri assegni e sussidi assistenziali;20-08-2018;
1233;1;0;"155,91";"155,91";OMESSO NOMINATIVO NEL RISPETTO DELLA NORMATIVA SULLA PROTEZIONE DATI PERSONALI; ;IMPEGNO DI SPESA PER PIANI PERSONALIZZATI IN SOSTEGNO DELLE PERSONE CON DISABILITA' GRAVE DI CUI ALLA L.162/1998 -DGR 55/12 DEL 31.12.2017.;20-08-2018;1420;2;142;1;Spese correnti;4;Trasferimenti correnti;2;Trasferimenti correnti a Famiglie;2;Interventi assistenziali;999;Altri assegni e sussidi assistenziali;20-08-2018;
1234;1;0;"147,84";"147,84";OMESSO NOMINATIVO NEL RISPETTO DELLA NORMATIVA SULLA PROTEZIONE DATI PERSONALI; ;IMPEGNO DI SPESA PER PIANI PERSONALIZZATI IN SOSTEGNO DELLE PERSONE CON DISABILITA' GRAVE DI CUI ALLA L.162/1998 -DGR 55/12 DEL 31.12.2017.;20-08-2018;1420;2;142;1;Spese correnti;4;Trasferimenti correnti;2;Trasferimenti correnti a Famiglie;2;Interventi assistenziali;999;Altri assegni e sussidi assistenziali;20-08-2018;
1235;1;0;"613,77";"613,77";OMESSO NOMINATIVO NEL RISPETTO DELLA NORMATIVA SULLA PROTEZIONE DATI PERSONALI; ;IMPEGNO DI SPESA PER PIANI PERSONALIZZATI IN SOSTEGNO DELLE PERSONE CON DISABILITA' GRAVE DI CUI ALLA L.162/1998 -DGR 55/12 DEL 31.12.2017.;20-08-2018;1420;2;142;1;Spese correnti;4;Trasferimenti correnti;2;Trasferimenti correnti a Famiglie;2;Interventi assistenziali;999;Altri assegni e sussidi assistenziali;20-08-2018;
1236;1;0;"151,84";"151,84";OMESSO NOMINATIVO NEL RISPETTO DELLA NORMATIVA SULLA PROTEZIONE DATI PERSONALI; ;IMPEGNO DI SPESA PER PIANI PERSONALIZZATI IN SOSTEGNO DELLE PERSONE CON DISABILITA' GRAVE DI CUI ALLA L.162/1998 -DGR 55/12 DEL 31.12.2017.;20-08-2018;1420;2;142;1;Spese correnti;4;Trasferimenti correnti;2;Trasferimenti correnti a Famiglie;2;Interventi assistenziali;999;Altri assegni e sussidi assistenziali;20-08-2018;
1237;1;0;"887,55";"887,55";COOP. NUOVE IDEE;Z782197FF4;Fatt.n. FATTPA 79_18 del 03/08/2018;20-08-2018;1413;0;32;1;Spese correnti;3;Acquisto di beni e servizi;2;Acquisto di servizi;99;Altri servizi;999;Altri servizi diversi n.a.c.;20-08-2018;
1238;1;0;"8.064,22";"8.064,22";COOP. NUOVE IDEE; ;Fatt.n. FATTPA 78_18 del 03/08/2018;20-08-2018;1420;0;141;1;Spese correnti;3;Acquisto di beni e servizi;2;Acquisto di servizi;15;Contratti di servizio pubblico;9;Contratti di servizio di assistenza sociale domiciliare;20-08-2018;
1239;1;0;"21.234,11";"21.234,11";"EDILCAMPUS S.N.C. DI CAMPUS MASSIMILIANO &amp; CAMPUS";Z2D247D21E;Fatt.n. 7/PA del 09/08/2018;20-08-2018;3368;1;197;2;Spese in conto capitale;2;Investimenti fissi lordi e acquisto di terreni;1;Beni materiali;9;Beni immobili;999;Beni immobili n.a.c.;20-08-2018;
1240;1;0;"402,18";"402,18";GASPARI;ZF523F10BF;Fatt.n. 13142 del 31/07/2018;20-08-2018;447;0;288;1;Spese correnti;3;Acquisto di beni e servizi;1;Acquisto di beni;2;Altri beni di consumo;999;Altri beni e materiali di consumo n.a.c.;20-08-2018;
1241;1;0;"1.161,60";"1.161,60";COOP. NUOVE IDEE;Z52230BA0F;Fatt.n. FATTPA 80_18 del 03/08/2018;20-08-2018;715;0;87;1;Spese correnti;3;Acquisto di beni e servizi;2;Acquisto di servizi;11;Prestazioni professionali e specialistiche;999;Altre prestazioni professionali e specialistiche n.a.c.;20-08-2018;
1242;1;0;"334,40";"334,40";COOP. NUOVE IDEE;Z5724577AA;Fatt.n. FATTPA 81_18 del 03/08/2018;20-08-2018;746;0;184;1;Spese correnti;3;Acquisto di beni e servizi;2;Acquisto di servizi;2;"Organizzazione eventi, pubblicita` e servizi per trasferta";5;Organizzazione e partecipazione a manifestazioni e convegni;20-08-2018;
1243;1;0;"747,93";"747,93";VODAFONE OMNITEL N.V.;ZB6229C6FD;Fatt.n. AI14101558 del 04/08/2018 scissione pagamenti;20-08-2018;118;3;40;1;Spese correnti;3;Acquisto di beni e servizi;2;Acquisto di servizi;5;Utenze e canoni;1;Telefonia fissa;20-08-2018;
1244;1;0;"847,69";"847,69";NRG ITALIA SPA;Z651E12423;Fatt.n. 189315475 del 05/08/2018;20-08-2018;82;2;31;1;Spese correnti;3;Acquisto di beni e servizi;2;Acquisto di servizi;19;Servizi informatici e di telecomunicazioni;1;Gestione e manutenzione applicazioni;20-08-2018;
1245;1;0;"512,40";"512,40";ITM TELEMATICA;ZC6247D80F;Fatt.n. 513 PA del 08/08/2018 DETERMINAZIONE N.33 DEL 26/07/18 CIG ZC6247D80F BUONO N.543/2018/SS COMUNE DI TULA;20-08-2018;82;1;196;1;Spese correnti;3;Acquisto di beni e servizi;2;Acquisto di servizi;9;Manutenzione ordinaria e riparazioni;11;Manutenzione ordinaria e riparazioni di altri beni materiali;20-08-2018;
1246;1;0;"29,19";"1.910,97";MC LINK SPA;ZEE229F76B;Fatt.n. 610002156 del 02/08/2018 FATTURA DI VENDITA SERVIZI;20-08-2018;118;3;48;1;Spese correnti;3;Acquisto di beni e servizi;2;Acquisto di servizi;5;Utenze e canoni;1;Telefonia fissa;20-08-2018;
1246;2;0;"48,80";"1.910,97";MC LINK SPA;ZEE229F76B;Fatt.n. 610001965 del 02/08/2018 FATTURA DI VENDITA SERVIZI;20-08-2018;118;3;48;1;Spese correnti;3;Acquisto di beni e servizi;2;Acquisto di servizi;5;Utenze e canoni;1;Telefonia fissa;20-08-2018;
1246;3;0;"154,26";"1.910,97";MC LINK SPA;ZEE229F76B;Fatt.n. 610001970 del 02/08/2018 FATTURA DI VENDITA SERVIZI;20-08-2018;118;3;48;1;Spese correnti;3;Acquisto di beni e servizi;2;Acquisto di servizi;5;Utenze e canoni;1;Telefonia fissa;20-08-2018;
1246;4;0;"156,16";"1.910,97";MC LINK SPA;ZEE229F76B;Fatt.n. 610001969 del 02/08/2018 FATTURA DI VENDITA SERVIZI;20-08-2018;118;3;48;1;Spese correnti;3;Acquisto di beni e servizi;2;Acquisto di servizi;5;Utenze e canoni;1;Telefonia fissa;20-08-2018;
1246;5;0;"204,96";"1.910,97";MC LINK SPA;ZEE229F76B;Fatt.n. 610001968 del 02/08/2018 FATTURA DI VENDITA SERVIZI;20-08-2018;118;3;48;1;Spese correnti;3;Acquisto di beni e servizi;2;Acquisto di servizi;5;Utenze e canoni;1;Telefonia fissa;20-08-2018;
1246;6;0;"536,80";"1.910,97";MC LINK SPA;ZEE229F76B;Fatt.n. 610001966 del 02/08/2018 FATTURA DI VENDITA SERVIZI;20-08-2018;118;3;48;1;Spese correnti;3;Acquisto di beni e servizi;2;Acquisto di servizi;5;Utenze e canoni;1;Telefonia fissa;20-08-2018;
1246;7;0;"780,80";"1.910,97";MC LINK SPA;ZEE229F76B;Fatt.n. 610001967 del 02/08/2018 FATTURA DI VENDITA SERVIZI;20-08-2018;118;3;48;1;Spese correnti;3;Acquisto di beni e servizi;2;Acquisto di servizi;5;Utenze e canoni;1;Telefonia fissa;20-08-2018;
1247;1;0;"1.400,00";"1.400,00";Associazione Gruppo Strumentale " IL VIOLINO";Z5724577AA;Organizzazione Rassegna estiva denominata E-STATE A TULA 2018;20-08-2018;746;0;184;1;Spese correnti;3;Acquisto di beni e servizi;2;Acquisto di servizi;2;"Organizzazione eventi, pubblicita` e servizi per trasferta";5;Organizzazione e partecipazione a manifestazioni e convegni;20-08-2018;
1248;1;0;"1.052,25";"1.052,25";BBG SARDEGNA SRL;ZA22298E9D;Fatt.n. FATTPA 55_18 del 07/08/2018;20-08-2018;200;0;93;1;Spese correnti;3;Acquisto di beni e servizi;2;Acquisto di servizi;99;Altri servizi;999;Altri servizi diversi n.a.c.;20-08-2018;
1278;1;0;"218,78";"218,78";DIPENDENTI COMUNALI; ;APPROVAZIONE PROGETTO DEFINITIVO - ESECUTIVO DEI CANTIERI VERDI 2016 - LAVORI PER L'INCREMENTO E LA TUTELA DELLE AREE FORESTALI. COMPENSO AL RUP.LIQ. N. 159;21-08-2018;3516;0;323;2;Spese in conto capitale;5;Altre spese in conto capitale;99;Altre spese in conto capitale n.a.c.;99;Altre spese in conto capitale n.a.c.;999;Altre spese in conto capitale n.a.c.;21-08-2018;
1279;1;0;"296,00";"296,00";SECHI ANNA CHIARA; ;RIMBORSO SPESE VIAGGIO STUDENTI PENDOLARI DELLE SCUOLE SECONDARIE DI II GRADO  A.S. 2017/2018-SALDO 70%.;21-08-2018;674;0;185;1;Spese correnti;4;Trasferimenti correnti;2;Trasferimenti correnti a Famiglie;2;Interventi assistenziali;999;Altri assegni e sussidi assistenziali;21-08-2018;
1280;1;0;"604,00";"604,00";OMESSO NOMINATIVO NEL RISPETTO DELLA NORMATIVA SULLA PROTEZIONE DATI PERSONALI; ;IMPEGNO DI SPESA PER L.R. 11/185-PROVVIDENZE A FAVORE DI NEFROPATICI-PRESA IN CARICO ANNO 2018.;21-08-2018;1438;0;19;1;Spese correnti;4;Trasferimenti correnti;2;Trasferimenti correnti a Famiglie;2;Interventi assistenziali;999;Altri assegni e sussidi assistenziali;21-08-2018;
1281;1;0;"3.420,00";"3.420,00";Gruppo Folk San Giorgio USINI;Z5724577AA;"Organizzazione Rassegna estiva denominata E-STATE A TULA 2018, SANT'ALENE E AUSTU";21-08-2018;746;0;184;1;Spese correnti;3;Acquisto di beni e servizi;2;Acquisto di servizi;2;"Organizzazione eventi, pubblicita` e servizi per trasferta";5;Organizzazione e partecipazione a manifestazioni e convegni;21-08-2018;
1282;1;0;"1.250,00";"1.250,00";CANOTTIERI TULA ELETTRA A.S.D.; ;Bilancio partecipato: avvio progetto "Sportivamente Insieme" e concessione contributo alle Associazioni sportive Canottieri Tula Elettra ASD e ASD Volley Tula;21-08-2018;833;1;167;1;Spese correnti;3;Acquisto di beni e servizi;2;Acquisto di servizi;99;Altri servizi;999;Altri servizi diversi n.a.c.;21-08-2018;
1283;1;0;"1.250,00";"1.250,00";A.S.D.VOLLEY TULA; ;Bilancio partecipato: avvio progetto "Sportivamente Insieme" e concessione contributo alle Associazioni sportive Canottieri Tula Elettra ASD e ASD Volley Tula;21-08-2018;833;1;167;1;Spese correnti;3;Acquisto di beni e servizi;2;Acquisto di servizi;99;Altri servizi;999;Altri servizi diversi n.a.c.;21-08-2018;
1284;1;0;"207,67";"207,67";ENEL ENERGIA;ZE4229C6A4;Fatt.n. 004811389189 del 10/08/2018;21-08-2018;824;0;39;1;Spese correnti;3;Acquisto di beni e servizi;2;Acquisto di servizi;5;Utenze e canoni;4;Energia elettrica;21-08-2018;
1285;1;0;"163,79";"163,79";SERVIZIO ELETTRICO NAZIONALE - SERVIZIO DI MAGGIOR TUTE;ZA5229C654;Fatt.n. 907151471763437 del 10/08/2018;21-08-2018;716;4;38;1;Spese correnti;3;Acquisto di beni e servizi;2;Acquisto di servizi;5;Utenze e canoni;4;Energia elettrica;21-08-2018;
1286;1;0;"290,92";"290,92";SERVIZIO ELETTRICO NAZIONALE - SERVIZIO DI MAGGIOR TUTE;ZA5229C654;Fatt.n. 907151201731817 del 10/08/2018;21-08-2018;716;4;38;1;Spese correnti;3;Acquisto di beni e servizi;2;Acquisto di servizi;5;Utenze e canoni;4;Energia elettrica;21-08-2018;
1287;1;0;"3.468,21";"3.468,21";AUTORITA' D'AMBITO TERRITORIALE della SARDEGNA; ;Pagamento delle quote consortili 2018 all'Ente di Governo dell'ambito della Sardegna- Servizio idrico integrato.ACCONTO;24-08-2018;1210;0;207;1;Spese correnti;4;Trasferimenti correnti;4;Trasferimenti correnti a Istituzioni Sociali Private;1;Trasferimenti correnti a Istituzioni Sociali Private;1;Trasferimenti correnti a Istituzioni Sociali Private;24-08-2018;
1288;1;0;"457,77";"457,77";AUTORITA' D'AMBITO TERRITORIALE della SARDEGNA; ;Pagamento delle quote consortili 2018 all'Ente di Governo dell'ambito della Sardegna- Servizio idrico integrato.SALDO;24-08-2018;1302;0;208;1;Spese correnti;3;Acquisto di beni e servizi;2;Acquisto di servizi;13;Servizi ausiliari per il funzionamento dell'ente;999;Altri servizi ausiliari n.a.c.;24-08-2018;
1289;1;0;"296,30";"296,30";AUTORITA' D'AMBITO TERRITORIALE della SARDEGNA; ;Pagamento delle quote consortili 2017 all'Ente di Governo dell'ambito della Sardegna- Servizio idrico integrato.CONGUAGLIO;24-08-2018;1302;0;208;1;Spese correnti;3;Acquisto di beni e servizi;2;Acquisto di servizi;13;Servizi ausiliari per il funzionamento dell'ente;999;Altri servizi ausiliari n.a.c.;24-08-2018;
1290;1;0;"1.399,08";"1.399,08";PERSONALE DIVERSO (Confr.Allegato); ;STIPENDI MESE DI: AGOSTO 18;24-08-2018;14;1;15;1;Spese correnti;3;Acquisto di beni e servizi;2;Acquisto di servizi;1;Organi e incarichi istituzionali dell'amministrazione;1;Organi istituzionali dell'amministrazione - Indennità;24-08-2018;
1294;1;0;"52,07";"52,07";TESORERIA PROV.LE DELLO STATO; ;APPROVAZIONE PROGETTO DEFINITIVO - ESECUTIVO DEI CANTIERI VERDI 2016 - LAVORI PER L'INCREMENTO E LA TUTELA DELLE AREE FORESTALI. VERSAMENTO CONTRIBUTI RUP;24-08-2018;3516;0;323;2;Spese in conto capitale;5;Altre spese in conto capitale;99;Altre spese in conto capitale n.a.c.;99;Altre spese in conto capitale n.a.c.;999;Altre spese in conto capitale n.a.c.;24-08-2018;
1295;1;0;"18,59";"18,59";TESORERIA PROV.LE DELLO STATO; ;APPROVAZIONE PROGETTO DEFINITIVO - ESECUTIVO DEI CANTIERI VERDI 2016 - LAVORI PER L'INCREMENTO E LA TUTELA DELLE AREE FORESTALI. VERSAMENTO IRAP PER RUP;24-08-2018;3516;0;323;2;Spese in conto capitale;5;Altre spese in conto capitale;99;Altre spese in conto capitale n.a.c.;99;Altre spese in conto capitale n.a.c.;999;Altre spese in conto capitale n.a.c.;24-08-2018;
1297;1;0;"1.000,00";"1.000,00";ASS. SPORTIVA GRUPPO IPPICO TULESE; ;"Programma di assegnazione contributi alle Associazioni locali e Comitati per l'organizzazione delle manifestazioni di carattere sociale, culturale, religioso e sportivo - Anno 2018.PALIO CAVALLI";28-08-2018;760;0;168;1;Spese correnti;4;Trasferimenti correnti;4;Trasferimenti correnti a Istituzioni Sociali Private;1;Trasferimenti correnti a Istituzioni Sociali Private;1;Trasferimenti correnti a Istituzioni Sociali Private;28-08-2018;
1298;1;0;"400,00";"400,00";SINI ERMINIO;Z5724577AA;Organizzazione Rassegna estiva denominata E-STATE A TULA 2018. FORNITURA MANUFATTI ARTIGIANALI PER I GRUPPI FOLK SANT'ALENE E AUSTU. LIQ. N. 95;28-08-2018;746;0;184;1;Spese correnti;3;Acquisto di beni e servizi;2;Acquisto di servizi;2;"Organizzazione eventi, pubblicita` e servizi per trasferta";5;Organizzazione e partecipazione a manifestazioni e convegni;28-08-2018;
1299;1;0;"1.494,03";"1.494,03";OMESSO NOMINATIVO NEL RISPETTO DELLA NORMATIVA SULLA PROTEZIONE DATI PERSONALI;7394433F22;Fatt.n. X-804 del 01/08/2018;28-08-2018;1412;1;85;1;Spese correnti;3;Acquisto di beni e servizi;2;Acquisto di servizi;15;Contratti di servizio pubblico;8;Contratti di servizio di assistenza sociale residenziale e semiresidenziale;28-08-2018;
1300;1;0;"3.970,11";"3.970,11";CONSORZIO NETWORK ETICO;687819848C;Fatt.n. 2/1524 del 21/08/2018 SERV.SAD;28-08-2018;1412;0;14;1;Spese correnti;3;Acquisto di beni e servizi;2;Acquisto di servizi;15;Contratti di servizio pubblico;9;Contratti di servizio di assistenza sociale domiciliare;28-08-2018;
1301;1;0;"9.740,38";"9.740,38";CONSORZIO NETWORK ETICO;7391758FA7;Fatt.n. 2/1525 del 21/08/2018;28-08-2018;1416;0;88;1;Spese correnti;3;Acquisto di beni e servizi;2;Acquisto di servizi;11;Prestazioni professionali e specialistiche;999;Altre prestazioni professionali e specialistiche n.a.c.;28-08-2018;
1302;1;0;"498,11";"498,11";SERVIZIO ELETTRICO NAZIONALE - SERVIZIO DI MAGGIOR TUTE;Z3723FBF0B;Fatt.n. 907151470732311 del 10/08/2018;28-08-2018;598;4;152;1;Spese correnti;3;Acquisto di beni e servizi;2;Acquisto di servizi;5;Utenze e canoni;4;Energia elettrica;28-08-2018;
1303;1;0;"422,58";"422,58";SERVIZIO ELETTRICO NAZIONALE - SERVIZIO DI MAGGIOR TUTE;Z3723FBF0B;Fatt.n. 907151470733513 del 10/08/2018;28-08-2018;618;4;153;1;Spese correnti;3;Acquisto di beni e servizi;2;Acquisto di servizi;5;Utenze e canoni;4;Energia elettrica;28-08-2018;
1304;1;0;"400,00";"400,00";OMESSO NOMINATIVO NEL RISPETTO DELLA NORMATIVA SULLA PROTEZIONE DATI PERSONALI; ;IMPEGNO DI SPESA PER SERVIZI ALLA PERSONA- CONCESSIONE CONTRIBUTO ECONOMICO STRAORDINARIO.;28-08-2018;1434;0;210;1;Spese correnti;4;Trasferimenti correnti;2;Trasferimenti correnti a Famiglie;2;Interventi assistenziali;999;Altri assegni e sussidi assistenziali;28-08-2018;
1305;1;0;"212,00";"212,00";OMESSO NOMINATIVO NEL RISPETTO DELLA NORMATIVA SULLA PROTEZIONE DATI PERSONALI; ;IMPEGNO DI SPESA PER PIANI PERSONALIZZATI IN SOSTEGNO DELLE PERSONE CON DISABILITA' GRAVE DI CUI ALLA L.162/1998 -DGR 55/12 DEL 31.12.2017.;28-08-2018;1420;2;142;1;Spese correnti;4;Trasferimenti correnti;2;Trasferimenti correnti a Famiglie;2;Interventi assistenziali;999;Altri assegni e sussidi assistenziali;28-08-2018;
1306;1;0;"215,00";"215,00";OMESSO NOMINATIVO NEL RISPETTO DELLA NORMATIVA SULLA PROTEZIONE DATI PERSONALI; ;IMPEGNO DI SPESA PER L.R. 11/185-PROVVIDENZE A FAVORE DI NEFROPATICI-PRESA IN CARICO ANNO 2018.;28-08-2018;1438;0;19;1;Spese correnti;4;Trasferimenti correnti;2;Trasferimenti correnti a Famiglie;2;Interventi assistenziali;999;Altri assegni e sussidi assistenziali;28-08-2018;
1309;1;0;"2,00";"213,04";POSTE ITALIANE Spa;Z8223E60A4;Fatt.n. 8718291652 del 31/08/2018 Fattura Elettronica relativa all'Identificativo Rendiconto 2098793061;04-09-2018;118;2;144;1;Spese correnti;3;Acquisto di beni e servizi;2;Acquisto di servizi;16;Servizi amministrativi;2;Spese postali;04-09-2018;
1309;2;0;"211,04";"213,04";POSTE ITALIANE Spa;Z8223E60A4;Fatt.n. 8718291652 del 31/08/2018 Fattura Elettronica relativa all'Identificativo Rendiconto 2098793061;04-09-2018;118;2;144;1;Spese correnti;3;Acquisto di beni e servizi;2;Acquisto di servizi;16;Servizi amministrativi;2;Spese postali;04-09-2018;
1310;1;0;"44,50";"44,50";OMESSO NOMINATIVO NEL RISPETTO DELLA NORMATIVA SULLA PROTEZIONE DATI PERSONALI; ;IMPEGNO DI SPESA PER L.R. 27/83 -TALASSEMICI ED EMOLINFOPATICI-ANNO 2018.;04-09-2018;1438;0;101;1;Spese correnti;4;Trasferimenti correnti;2;Trasferimenti correnti a Famiglie;2;Interventi assistenziali;999;Altri assegni e sussidi assistenziali;04-09-2018;
1311;1;0;"553,84";"553,84";OMESSO NOMINATIVO NEL RISPETTO DELLA NORMATIVA SULLA PROTEZIONE DATI PERSONALI; ;IMPEGNO DI SPESA PER L.R. 27/83 -TALASSEMICI ED EMOLINFOPATICI-ANNO 2018.;04-09-2018;1438;0;101;1;Spese correnti;4;Trasferimenti correnti;2;Trasferimenti correnti a Famiglie;2;Interventi assistenziali;999;Altri assegni e sussidi assistenziali;04-09-2018;
1312;1;0;"1.942,85";"1.942,85";BBG SARDEGNA SRL;ZA22298E9D;Fatt.n. FATTPA 59_18 del 02/09/2018;04-09-2018;200;0;93;1;Spese correnti;3;Acquisto di beni e servizi;2;Acquisto di servizi;99;Altri servizi;999;Altri servizi diversi n.a.c.;04-09-2018;
1313;1;0;"634,40";"634,40";MURA ENRICO;Z142197A92;Fatt.n. FATTPA 7_18 del 03/07/2018;05-09-2018;254;0;5;1;Spese correnti;3;Acquisto di beni e servizi;2;Acquisto di servizi;11;Prestazioni professionali e specialistiche;999;Altre prestazioni professionali e specialistiche n.a.c.;05-09-2018;
1314;1;0;"976,00";"976,00";SMERALDA CONSULTING SRL;ZA923E3730;Fatt.n. 29/PA del 29/08/2018;05-09-2018;254;0;165;1;Spese correnti;3;Acquisto di beni e servizi;2;Acquisto di servizi;11;Prestazioni professionali e specialistiche;999;Altre prestazioni professionali e specialistiche n.a.c.;05-09-2018;
1316;1;0;"200,00";"200,00";OMESSO NOMINATIVO NEL RISPETTO DELLA NORMATIVA SULLA PROTEZIONE DATI PERSONALI; ;IMPEGNO DI SPESA PER CONTRIBUTO A FAVORE DI CITTADINI SOFFERENTI MENTALI INSERITI IN STRUTTURE RESIDENZIALI ANNUALITA' 2018.;05-09-2018;1412;0;3;1;Spese correnti;3;Acquisto di beni e servizi;2;Acquisto di servizi;15;Contratti di servizio pubblico;8;Contratti di servizio di assistenza sociale residenziale e semiresidenziale;05-09-2018;
1317;1;0;"300,00";"300,00";OMESSO NOMINATIVO NEL RISPETTO DELLA NORMATIVA SULLA PROTEZIONE DATI PERSONALI; ;IMPEGNO DI SPESA PER CONTRIBUTO A FAVORE DI CITTADINI SOFFERENTI MENTALI INSERITI IN STRUTTURE RESIDENZIALI ANNUALITA' 2018.;05-09-2018;1412;0;3;1;Spese correnti;3;Acquisto di beni e servizi;2;Acquisto di servizi;15;Contratti di servizio pubblico;8;Contratti di servizio di assistenza sociale residenziale e semiresidenziale;05-09-2018;
1318;1;0;"90,00";"90,00";OMESSO NOMINATIVO NEL RISPETTO DELLA NORMATIVA SULLA PROTEZIONE DATI PERSONALI; ;IMPEGNO DI SPESA PER PIANI PERSONALIZZATI IN SOSTEGNO DELLE PERSONE CON DISABILITA' GRAVE DI CUI ALLA L.162/1998 -DGR 55/12 DEL 31.12.2017.;05-09-2018;1420;2;142;1;Spese correnti;4;Trasferimenti correnti;2;Trasferimenti correnti a Famiglie;2;Interventi assistenziali;999;Altri assegni e sussidi assistenziali;05-09-2018;
1319;1;0;"225,55";"225,55";OMESSO NOMINATIVO NEL RISPETTO DELLA NORMATIVA SULLA PROTEZIONE DATI PERSONALI; ;IMPEGNO DI SPESA PER PIANI PERSONALIZZATI IN SOSTEGNO DELLE PERSONE CON DISABILITA' GRAVE DI CUI ALLA L.162/1998 -DGR 55/12 DEL 31.12.2017.;05-09-2018;1420;2;142;1;Spese correnti;4;Trasferimenti correnti;2;Trasferimenti correnti a Famiglie;2;Interventi assistenziali;999;Altri assegni e sussidi assistenziali;05-09-2018;
1320;1;0;"118,97";"118,97";OMESSO NOMINATIVO NEL RISPETTO DELLA NORMATIVA SULLA PROTEZIONE DATI PERSONALI; ;IMPEGNO DI SPESA PER PIANI PERSONALIZZATI IN SOSTEGNO DELLE PERSONE CON DISABILITA' GRAVE DI CUI ALLA L.162/1998 -DGR 55/12 DEL 31.12.2017.;05-09-2018;1420;2;142;1;Spese correnti;4;Trasferimenti correnti;2;Trasferimenti correnti a Famiglie;2;Interventi assistenziali;999;Altri assegni e sussidi assistenziali;05-09-2018;
1321;1;0;"124,04";"124,04";OMESSO NOMINATIVO NEL RISPETTO DELLA NORMATIVA SULLA PROTEZIONE DATI PERSONALI; ;IMPEGNO DI SPESA PER PIANI PERSONALIZZATI IN SOSTEGNO DELLE PERSONE CON DISABILITA' GRAVE DI CUI ALLA L.162/1998 -DGR 55/12 DEL 31.12.2017.;05-09-2018;1420;2;142;1;Spese correnti;4;Trasferimenti correnti;2;Trasferimenti correnti a Famiglie;2;Interventi assistenziali;999;Altri assegni e sussidi assistenziali;05-09-2018;
1322;1;0;"1.094,32";"1.094,32";OMESSO NOMINATIVO NEL RISPETTO DELLA NORMATIVA SULLA PROTEZIONE DATI PERSONALI; ;IMPEGNO DI SPESA PER PIANI PERSONALIZZATI IN SOSTEGNO DELLE PERSONE CON DISABILITA' GRAVE DI CUI ALLA L.162/1998 -DGR 55/12 DEL 31.12.2017.;05-09-2018;1420;2;142;1;Spese correnti;4;Trasferimenti correnti;2;Trasferimenti correnti a Famiglie;2;Interventi assistenziali;999;Altri assegni e sussidi assistenziali;05-09-2018;
1323;1;0;"335,71";"335,71";OMESSO NOMINATIVO NEL RISPETTO DELLA NORMATIVA SULLA PROTEZIONE DATI PERSONALI; ;IMPEGNO DI SPESA PER PIANI PERSONALIZZATI IN SOSTEGNO DELLE PERSONE CON DISABILITA' GRAVE DI CUI ALLA L.162/1998 -DGR 55/12 DEL 31.12.2017.;05-09-2018;1420;2;142;1;Spese correnti;4;Trasferimenti correnti;2;Trasferimenti correnti a Famiglie;2;Interventi assistenziali;999;Altri assegni e sussidi assistenziali;05-09-2018;
1324;1;0;"601,30";"601,30";OMESSO NOMINATIVO NEL RISPETTO DELLA NORMATIVA SULLA PROTEZIONE DATI PERSONALI; ;IMPEGNO DI SPESA PER PIANI PERSONALIZZATI IN SOSTEGNO DELLE PERSONE CON DISABILITA' GRAVE DI CUI ALLA L.162/1998 -DGR 55/12 DEL 31.12.2017.;05-09-2018;1420;2;142;1;Spese correnti;4;Trasferimenti correnti;2;Trasferimenti correnti a Famiglie;2;Interventi assistenziali;999;Altri assegni e sussidi assistenziali;05-09-2018;
1325;1;0;"175,29";"175,29";OMESSO NOMINATIVO NEL RISPETTO DELLA NORMATIVA SULLA PROTEZIONE DATI PERSONALI; ;IMPEGNO DI SPESA PER PIANI PERSONALIZZATI IN SOSTEGNO DELLE PERSONE CON DISABILITA' GRAVE DI CUI ALLA L.162/1998 -DGR 55/12 DEL 31.12.2017.;05-09-2018;1420;2;142;1;Spese correnti;4;Trasferimenti correnti;2;Trasferimenti correnti a Famiglie;2;Interventi assistenziali;999;Altri assegni e sussidi assistenziali;05-09-2018;
1326;1;0;"360,49";"360,49";OMESSO NOMINATIVO NEL RISPETTO DELLA NORMATIVA SULLA PROTEZIONE DATI PERSONALI; ;IMPEGNO DI SPESA PER PIANI PERSONALIZZATI IN SOSTEGNO DELLE PERSONE CON DISABILITA' GRAVE DI CUI ALLA L.162/1998 -DGR 55/12 DEL 31.12.2017.;05-09-2018;1420;2;142;1;Spese correnti;4;Trasferimenti correnti;2;Trasferimenti correnti a Famiglie;2;Interventi assistenziali;999;Altri assegni e sussidi assistenziali;05-09-2018;
1327;1;0;"187,50";"187,50";OMESSO NOMINATIVO NEL RISPETTO DELLA NORMATIVA SULLA PROTEZIONE DATI PERSONALI; ;IMPEGNO DI SPESA PER PIANI PERSONALIZZATI IN SOSTEGNO DELLE PERSONE CON DISABILITA' GRAVE DI CUI ALLA L.162/1998 -DGR 55/12 DEL 31.12.2017.;05-09-2018;1420;2;142;1;Spese correnti;4;Trasferimenti correnti;2;Trasferimenti correnti a Famiglie;2;Interventi assistenziali;999;Altri assegni e sussidi assistenziali;05-09-2018;
1328;1;0;"161,66";"161,66";OMESSO NOMINATIVO NEL RISPETTO DELLA NORMATIVA SULLA PROTEZIONE DATI PERSONALI; ;IMPEGNO DI SPESA PER PIANI PERSONALIZZATI IN SOSTEGNO DELLE PERSONE CON DISABILITA' GRAVE DI CUI ALLA L.162/1998 -DGR 55/12 DEL 31.12.2017.;05-09-2018;1420;2;142;1;Spese correnti;4;Trasferimenti correnti;2;Trasferimenti correnti a Famiglie;2;Interventi assistenziali;999;Altri assegni e sussidi assistenziali;05-09-2018;
1329;1;0;"154,81";"154,81";OMESSO NOMINATIVO NEL RISPETTO DELLA NORMATIVA SULLA PROTEZIONE DATI PERSONALI; ;IMPEGNO DI SPESA PER PIANI PERSONALIZZATI IN SOSTEGNO DELLE PERSONE CON DISABILITA' GRAVE DI CUI ALLA L.162/1998 -DGR 55/12 DEL 31.12.2017.;05-09-2018;1420;2;142;1;Spese correnti;4;Trasferimenti correnti;2;Trasferimenti correnti a Famiglie;2;Interventi assistenziali;999;Altri assegni e sussidi assistenziali;05-09-2018;
1330;1;0;"187,50";"187,50";OMESSO NOMINATIVO NEL RISPETTO DELLA NORMATIVA SULLA PROTEZIONE DATI PERSONALI; ;IMPEGNO DI SPESA PER PIANI PERSONALIZZATI IN SOSTEGNO DELLE PERSONE CON DISABILITA' GRAVE DI CUI ALLA L.162/1998 -DGR 55/12 DEL 31.12.2017.;05-09-2018;1420;2;142;1;Spese correnti;4;Trasferimenti correnti;2;Trasferimenti correnti a Famiglie;2;Interventi assistenziali;999;Altri assegni e sussidi assistenziali;05-09-2018;
1331;1;0;"156,25";"156,25";OMESSO NOMINATIVO NEL RISPETTO DELLA NORMATIVA SULLA PROTEZIONE DATI PERSONALI; ;IMPEGNO DI SPESA PER PIANI PERSONALIZZATI IN SOSTEGNO DELLE PERSONE CON DISABILITA' GRAVE DI CUI ALLA L.162/1998 -DGR 55/12 DEL 31.12.2017.;05-09-2018;1420;2;142;1;Spese correnti;4;Trasferimenti correnti;2;Trasferimenti correnti a Famiglie;2;Interventi assistenziali;999;Altri assegni e sussidi assistenziali;05-09-2018;
1332;1;0;"200,00";"200,00";OMESSO NOMINATIVO NEL RISPETTO DELLA NORMATIVA SULLA PROTEZIONE DATI PERSONALI; ;IMPEGNO DI SPESA PER PIANI PERSONALIZZATI IN SOSTEGNO DELLE PERSONE CON DISABILITA' GRAVE DI CUI ALLA L.162/1998 -DGR 55/12 DEL 31.12.2017.;05-09-2018;1420;2;142;1;Spese correnti;4;Trasferimenti correnti;2;Trasferimenti correnti a Famiglie;2;Interventi assistenziali;999;Altri assegni e sussidi assistenziali;05-09-2018;
1333;1;0;"113,57";"113,57";OMESSO NOMINATIVO NEL RISPETTO DELLA NORMATIVA SULLA PROTEZIONE DATI PERSONALI; ;IMPEGNO DI SPESA PER PIANI PERSONALIZZATI IN SOSTEGNO DELLE PERSONE CON DISABILITA' GRAVE DI CUI ALLA L.162/1998 -DGR 55/12 DEL 31.12.2017.;05-09-2018;1420;2;142;1;Spese correnti;4;Trasferimenti correnti;2;Trasferimenti correnti a Famiglie;2;Interventi assistenziali;999;Altri assegni e sussidi assistenziali;05-09-2018;
1334;1;0;"172,47";"172,47";OMESSO NOMINATIVO NEL RISPETTO DELLA NORMATIVA SULLA PROTEZIONE DATI PERSONALI; ;IMPEGNO DI SPESA PER PIANI PERSONALIZZATI IN SOSTEGNO DELLE PERSONE CON DISABILITA' GRAVE DI CUI ALLA L.162/1998 -DGR 55/12 DEL 31.12.2017.;05-09-2018;1420;2;142;1;Spese correnti;4;Trasferimenti correnti;2;Trasferimenti correnti a Famiglie;2;Interventi assistenziali;999;Altri assegni e sussidi assistenziali;05-09-2018;
1335;1;0;"118,25";"118,25";OMESSO NOMINATIVO NEL RISPETTO DELLA NORMATIVA SULLA PROTEZIONE DATI PERSONALI; ;IMPEGNO DI SPESA PER PIANI PERSONALIZZATI IN SOSTEGNO DELLE PERSONE CON DISABILITA' GRAVE DI CUI ALLA L.162/1998 -DGR 55/12 DEL 31.12.2017.;05-09-2018;1420;2;142;1;Spese correnti;4;Trasferimenti correnti;2;Trasferimenti correnti a Famiglie;2;Interventi assistenziali;999;Altri assegni e sussidi assistenziali;05-09-2018;
1336;1;0;"170,09";"170,09";OMESSO NOMINATIVO NEL RISPETTO DELLA NORMATIVA SULLA PROTEZIONE DATI PERSONALI; ;IMPEGNO DI SPESA PER PIANI PERSONALIZZATI IN SOSTEGNO DELLE PERSONE CON DISABILITA' GRAVE DI CUI ALLA L.162/1998 -DGR 55/12 DEL 31.12.2017.;05-09-2018;1420;2;142;1;Spese correnti;4;Trasferimenti correnti;2;Trasferimenti correnti a Famiglie;2;Interventi assistenziali;999;Altri assegni e sussidi assistenziali;05-09-2018;
1337;1;0;"163,85";"163,85";OMESSO NOMINATIVO NEL RISPETTO DELLA NORMATIVA SULLA PROTEZIONE DATI PERSONALI; ;IMPEGNO DI SPESA PER PIANI PERSONALIZZATI IN SOSTEGNO DELLE PERSONE CON DISABILITA' GRAVE DI CUI ALLA L.162/1998 -DGR 55/12 DEL 31.12.2017.;05-09-2018;1420;2;142;1;Spese correnti;4;Trasferimenti correnti;2;Trasferimenti correnti a Famiglie;2;Interventi assistenziali;999;Altri assegni e sussidi assistenziali;05-09-2018;
1338;1;0;"650,00";"650,00";OMESSO NOMINATIVO NEL RISPETTO DELLA NORMATIVA SULLA PROTEZIONE DATI PERSONALI; ;IMPEGNO DI SPESA PER L.R. 11/185-PROVVIDENZE A FAVORE DI NEFROPATICI-PRESA IN CARICO ANNO 2018.;05-09-2018;1438;0;19;1;Spese correnti;4;Trasferimenti correnti;2;Trasferimenti correnti a Famiglie;2;Interventi assistenziali;999;Altri assegni e sussidi assistenziali;05-09-2018;
1339;1;0;"53,74";"53,74";ENEL ENERGIA;ZB5225B867;Fatt.n. 004811389067 del 10/08/2018;05-09-2018;1012;4;26;1;Spese correnti;3;Acquisto di beni e servizi;2;Acquisto di servizi;5;Utenze e canoni;4;Energia elettrica;05-09-2018;
1340;1;0;"14,49";"14,49";ENEL ENERGIA;ZB5225B867;Fatt.n. 004811389526 del 10/08/2018;05-09-2018;1012;4;26;1;Spese correnti;3;Acquisto di beni e servizi;2;Acquisto di servizi;5;Utenze e canoni;4;Energia elettrica;05-09-2018;
1341;1;0;"625,68";"625,68";ENEL ENERGIA;ZB5225B867;Fatt.n. 004811390589 del 10/08/2018;05-09-2018;1012;4;26;1;Spese correnti;3;Acquisto di beni e servizi;2;Acquisto di servizi;5;Utenze e canoni;4;Energia elettrica;05-09-2018;
1342;1;0;"76,30";"76,30";ENEL ENERGIA;ZB5225B867;Fatt.n. 004811390590 del 10/08/2018;05-09-2018;1012;4;26;1;Spese correnti;3;Acquisto di beni e servizi;2;Acquisto di servizi;5;Utenze e canoni;4;Energia elettrica;05-09-2018;
1343;1;0;"1.352,89";"1.352,89";ENEL ENERGIA;ZB5225B867;Fatt.n. 004811390591 del 10/08/2018;05-09-2018;1012;4;26;1;Spese correnti;3;Acquisto di beni e servizi;2;Acquisto di servizi;5;Utenze e canoni;4;Energia elettrica;05-09-2018;
1344;1;0;"160,82";"160,82";ENEL ENERGIA;ZB5225B867;Fatt.n. 004811390592 del 10/08/2018;05-09-2018;1012;4;26;1;Spese correnti;3;Acquisto di beni e servizi;2;Acquisto di servizi;5;Utenze e canoni;4;Energia elettrica;05-09-2018;
1345;1;0;"52,37";"52,37";ENEL ENERGIA;ZB5225B867;Fatt.n. 004811409440 del 13/08/2018;05-09-2018;1012;4;26;1;Spese correnti;3;Acquisto di beni e servizi;2;Acquisto di servizi;5;Utenze e canoni;4;Energia elettrica;05-09-2018;
1346;1;0;"1.553,72";"1.553,72";SERVIZIO ELETTRICO NAZIONALE - SERVIZIO DI MAGGIOR TUTE;Z2F225B795;Fatt.n. 907151111749417 del 10/08/2018;05-09-2018;118;4;25;1;Spese correnti;3;Acquisto di beni e servizi;2;Acquisto di servizi;5;Utenze e canoni;4;Energia elettrica;05-09-2018;
1347;1;0;"66,40";"66,40";SERVIZIO ELETTRICO NAZIONALE - SERVIZIO DI MAGGIOR TUTE;ZF31E46592;Fatt.n. 907150481720011 del 10/08/2018;05-09-2018;118;4;86;1;Spese correnti;3;Acquisto di beni e servizi;2;Acquisto di servizi;5;Utenze e canoni;4;Energia elettrica;05-09-2018;
1348;1;0;"3.745,40";"3.745,40";BECCA GIOVANNI;Z95249F6C7;Fatt.n. FATTPA 3_18 del 03/09/2018;05-09-2018;255;0;206;1;Spese correnti;3;Acquisto di beni e servizi;2;Acquisto di servizi;9;Manutenzione ordinaria e riparazioni;8;Manutenzione ordinaria e riparazioni di beni immobili;05-09-2018;
1349;1;0;"104,75";"104,75";OMESSO NOMINATIVO NEL RISPETTO DELLA NORMATIVA SULLA PROTEZIONE DATI PERSONALI; ;IMPEGNO DI SPESA PER PIANI PERSONALIZZATI IN SOSTEGNO DELLE PERSONE CON DISABILITA' GRAVE DI CUI ALLA L.162/1998 -DGR 55/12 DEL 31.12.2017.;05-09-2018;1420;2;142;1;Spese correnti;4;Trasferimenti correnti;2;Trasferimenti correnti a Famiglie;2;Interventi assistenziali;999;Altri assegni e sussidi assistenziali;05-09-2018;
1350;1;0;"261,89";"261,89";OMESSO NOMINATIVO NEL RISPETTO DELLA NORMATIVA SULLA PROTEZIONE DATI PERSONALI; ;IMPEGNO DI SPESA PER PIANI PERSONALIZZATI IN SOSTEGNO DELLE PERSONE CON DISABILITA' GRAVE DI CUI ALLA L.162/1998 -DGR 55/12 DEL 31.12.2017.;05-09-2018;1420;2;142;1;Spese correnti;4;Trasferimenti correnti;2;Trasferimenti correnti a Famiglie;2;Interventi assistenziali;999;Altri assegni e sussidi assistenziali;05-09-2018;
1351;1;0;"564,93";"564,93";OMESSO NOMINATIVO NEL RISPETTO DELLA NORMATIVA SULLA PROTEZIONE DATI PERSONALI; ;IMPEGNO DI SPESA PER PIANI PERSONALIZZATI IN SOSTEGNO DELLE PERSONE CON DISABILITA' GRAVE DI CUI ALLA L.162/1998 -DGR 55/12 DEL 31.12.2017.;05-09-2018;1420;2;142;1;Spese correnti;4;Trasferimenti correnti;2;Trasferimenti correnti a Famiglie;2;Interventi assistenziali;999;Altri assegni e sussidi assistenziali;05-09-2018;
1352;1;0;"654,47";"654,47";OMESSO NOMINATIVO NEL RISPETTO DELLA NORMATIVA SULLA PROTEZIONE DATI PERSONALI; ;IMPEGNO DI SPESA PER PIANI PERSONALIZZATI IN SOSTEGNO DELLE PERSONE CON DISABILITA' GRAVE DI CUI ALLA L.162/1998 -DGR 55/12 DEL 31.12.2017.;05-09-2018;1420;2;142;1;Spese correnti;4;Trasferimenti correnti;2;Trasferimenti correnti a Famiglie;2;Interventi assistenziali;999;Altri assegni e sussidi assistenziali;05-09-2018;
1353;1;0;"164,62";"164,62";OMESSO NOMINATIVO NEL RISPETTO DELLA NORMATIVA SULLA PROTEZIONE DATI PERSONALI; ;IMPEGNO DI SPESA PER PIANI PERSONALIZZATI IN SOSTEGNO DELLE PERSONE CON DISABILITA' GRAVE DI CUI ALLA L.162/1998 -DGR 55/12 DEL 31.12.2017.;05-09-2018;1420;2;142;1;Spese correnti;4;Trasferimenti correnti;2;Trasferimenti correnti a Famiglie;2;Interventi assistenziali;999;Altri assegni e sussidi assistenziali;05-09-2018;
1354;1;0;"209,51";"209,51";OMESSO NOMINATIVO NEL RISPETTO DELLA NORMATIVA SULLA PROTEZIONE DATI PERSONALI; ;IMPEGNO DI SPESA PER PIANI PERSONALIZZATI IN SOSTEGNO DELLE PERSONE CON DISABILITA' GRAVE DI CUI ALLA L.162/1998 -DGR 55/12 DEL 31.12.2017.;05-09-2018;1420;2;142;1;Spese correnti;4;Trasferimenti correnti;2;Trasferimenti correnti a Famiglie;2;Interventi assistenziali;999;Altri assegni e sussidi assistenziali;05-09-2018;
1355;1;0;"666,60";"666,60";OMESSO NOMINATIVO NEL RISPETTO DELLA NORMATIVA SULLA PROTEZIONE DATI PERSONALI; ;IMPEGNO DI SPESA PER PIANI PERSONALIZZATI IN SOSTEGNO DELLE PERSONE CON DISABILITA' GRAVE DI CUI ALLA L.162/1998 -DGR 55/12 DEL 31.12.2017.;05-09-2018;1420;2;142;1;Spese correnti;4;Trasferimenti correnti;2;Trasferimenti correnti a Famiglie;2;Interventi assistenziali;999;Altri assegni e sussidi assistenziali;05-09-2018;
1356;1;0;"615,63";"615,63";OMESSO NOMINATIVO NEL RISPETTO DELLA NORMATIVA SULLA PROTEZIONE DATI PERSONALI; ;IMPEGNO DI SPESA PER PIANI PERSONALIZZATI IN SOSTEGNO DELLE PERSONE CON DISABILITA' GRAVE DI CUI ALLA L.162/1998 -DGR 55/12 DEL 31.12.2017.;05-09-2018;1420;2;142;1;Spese correnti;4;Trasferimenti correnti;2;Trasferimenti correnti a Famiglie;2;Interventi assistenziali;999;Altri assegni e sussidi assistenziali;05-09-2018;
1357;1;0;"149,59";"149,59";OMESSO NOMINATIVO NEL RISPETTO DELLA NORMATIVA SULLA PROTEZIONE DATI PERSONALI; ;IMPEGNO DI SPESA PER PIANI PERSONALIZZATI IN SOSTEGNO DELLE PERSONE CON DISABILITA' GRAVE DI CUI ALLA L.162/1998 -DGR 55/12 DEL 31.12.2017.;05-09-2018;1420;2;142;1;Spese correnti;4;Trasferimenti correnti;2;Trasferimenti correnti a Famiglie;2;Interventi assistenziali;999;Altri assegni e sussidi assistenziali;05-09-2018;
1358;1;0;"350,11";"350,11";OMESSO NOMINATIVO NEL RISPETTO DELLA NORMATIVA SULLA PROTEZIONE DATI PERSONALI; ;IMPEGNO DI SPESA PER PIANI PERSONALIZZATI IN SOSTEGNO DELLE PERSONE CON DISABILITA' GRAVE DI CUI ALLA L.162/1998 -DGR 55/12 DEL 31.12.2017.;05-09-2018;1420;2;142;1;Spese correnti;4;Trasferimenti correnti;2;Trasferimenti correnti a Famiglie;2;Interventi assistenziali;999;Altri assegni e sussidi assistenziali;05-09-2018;
1359;1;0;"149,59";"149,59";OMESSO NOMINATIVO NEL RISPETTO DELLA NORMATIVA SULLA PROTEZIONE DATI PERSONALI; ;IMPEGNO DI SPESA PER PIANI PERSONALIZZATI IN SOSTEGNO DELLE PERSONE CON DISABILITA' GRAVE DI CUI ALLA L.162/1998 -DGR 55/12 DEL 31.12.2017.;05-09-2018;1420;2;142;1;Spese correnti;4;Trasferimenti correnti;2;Trasferimenti correnti a Famiglie;2;Interventi assistenziali;999;Altri assegni e sussidi assistenziali;05-09-2018;
1360;1;0;"158,33";"158,33";OMESSO NOMINATIVO NEL RISPETTO DELLA NORMATIVA SULLA PROTEZIONE DATI PERSONALI; ;IMPEGNO DI SPESA PER PIANI PERSONALIZZATI IN SOSTEGNO DELLE PERSONE CON DISABILITA' GRAVE DI CUI ALLA L.162/1998 -DGR 55/12 DEL 31.12.2017.;05-09-2018;1420;2;142;1;Spese correnti;4;Trasferimenti correnti;2;Trasferimenti correnti a Famiglie;2;Interventi assistenziali;999;Altri assegni e sussidi assistenziali;05-09-2018;
1361;1;0;"154,86";"154,86";OMESSO NOMINATIVO NEL RISPETTO DELLA NORMATIVA SULLA PROTEZIONE DATI PERSONALI; ;IMPEGNO DI SPESA PER PIANI PERSONALIZZATI IN SOSTEGNO DELLE PERSONE CON DISABILITA' GRAVE DI CUI ALLA L.162/1998 -DGR 55/12 DEL 31.12.2017.;05-09-2018;1420;2;142;1;Spese correnti;4;Trasferimenti correnti;2;Trasferimenti correnti a Famiglie;2;Interventi assistenziali;999;Altri assegni e sussidi assistenziali;05-09-2018;
1362;1;0;"543,80";"543,80";OMESSO NOMINATIVO NEL RISPETTO DELLA NORMATIVA SULLA PROTEZIONE DATI PERSONALI; ;IMPEGNO DI SPESA PER PIANI PERSONALIZZATI IN SOSTEGNO DELLE PERSONE CON DISABILITA' GRAVE DI CUI ALLA L.162/1998 -DGR 55/12 DEL 31.12.2017.;05-09-2018;1420;2;142;1;Spese correnti;4;Trasferimenti correnti;2;Trasferimenti correnti a Famiglie;2;Interventi assistenziali;999;Altri assegni e sussidi assistenziali;05-09-2018;
1363;1;0;"604,00";"604,00";OMESSO NOMINATIVO NEL RISPETTO DELLA NORMATIVA SULLA PROTEZIONE DATI PERSONALI; ;IMPEGNO DI SPESA PER L.R. 11/185-PROVVIDENZE A FAVORE DI NEFROPATICI-PRESA IN CARICO ANNO 2018.;05-09-2018;1438;0;19;1;Spese correnti;4;Trasferimenti correnti;2;Trasferimenti correnti a Famiglie;2;Interventi assistenziali;999;Altri assegni e sussidi assistenziali;05-09-2018;
1364;1;0;"600,00";"600,00";LEONI DONATELLA;Z5724577AA;Organizzazione Rassegna estiva denominata E-STATE A TULA 2018. COMMEDIA DEL 2.8.2018.;06-09-2018;746;0;184;1;Spese correnti;3;Acquisto di beni e servizi;2;Acquisto di servizi;2;"Organizzazione eventi, pubblicita` e servizi per trasferta";5;Organizzazione e partecipazione a manifestazioni e convegni;06-09-2018;
1365;1;0;"300,00";"300,00";ASSOCIAZIONE CULTURALE CANTIGOS A CHITERRA; ;"Programma di assegnazione contributi alle Associazioni locali e Comitati per l'organizzazione delle manifestazioni di carattere sociale, culturale, religioso e sportivo - Anno 2018. Impegno di spesa";06-09-2018;760;0;168;1;Spese correnti;4;Trasferimenti correnti;4;Trasferimenti correnti a Istituzioni Sociali Private;1;Trasferimenti correnti a Istituzioni Sociali Private;1;Trasferimenti correnti a Istituzioni Sociali Private;06-09-2018;
1366;1;0;"4.331,00";"4.331,00";SOTGIU GIUSEPPE;ZED2493AB7;Fatt.n. 17/PA del 05/09/2018 SALDO su manutenzione impianti elettrici presso vostro ente. DET Reg.Ge.le. n. 269 del 03/08/2018 CIG ZED2493AB7.;06-09-2018;1012;0;203;1;Spese correnti;3;Acquisto di beni e servizi;2;Acquisto di servizi;9;Manutenzione ordinaria e riparazioni;4;Manutenzione ordinaria e riparazioni di impianti e macchinari;06-09-2018;
1367;1;0;"900,00";"900,00";SECHI ANNA RESP. SERV. FINANZ.TRIBUTI ECONOMATO; ;PAGAMENTO F23 SPESE REGISTRO IPOTEC. E CATASTALE- ESPROPRIO TRATTO DI STRADA SERRA NIEDDA - ROSSO GIOVANNI E ATZARA ANNA PEPPINA;07-09-2018;3126;0;181;2;Spese in conto capitale;2;Investimenti fissi lordi e acquisto di terreni;1;Beni materiali;9;Beni immobili;14;Opere per la sistemazione del suolo;07-09-2018;
1368;1;0;"900,00";"900,00";SECHI ANNA RESP. SERV. FINANZ.TRIBUTI ECONOMATO; ;PAGAMENTO F23 SPESE REGISTRO IPOTEC. E CATASTALE- ESPROPRIO TRATTO DI STRADA SERRA NIEDDA - ROSSO GIOVANNI E ATZARA ANNA PEPPINA;07-09-2018;3126;0;181;2;Spese in conto capitale;2;Investimenti fissi lordi e acquisto di terreni;1;Beni materiali;9;Beni immobili;14;Opere per la sistemazione del suolo;07-09-2018;
1369;1;0;"400,00";"400,00";SECHI ANNA RESP. SERV. FINANZ.TRIBUTI ECONOMATO; ;PAGAMENTO F23 SPESE REGISTRO IPOTEC. E CATASTALE- ESPROPRIO TRATTO DI STRADA SERRA NIEDDA - ROSSO GIOVANNI E ATZARA ANNA PEPPINA;07-09-2018;3126;0;181;2;Spese in conto capitale;2;Investimenti fissi lordi e acquisto di terreni;1;Beni materiali;9;Beni immobili;14;Opere per la sistemazione del suolo;07-09-2018;
1370;1;0;"1.094,27";"1.094,27";ROSSO GIOVANNI; ;INDENNITA' ESPROPRIO TRATTO DI STRADA SERRA NIEDDA - ROSSO GIOVANNI E ATZARA ANNA PEPPINA.LIQ.422;07-09-2018;3126;0;181;2;Spese in conto capitale;2;Investimenti fissi lordi e acquisto di terreni;1;Beni materiali;9;Beni immobili;14;Opere per la sistemazione del suolo;07-09-2018;
1371;1;0;"60,02";"60,02";ATZARA ANNA PEPPINA; ;INDENNITA' ESPROPRIO TRATTO DI STRADA SERRA NIEDDA - ROSSO GIOVANNI E ATZARA ANNA PEPPINA. liq.422;07-09-2018;3126;0;181;2;Spese in conto capitale;2;Investimenti fissi lordi e acquisto di terreni;1;Beni materiali;9;Beni immobili;14;Opere per la sistemazione del suolo;07-09-2018;
1372;1;0;"3.753,72";"3.753,72";SOLINAS MADDALENA; ;Approvazione Bando Contributi a privati per interventi volti al risparmio energetico. annualita 2018;07-09-2018;1820;0;99;1;Spese correnti;4;Trasferimenti correnti;2;Trasferimenti correnti a Famiglie;5;Altri trasferimenti a famiglie;999;Altri trasferimenti a famiglie n.a.c.;07-09-2018;
1374;1;0;"996,50";"996,50";SCHINTU GIUSEPPE; ;Approvazione Bando Contributi a privati per interventi volti al risparmio energetico. annualita 2018;07-09-2018;1820;0;99;1;Spese correnti;4;Trasferimenti correnti;2;Trasferimenti correnti a Famiglie;5;Altri trasferimenti a famiglie;999;Altri trasferimenti a famiglie n.a.c.;07-09-2018;
1375;1;0;"4.000,00";"4.000,00";POMATELLI GRAZIELLA; ;Approvazione Bando Contributi a privati per interventi volti al risparmio energetico. annualita 2018;07-09-2018;1820;0;99;1;Spese correnti;4;Trasferimenti correnti;2;Trasferimenti correnti a Famiglie;5;Altri trasferimenti a famiglie;999;Altri trasferimenti a famiglie n.a.c.;07-09-2018;
1376;1;0;"2.640,00";"2.640,00";CALVISI GIULIA; ;Approvazione Bando Contributi a privati per interventi volti al risparmio energetico. annualita 2018;07-09-2018;1820;0;99;1;Spese correnti;4;Trasferimenti correnti;2;Trasferimenti correnti a Famiglie;5;Altri trasferimenti a famiglie;999;Altri trasferimenti a famiglie n.a.c.;07-09-2018;
1377;1;0;"145,59";"145,59";OMESSO NOMINATIVO NEL RISPETTO DELLA NORMATIVA SULLA PROTEZIONE DATI PERSONALI; ;IMPEGNO DI SPESA PER PIANI PERSONALIZZATI IN SOSTEGNO DELLE PERSONE CON DISABILITA' GRAVE DI CUI ALLA L.162/1998 -DGR 55/12 DEL 31.12.2017.;07-09-2018;1420;2;142;1;Spese correnti;4;Trasferimenti correnti;2;Trasferimenti correnti a Famiglie;2;Interventi assistenziali;999;Altri assegni e sussidi assistenziali;07-09-2018;
1378;1;0;"235,52";"235,52";OMESSO NOMINATIVO NEL RISPETTO DELLA NORMATIVA SULLA PROTEZIONE DATI PERSONALI; ;IMPEGNO DI SPESA PER PIANI PERSONALIZZATI IN SOSTEGNO DELLE PERSONE CON DISABILITA' GRAVE DI CUI ALLA L.162/1998 -DGR 55/12 DEL 31.12.2017.;07-09-2018;1420;2;142;1;Spese correnti;4;Trasferimenti correnti;2;Trasferimenti correnti a Famiglie;2;Interventi assistenziali;999;Altri assegni e sussidi assistenziali;07-09-2018;
1379;1;0;"300,00";"300,00";OMESSO NOMINATIVO NEL RISPETTO DELLA NORMATIVA SULLA PROTEZIONE DATI PERSONALI; ;IMPEGNO DI SPESA PER PIANI PERSONALIZZATI IN SOSTEGNO DELLE PERSONE CON DISABILITA' GRAVE DI CUI ALLA L.162/1998 -DGR 55/12 DEL 31.12.2017.;07-09-2018;1420;2;142;1;Spese correnti;4;Trasferimenti correnti;2;Trasferimenti correnti a Famiglie;2;Interventi assistenziali;999;Altri assegni e sussidi assistenziali;07-09-2018;
1380;1;0;"71,85";"71,85";OMESSO NOMINATIVO NEL RISPETTO DELLA NORMATIVA SULLA PROTEZIONE DATI PERSONALI; ;IMPEGNO DI SPESA PER PIANI PERSONALIZZATI IN SOSTEGNO DELLE PERSONE CON DISABILITA' GRAVE DI CUI ALLA L.162/1998 -DGR 55/12 DEL 31.12.2017.;07-09-2018;1420;2;142;1;Spese correnti;4;Trasferimenti correnti;2;Trasferimenti correnti a Famiglie;2;Interventi assistenziali;999;Altri assegni e sussidi assistenziali;07-09-2018;
1381;1;0;"511,00";"511,00";OMESSO NOMINATIVO NEL RISPETTO DELLA NORMATIVA SULLA PROTEZIONE DATI PERSONALI; ;IMPEGNO DI SPESA PER L.R. 11/185-PROVVIDENZE A FAVORE DI NEFROPATICI-PRESA IN CARICO ANNO 2018.;07-09-2018;1438;0;19;1;Spese correnti;4;Trasferimenti correnti;2;Trasferimenti correnti a Famiglie;2;Interventi assistenziali;999;Altri assegni e sussidi assistenziali;07-09-2018;
1382;1;0;"3.549,07";"3.549,07";ORVEI COOPERATIVA SOCIALE ONLUS;Z3E2138775;"Fatt.n. 17/PA del 31/08/2018 LAVORI DI MANUTENZIONE VERDE, CIMITERO, PULIZIA STRADE, PULIZIA SORGENTI, MANUTENZIONE IMPIANTI DI IRRIGAZIONE - CIG Z3E2138775 DET. N.431 DEL 29/12/2017 AGOSTO 2018";10-09-2018;1488;0;10;1;Spese correnti;3;Acquisto di beni e servizi;2;Acquisto di servizi;13;Servizi ausiliari per il funzionamento dell'ente;999;Altri servizi ausiliari n.a.c.;10-09-2018;
1383;1;0;"1.830,00";"1.830,00";PUDDU PALMIRO;ZDC24C7883;Fatt.n. 05/PA/2018 del 04/09/2018 SERVIZIO;10-09-2018;3413;0;211;2;Spese in conto capitale;5;Altre spese in conto capitale;99;Altre spese in conto capitale n.a.c.;99;Altre spese in conto capitale n.a.c.;999;Altre spese in conto capitale n.a.c.;10-09-2018;
1384;1;0;"2.074,00";"2.074,00";PUDDU PALMIRO;Z23243B361;Fatt.n. 04/PA/2018 del 04/09/2018 SERVIZIO;10-09-2018;3413;0;176;2;Spese in conto capitale;5;Altre spese in conto capitale;99;Altre spese in conto capitale n.a.c.;99;Altre spese in conto capitale n.a.c.;999;Altre spese in conto capitale n.a.c.;10-09-2018;
1385;1;0;"634,40";"634,40";MURA ENRICO;Z142197A92;Fatt.n. FATTPA 9_18 del 03/09/2018;11-09-2018;254;0;5;1;Spese correnti;3;Acquisto di beni e servizi;2;Acquisto di servizi;11;Prestazioni professionali e specialistiche;999;Altre prestazioni professionali e specialistiche n.a.c.;11-09-2018;
1386;1;0;"91,50";"91,50";FIORI ANTONIO;Z5724577AA;"Fatt.n. 1/FE COMM del 06/09/2018 det. 244 del 05/07.2018 cig Z5724577AA,";11-09-2018;746;0;184;1;Spese correnti;3;Acquisto di beni e servizi;2;Acquisto di servizi;2;"Organizzazione eventi, pubblicita` e servizi per trasferta";5;Organizzazione e partecipazione a manifestazioni e convegni;11-09-2018;
1387;1;0;"462,38";"462,38";F.G. S.a.s. di Zoroddu Narcisa;Z6C24AE0D8;Fatt.n. 6/PA del 05/09/2018;11-09-2018;840;1;209;1;Spese correnti;3;Acquisto di beni e servizi;2;Acquisto di servizi;4;Acquisto di servizi per formazione e addestramento del personale dell'ente;999;Acquisto di servizi per altre spese per formazione e addestramento n.a.c.;11-09-2018;
1388;1;0;"1.232,00";"1.232,00";COOP. NUOVE IDEE;Z52230BA0F;Fatt.n. FATTPA 91_18 del 09/09/2018;11-09-2018;715;0;87;1;Spese correnti;3;Acquisto di beni e servizi;2;Acquisto di servizi;11;Prestazioni professionali e specialistiche;999;Altre prestazioni professionali e specialistiche n.a.c.;11-09-2018;
1389;1;0;"739,20";"739,20";COOP. NUOVE IDEE;Z5724577AA;Fatt.n. FATTPA 92_18 del 09/09/2018;11-09-2018;746;0;184;1;Spese correnti;3;Acquisto di beni e servizi;2;Acquisto di servizi;2;"Organizzazione eventi, pubblicita` e servizi per trasferta";5;Organizzazione e partecipazione a manifestazioni e convegni;11-09-2018;
1390;1;0;"1.250,00";"1.250,00";COMITATO CARNEVALE TULESE;Z5724577AA;Organizzazione Rassegna estiva denominata E-STATE A TULA 2018. FESTA SANT'ALENE E AUSTU;11-09-2018;746;0;184;1;Spese correnti;3;Acquisto di beni e servizi;2;Acquisto di servizi;2;"Organizzazione eventi, pubblicita` e servizi per trasferta";5;Organizzazione e partecipazione a manifestazioni e convegni;11-09-2018;
1391;1;0;"2.300,00";"2.300,00";S'ARZA Associazione Culturale;Z5724577AA;Organizzazione Rassegna estiva denominata E-STATE A TULA 2018;11-09-2018;746;0;184;1;Spese correnti;3;Acquisto di beni e servizi;2;Acquisto di servizi;2;"Organizzazione eventi, pubblicita` e servizi per trasferta";5;Organizzazione e partecipazione a manifestazioni e convegni;11-09-2018;
1392;1;0;"600,00";"600,00";Associazione Culturale G.M. Baravaglia; ;"Programma di assegnazione contributi alle Associazioni locali e Comitati per l'organizzazione delle manifestazioni di carattere sociale, culturale, religioso e sportivo - Anno 2018. Impegno di spesa";11-09-2018;760;0;168;1;Spese correnti;4;Trasferimenti correnti;4;Trasferimenti correnti a Istituzioni Sociali Private;1;Trasferimenti correnti a Istituzioni Sociali Private;1;Trasferimenti correnti a Istituzioni Sociali Private;11-09-2018;
1393;1;0;"3.172,20";"3.172,20";PRO LOCO TULA; ;Concessione contributo all'Ass. Turistica Pro Loco di Tula per la realizzazione iniziativa di promozione enogastronomica del territorio "BERANU IN TULA" 28 aprile 2018;11-09-2018;840;0;170;1;Spese correnti;4;Trasferimenti correnti;4;Trasferimenti correnti a Istituzioni Sociali Private;1;Trasferimenti correnti a Istituzioni Sociali Private;1;Trasferimenti correnti a Istituzioni Sociali Private;11-09-2018;
1394;1;0;"2.023,19";"2.023,19";COOP. SPES a r.l.;Z422136A24;Fatt.n. 38 PA del 31/08/2018 Fattura Cliente;12-09-2018;118;5;12;1;Spese correnti;3;Acquisto di beni e servizi;2;Acquisto di servizi;13;Servizi ausiliari per il funzionamento dell'ente;2;Servizi di pulizia e lavanderia;12-09-2018;
1395;1;0;"234,86";"234,86";DNA RANDAGIO;ZD021761F1;Fatt.n. 000119-2018-CANILE del 11/09/2018 SERVIZIO DI RICOVERO E CUSTODIA CANI RANDAGI;12-09-2018;1349;0;33;1;Spese correnti;3;Acquisto di beni e servizi;2;Acquisto di servizi;15;Contratti di servizio pubblico;11;Contratti di servizio per la lotta al randagismo;12-09-2018;
1396;1;0;"910,72";"910,72";COOP. NUOVE IDEE;Z782197FF4;Fatt.n. FATTPA 90_18 del 09/09/2018;13-09-2018;1413;0;32;1;Spese correnti;3;Acquisto di beni e servizi;2;Acquisto di servizi;99;Altri servizi;999;Altri servizi diversi n.a.c.;13-09-2018;
1397;1;0;"8.559,24";"8.559,24";COOP. NUOVE IDEE; ;Fatt.n. FATTPA 89_18 del 09/09/2018;13-09-2018;1420;0;141;1;Spese correnti;3;Acquisto di beni e servizi;2;Acquisto di servizi;15;Contratti di servizio pubblico;9;Contratti di servizio di assistenza sociale domiciliare;13-09-2018;
1398;1;0;"150,42";"150,42";OMESSO NOMINATIVO NEL RISPETTO DELLA NORMATIVA SULLA PROTEZIONE DATI PERSONALI; ;IMPEGNO DI SPESA PER PIANI PERSONALIZZATI IN SOSTEGNO DELLE PERSONE CON DISABILITA' GRAVE DI CUI ALLA L.162/1998 -DGR 55/12 DEL 31.12.2017.;13-09-2018;1420;2;142;1;Spese correnti;4;Trasferimenti correnti;2;Trasferimenti correnti a Famiglie;2;Interventi assistenziali;999;Altri assegni e sussidi assistenziali;13-09-2018;
1399;1;0;"680,15";"680,15";OMESSO NOMINATIVO NEL RISPETTO DELLA NORMATIVA SULLA PROTEZIONE DATI PERSONALI; ;IMPEGNO DI SPESA PER PIANI PERSONALIZZATI IN SOSTEGNO DELLE PERSONE CON DISABILITA' GRAVE DI CUI ALLA L.162/1998 -DGR 55/12 DEL 31.12.2017.;13-09-2018;1420;2;142;1;Spese correnti;4;Trasferimenti correnti;2;Trasferimenti correnti a Famiglie;2;Interventi assistenziali;999;Altri assegni e sussidi assistenziali;13-09-2018;
1400;1;0;"212,64";"212,64";OMESSO NOMINATIVO NEL RISPETTO DELLA NORMATIVA SULLA PROTEZIONE DATI PERSONALI; ;IMPEGNO DI SPESA PER PIANI PERSONALIZZATI IN SOSTEGNO DELLE PERSONE CON DISABILITA' GRAVE DI CUI ALLA L.162/1998 -DGR 55/12 DEL 31.12.2017.;13-09-2018;1420;2;142;1;Spese correnti;4;Trasferimenti correnti;2;Trasferimenti correnti a Famiglie;2;Interventi assistenziali;999;Altri assegni e sussidi assistenziali;13-09-2018;
1401;1;0;"170,10";"170,10";OMESSO NOMINATIVO NEL RISPETTO DELLA NORMATIVA SULLA PROTEZIONE DATI PERSONALI; ;IMPEGNO DI SPESA PER PIANI PERSONALIZZATI IN SOSTEGNO DELLE PERSONE CON DISABILITA' GRAVE DI CUI ALLA L.162/1998 -DGR 55/12 DEL 31.12.2017.;13-09-2018;1420;2;142;1;Spese correnti;4;Trasferimenti correnti;2;Trasferimenti correnti a Famiglie;2;Interventi assistenziali;999;Altri assegni e sussidi assistenziali;13-09-2018;
1402;1;0;"122,00";"122,00";OMESSO NOMINATIVO NEL RISPETTO DELLA NORMATIVA SULLA PROTEZIONE DATI PERSONALI; ;IMPEGNO DI SPESA PER PIANI PERSONALIZZATI IN SOSTEGNO DELLE PERSONE CON DISABILITA' GRAVE DI CUI ALLA L.162/1998 -DGR 55/12 DEL 31.12.2017.;13-09-2018;1420;2;142;1;Spese correnti;4;Trasferimenti correnti;2;Trasferimenti correnti a Famiglie;2;Interventi assistenziali;999;Altri assegni e sussidi assistenziali;13-09-2018;
1403;1;0;"300,00";"300,00";OMESSO NOMINATIVO NEL RISPETTO DELLA NORMATIVA SULLA PROTEZIONE DATI PERSONALI; ;IMPEGNO DI SPESA PER CONCESSIONE CONTRIBUTO ECONOMICO STRAORDINARIO.;13-09-2018;1434;0;222;1;Spese correnti;4;Trasferimenti correnti;2;Trasferimenti correnti a Famiglie;2;Interventi assistenziali;999;Altri assegni e sussidi assistenziali;13-09-2018;
1405;1;0;"141,02";"141,02";OMESSO NOMINATIVO NEL RISPETTO DELLA NORMATIVA SULLA PROTEZIONE DATI PERSONALI; ;IMPEGNO DI SPESA PER PIANI PERSONALIZZATI IN SOSTEGNO DELLE PERSONE CON DISABILITA' GRAVE DI CUI ALLA L.162/1998 -DGR 55/12 DEL 31.12.2017.;13-09-2018;1420;2;142;1;Spese correnti;4;Trasferimenti correnti;2;Trasferimenti correnti a Famiglie;2;Interventi assistenziali;999;Altri assegni e sussidi assistenziali;13-09-2018;
1406;1;0;"1.515,00";"1.515,00";OMESSO NOMINATIVO NEL RISPETTO DELLA NORMATIVA SULLA PROTEZIONE DATI PERSONALI; ;IMPEGNO DI SPESA PER PIANI PERSONALIZZATI IN SOSTEGNO DELLE PERSONE CON DISABILITA' GRAVE DI CUI ALLA L.162/1998 -DGR 55/12 DEL 31.12.2017.;13-09-2018;1420;2;142;1;Spese correnti;4;Trasferimenti correnti;2;Trasferimenti correnti a Famiglie;2;Interventi assistenziali;999;Altri assegni e sussidi assistenziali;13-09-2018;
1407;1;0;"300,00";"300,00";OMESSO NOMINATIVO NEL RISPETTO DELLA NORMATIVA SULLA PROTEZIONE DATI PERSONALI; ;IMPEGNO DI SPESA PER SERVIZI ALLA PERSONA.;13-09-2018;1434;0;226;1;Spese correnti;4;Trasferimenti correnti;2;Trasferimenti correnti a Famiglie;2;Interventi assistenziali;999;Altri assegni e sussidi assistenziali;13-09-2018;
1408;1;0;"29.097,00";"29.097,00";UNIONE DEI COMUNI DEL LOGUDORO; ;Avvio gestione associata servizio di raccolta differenziata e avvio allo smaltimento dei r.s.u. .PAGAMENTO III TRIM. 2018.;14-09-2018;1265;0;100;1;Spese correnti;4;Trasferimenti correnti;1;Trasferimenti correnti a Amministrazioni Pubbliche;2;Trasferimenti correnti a Amministrazioni Locali;5;Trasferimenti correnti a Unioni di Comuni;14-09-2018;
1409;1;0;"300,00";"300,00";CORDEDDA NAZARENA; ;IMPEGNO DI SPESA PER INTERVENTO DENOMINATO BONUS BEBE'.;17-09-2018;1430;0;221;1;Spese correnti;4;Trasferimenti correnti;2;Trasferimenti correnti a Famiglie;2;Interventi assistenziali;999;Altri assegni e sussidi assistenziali;17-09-2018;
1410;1;0;"300,00";"300,00";SEU SILVIA; ;IMPEGNO DI SPESA PER INTERVENTO DENOMINATO BONUS BEBE'.;17-09-2018;1430;0;221;1;Spese correnti;4;Trasferimenti correnti;2;Trasferimenti correnti a Famiglie;2;Interventi assistenziali;999;Altri assegni e sussidi assistenziali;17-09-2018;
1411;1;0;"2.115,00";"2.115,00";BECCA ARREDAMENTI; ;Approvazione Bando Contributi a privati per interventi volti al risparmio energetico. annualita 2018;17-09-2018;1820;0;99;1;Spese correnti;4;Trasferimenti correnti;2;Trasferimenti correnti a Famiglie;5;Altri trasferimenti a famiglie;999;Altri trasferimenti a famiglie n.a.c.;17-09-2018;
1412;1;0;"117,53";"117,53";TESORERIA DI ROMA SUCCURSALE 348; ;VERSAMENTO AL MINISTERO DELL'INTERNO DEI DIRITTI RELATIVI ALLE CARTE D'IDENTITA' ELETTRONICHE EMESSE DAL 23.05 AL 31.05.2018  - IMPEGNO E LIQUIDAZIONE.;18-09-2018;290;0;171;1;Spese correnti;4;Trasferimenti correnti;1;Trasferimenti correnti a Amministrazioni Pubbliche;1;Trasferimenti correnti a Amministrazioni Centrali;1;Trasferimenti correnti a Ministeri;18-09-2018;
1413;1;0;"2.712,40";"2.712,40";LADU PIETRO FRANCESCO;Z4524ED8E2;Fatt.n. FATTPA 4_18 del 17/09/2018;18-09-2018;255;0;230;1;Spese correnti;3;Acquisto di beni e servizi;2;Acquisto di servizi;9;Manutenzione ordinaria e riparazioni;8;Manutenzione ordinaria e riparazioni di beni immobili;18-09-2018;
1414;1;0;"8.023,60";"8.023,60";LADU PIETRO FRANCESCO;Z9C24ED8CD;Fatt.n. FATTPA 3_18 del 17/09/2018;18-09-2018;2520;0;231;2;Spese in conto capitale;2;Investimenti fissi lordi e acquisto di terreni;1;Beni materiali;9;Beni immobili;3;Fabbricati ad uso scolastico;18-09-2018;
1415;1;0;"126,47";"126,47";ENEL ENERGIA;Z6C22BB7C0;Fatt.n. 004811620667 del 12/09/2018;18-09-2018;1013;0;61;1;Spese correnti;3;Acquisto di beni e servizi;2;Acquisto di servizi;5;Utenze e canoni;4;Energia elettrica;18-09-2018;
1416;1;0;"56,51";"56,51";SERVIZIO ELETTRICO NAZIONALE - SERVIZIO DI MAGGIOR TUTE;ZAF225B6C9;Fatt.n. 907152430000314 del 10/09/2018;18-09-2018;1012;4;24;1;Spese correnti;3;Acquisto di beni e servizi;2;Acquisto di servizi;5;Utenze e canoni;4;Energia elettrica;18-09-2018;
1417;1;0;"28,26";"28,26";SERVIZIO ELETTRICO NAZIONALE - SERVIZIO DI MAGGIOR TUTE;ZAF225B6C9;Fatt.n. 907152430000414 del 10/09/2018;18-09-2018;1012;4;24;1;Spese correnti;3;Acquisto di beni e servizi;2;Acquisto di servizi;5;Utenze e canoni;4;Energia elettrica;18-09-2018;
1418;1;0;"68,75";"68,75";SERVIZIO ELETTRICO NAZIONALE - SERVIZIO DI MAGGIOR TUTE;ZAF225B6C9;Fatt.n. 907154150716014 del 10/09/2018;18-09-2018;1012;4;24;1;Spese correnti;3;Acquisto di beni e servizi;2;Acquisto di servizi;5;Utenze e canoni;4;Energia elettrica;18-09-2018;
1419;1;0;"16,37";"16,37";ENEL ENERGIA;ZB5225B867;Fatt.n. 004811594409 del 09/09/2018;18-09-2018;1012;4;26;1;Spese correnti;3;Acquisto di beni e servizi;2;Acquisto di servizi;5;Utenze e canoni;4;Energia elettrica;18-09-2018;
1420;1;0;"729,91";"729,91";ENEL ENERGIA;ZB5225B867;Fatt.n. 004811595951 del 10/09/2018;18-09-2018;1012;4;26;1;Spese correnti;3;Acquisto di beni e servizi;2;Acquisto di servizi;5;Utenze e canoni;4;Energia elettrica;18-09-2018;
1421;1;0;"85,02";"85,02";ENEL ENERGIA;ZB5225B867;Fatt.n. 004811595952 del 10/09/2018;18-09-2018;1012;4;26;1;Spese correnti;3;Acquisto di beni e servizi;2;Acquisto di servizi;5;Utenze e canoni;4;Energia elettrica;18-09-2018;
1422;1;0;"1.518,03";"1.518,03";ENEL ENERGIA;ZB5225B867;Fatt.n. 004811595953 del 10/09/2018;18-09-2018;1012;4;26;1;Spese correnti;3;Acquisto di beni e servizi;2;Acquisto di servizi;5;Utenze e canoni;4;Energia elettrica;18-09-2018;
1423;1;0;"178,93";"178,93";ENEL ENERGIA;ZB5225B867;Fatt.n. 004811595954 del 10/09/2018;18-09-2018;1012;4;26;1;Spese correnti;3;Acquisto di beni e servizi;2;Acquisto di servizi;5;Utenze e canoni;4;Energia elettrica;18-09-2018;
1424;1;0;"61,93";"61,93";ENEL ENERGIA;Z6C22BB7C0;Fatt.n. 004811596619 del 10/09/2018;18-09-2018;1013;0;61;1;Spese correnti;3;Acquisto di beni e servizi;2;Acquisto di servizi;5;Utenze e canoni;4;Energia elettrica;18-09-2018;
1425;1;0;"358,27";"358,27";ENEL ENERGIA;Z83225B9A2;Fatt.n. 004811596605 del 10/09/2018;18-09-2018;1300;0;58;1;Spese correnti;3;Acquisto di beni e servizi;1;Acquisto di beni;2;Altri beni di consumo;999;Altri beni e materiali di consumo n.a.c.;18-09-2018;
1426;1;0;"209,35";"209,35";ENEL ENERGIA;Z83225B9A2;Fatt.n. 004811596607 del 10/09/2018;18-09-2018;1488;3;28;1;Spese correnti;3;Acquisto di beni e servizi;2;Acquisto di servizi;5;Utenze e canoni;4;Energia elettrica;18-09-2018;
1427;1;0;"6.844,95";"6.844,95";CONSORZIO NETWORK ETICO;7391758FA7;Fatt.n. 2/1702 del 11/09/2018;19-09-2018;1416;0;88;1;Spese correnti;3;Acquisto di beni e servizi;2;Acquisto di servizi;11;Prestazioni professionali e specialistiche;999;Altre prestazioni professionali e specialistiche n.a.c.;19-09-2018;
1428;1;0;"3.755,55";"3.755,55";CONSORZIO NETWORK ETICO;687819848C;Fatt.n. 2/1701 del 11/09/2018 SERV.SAD;19-09-2018;1412;0;14;1;Spese correnti;3;Acquisto di beni e servizi;2;Acquisto di servizi;15;Contratti di servizio pubblico;9;Contratti di servizio di assistenza sociale domiciliare;19-09-2018;
1429;1;0;"167,90";"167,90";TESORERIA DI ROMA SUCCURSALE 348; ;VERSAMENTO AL MINISTERO DELL'INTERNO DEI DIRITTI RELATIVI ALLE C.I.E. EMESSE DAL 01.06 AL 15.06.2018.;20-09-2018;290;0;183;1;Spese correnti;4;Trasferimenti correnti;1;Trasferimenti correnti a Amministrazioni Pubbliche;1;Trasferimenti correnti a Amministrazioni Centrali;1;Trasferimenti correnti a Ministeri;20-09-2018;
1430;1;0;"67,16";"67,16";TESORERIA DI ROMA SUCCURSALE 348; ;VERSAMENTO AL MINISTERO DELL'INTERNO DEI DIRITTI RELATIVI ALLE C.I.E. EMESSE DAL 16.06.2018 AL 30.06.2018 -;20-09-2018;290;0;183;1;Spese correnti;4;Trasferimenti correnti;1;Trasferimenti correnti a Amministrazioni Pubbliche;1;Trasferimenti correnti a Amministrazioni Centrali;1;Trasferimenti correnti a Ministeri;20-09-2018;
1431;1;0;"83,95";"83,95";TESORERIA DI ROMA SUCCURSALE 348; ;VERSAMENTO AL MINISTERO DELL'INTERNO DEI DIRITTI RELATIVI ALLE C.I.E. EMESSE NEL MESE DI LUGLIO 2018 -I QUINDICINA;20-09-2018;290;0;205;1;Spese correnti;4;Trasferimenti correnti;1;Trasferimenti correnti a Amministrazioni Pubbliche;1;Trasferimenti correnti a Amministrazioni Centrali;1;Trasferimenti correnti a Ministeri;20-09-2018;
1432;1;0;"151,11";"151,11";TESORERIA DI ROMA SUCCURSALE 348; ;VERSAMENTO AL MINISTERO DELL'INTERNO DEI DIRITTI RELATIVI ALLE C.I.E. EMESSE NEL MESE DI LUGLIO 2018 - II QUINDICINA;20-09-2018;290;0;205;1;Spese correnti;4;Trasferimenti correnti;1;Trasferimenti correnti a Amministrazioni Pubbliche;1;Trasferimenti correnti a Amministrazioni Centrali;1;Trasferimenti correnti a Ministeri;20-09-2018;
1433;1;0;"151,11";"151,11";TESORERIA DI ROMA SUCCURSALE 348; ;VERSAMENTO AL MINISTERO DELL'INTERNO DEI DIRITTI RELATIVI ALLE C.I.E. EMESSE NEL MESE DI AGOSTO 2018 - I QUINDICINA;20-09-2018;290;0;228;1;Spese correnti;4;Trasferimenti correnti;1;Trasferimenti correnti a Amministrazioni Pubbliche;1;Trasferimenti correnti a Amministrazioni Centrali;1;Trasferimenti correnti a Ministeri;20-09-2018;
1434;1;0;"83,95";"83,95";TESORERIA DI ROMA SUCCURSALE 348; ;VERSAMENTO AL MINISTERO DELL'INTERNO DEI DIRITTI RELATIVI ALLE C.I.E. EMESSE NEL MESE DI AGOSTO 2018 - II QUINDICINA;20-09-2018;290;0;228;1;Spese correnti;4;Trasferimenti correnti;1;Trasferimenti correnti a Amministrazioni Pubbliche;1;Trasferimenti correnti a Amministrazioni Centrali;1;Trasferimenti correnti a Ministeri;20-09-2018;
1460;1;0;"294,63";"294,63";STAPLES DIRECT MONDOFFICE SRL;Z0C245F780;Fatt.n. 30024839 del 19/09/2018;21-09-2018;82;0;188;1;Spese correnti;3;Acquisto di beni e servizi;1;Acquisto di beni;2;Altri beni di consumo;1;"Carta, cancelleria e stampati";21-09-2018;
1461;1;0;"1.494,03";"1.494,03";OMESSO NOMINATIVO NEL RISPETTO DELLA NORMATIVA SULLA PROTEZIONE DATI PERSONALI;7394433F22;Fatt.n. X-978 del 07/09/2018;21-09-2018;1412;1;85;1;Spese correnti;3;Acquisto di beni e servizi;2;Acquisto di servizi;15;Contratti di servizio pubblico;8;Contratti di servizio di assistenza sociale residenziale e semiresidenziale;21-09-2018;
1462;1;0;"1.671,40";"1.671,40";SOTGIU GIUSEPPE;Z8D24D74C5;Fatt.n. 18/PA del 14/09/2018 Impegno di spesa per manutenzione straordinaria impianti di illuminazione.. DET Reg.Ge.le. n. 289 del 07/09/2018 CIG Z8D24D74C5.;21-09-2018;3121;0;219;2;Spese in conto capitale;2;Investimenti fissi lordi e acquisto di terreni;1;Beni materiali;9;Beni immobili;12;Infrastrutture stradali;21-09-2018;
1463;1;0;"184,23";"184,23";ENEL ENERGIA;Z5C23A1DEC;Fatt.n. 004811596620 del 10/09/2018;21-09-2018;566;4;130;1;Spese correnti;3;Acquisto di beni e servizi;2;Acquisto di servizi;5;Utenze e canoni;4;Energia elettrica;21-09-2018;
1464;1;0;"141,30";"141,30";M.N. MANIFATTURA NULESE S.R.L.;ZC820EG311;Fatt.n. 17E del 20/09/2018 REALIZZAZIONE ECOCENTRO COMUNALE TULA LAVORI DI COMPLETAMENTO DETERM. DIRIGENZIALE N. 148 DEL 02/05/2018 CIG: ZC820EG311;21-09-2018;3368;1;246;2;Spese in conto capitale;2;Investimenti fissi lordi e acquisto di terreni;1;Beni materiali;9;Beni immobili;999;Beni immobili n.a.c.;21-09-2018;
1465;1;0;"1.450,00";"1.450,00";SATTA VINCENZO;Z482433BEE;Fatt.n. 06/PA del 19/09/2018;21-09-2018;2098;0;174;2;Spese in conto capitale;2;Investimenti fissi lordi e acquisto di terreni;3;Beni immateriali;5;Incarichi professionali per la realizzazione di investimenti;1;Incarichi professionali per la realizzazione di investimenti;21-09-2018;
1466;1;0;"800,00";"800,00";UNIONE SCACCHISTICA COMUNI DEL LOGUDORO; ;Concessione contributo straordinario per la partecipazione di atleti  locali alla Fase Nazionale dei Giochi Studenteschi di Scacchi in programma a Monstesilvano (PE) 10-13 maggio 2018;24-09-2018;834;0;238;1;Spese correnti;4;Trasferimenti correnti;4;Trasferimenti correnti a Istituzioni Sociali Private;1;Trasferimenti correnti a Istituzioni Sociali Private;1;Trasferimenti correnti a Istituzioni Sociali Private;24-09-2018;
1467;1;0;"159,34";"159,34";ENEL ENERGIA;ZE4229C6A4;Fatt.n. 004811596606 del 10/09/2018;24-09-2018;824;0;39;1;Spese correnti;3;Acquisto di beni e servizi;2;Acquisto di servizi;5;Utenze e canoni;4;Energia elettrica;24-09-2018;
1468;1;0;"293,52";"293,52";L'ARCOBALENO di Muggianu Rosanna;Z7D23AECDF;Fatt.n. 442B del 19/09/2018;24-09-2018;714;0;134;1;Spese correnti;3;Acquisto di beni e servizi;1;Acquisto di beni;1;"Giornali, riviste e pubblicazioni";2;Pubblicazioni;24-09-2018;
1469;1;0;"4.000,00";"4.000,00";SCUOLA MATERNA PIETRO FADDA FARINA; ;IMPEGNO DI SPESA PER CONCESSIONE CONTRIBUTO ECONOMICO SCUOLA MATERNA PIETRO FADDA FARINA EX L.R.31/84- A.S. 2017/2018.;24-09-2018;676;0;241;1;Spese correnti;4;Trasferimenti correnti;4;Trasferimenti correnti a Istituzioni Sociali Private;1;Trasferimenti correnti a Istituzioni Sociali Private;1;Trasferimenti correnti a Istituzioni Sociali Private;24-09-2018;
1470;1;0;"3.242,89";"3.242,89";COMUNE DI NULVI; ;Scuola Civica di Musica SONOS - Attivita didattica a.s. 2017/2018. Impegno di spesa;24-09-2018;722;0;241;1;Spese correnti;4;Trasferimenti correnti;1;Trasferimenti correnti a Amministrazioni Pubbliche;2;Trasferimenti correnti a Amministrazioni Locali;3;Trasferimenti correnti a Comuni;24-09-2018;
1471;1;0;"3.800,00";"3.800,00";COMUNE DI NULVI; ;SCUOLA CIVICA 2017/2018;24-09-2018;722;0;298;1;Spese correnti;4;Trasferimenti correnti;1;Trasferimenti correnti a Amministrazioni Pubbliche;2;Trasferimenti correnti a Amministrazioni Locali;3;Trasferimenti correnti a Comuni;24-09-2018;
1474;1;0;"7.230,70";"7.230,70";PUDDU SERGIO;Z5A24D70D4;Fatt.n. FATTPA 3_18 del 24/09/2018;24-09-2018;3126;0;220;2;Spese in conto capitale;2;Investimenti fissi lordi e acquisto di terreni;1;Beni materiali;9;Beni immobili;14;Opere per la sistemazione del suolo;24-09-2018;
1475;1;0;"3.200,00";"3.200,00";CONSAI SRL;Z342505796;POLIZZA TUTELA LEGALE DELL'ENTE - ANNUALITA' 2018-2019. LIQUIDAZIONE;25-09-2018;100;0;240;1;Spese correnti;10;Altre spese correnti;4;Premi di assicurazione;1;Premi di assicurazione contro i danni;3;Premi di assicurazione per responsabilità civile verso terzi;25-09-2018;
1476;1;0;"200,00";"200,00";OMESSO NOMINATIVO NEL RISPETTO DELLA NORMATIVA SULLA PROTEZIONE DATI PERSONALI; ;IMPEGNO DI SPESA PER SERVIZI ALLA PERSONA-CONCESSIONE CONTRIBUTO ECONOMICO STRAORDINARIO.;25-09-2018;1434;0;244;1;Spese correnti;4;Trasferimenti correnti;2;Trasferimenti correnti a Famiglie;2;Interventi assistenziali;999;Altri assegni e sussidi assistenziali;25-09-2018;
1479;1;0;"1.220,00";"1.220,00";LADU PIETRO FRANCESCO;Z5724577AA;Fatt.n. FATTPA 5_18 del 17/09/2018;25-09-2018;746;0;239;1;Spese correnti;3;Acquisto di beni e servizi;2;Acquisto di servizi;2;"Organizzazione eventi, pubblicita` e servizi per trasferta";5;Organizzazione e partecipazione a manifestazioni e convegni;25-09-2018;
1480;1;0;"1.399,08";"1.399,08";PERSONALE DIVERSO (Confr.Allegato); ;STIPENDI MESE DI: SETTEMBRE 18;26-09-2018;14;1;15;1;Spese correnti;3;Acquisto di beni e servizi;2;Acquisto di servizi;1;Organi e incarichi istituzionali dell'amministrazione;1;Organi istituzionali dell'amministrazione - Indennità;26-09-2018;
1484;1;0;"111,04";"111,04";FIORI MARIO;Z1A21931AC;Fatt.n. FATTPA 8_18 del 30/09/2018;02-10-2018;1300;8;2;1;Spese correnti;3;Acquisto di beni e servizi;1;Acquisto di beni;2;Altri beni di consumo;2;"Carburanti, combustibili e lubrificanti";02-10-2018;
1485;1;0;"292,80";"292,80";FIORI MARIO;Z9725026C6;Fatt.n. FATTPA 9_18 del 30/09/2018;02-10-2018;1302;6;237;1;Spese correnti;3;Acquisto di beni e servizi;2;Acquisto di servizi;9;Manutenzione ordinaria e riparazioni;1;"Manutenzione ordinaria e riparazioni di mezzi di trasporto ad uso civile, di sicurezza e ordine pubblico";02-10-2018;
1486;1;0;"30.000,00";"30.000,00";COMUNE DI TULA; ;GIROFONDI DA RISORSE COMUNALI PER AGEVOLAZIONI TARI 2018.I ACCONTO RATA SETTEMBRE;02-10-2018;1267;0;246;1;Spese correnti;4;Trasferimenti correnti;1;Trasferimenti correnti a Amministrazioni Pubbliche;2;Trasferimenti correnti a Amministrazioni Locali;3;Trasferimenti correnti a Comuni;02-10-2018;
1487;1;0;"2.136,41";"2.136,41";BECCIU SARA;Z072507087;Fatt.n. 1/PA del 27/09/2018 IMPEGNO DI SPESA PER FORNITURA LIBRI SCUOLA PRIMARIA ANNO SCOLASTICO 2018/2019. DETERMINA REG. GEN.LE N 322 DEL 24/09/2018 CIG Z072507087;02-10-2018;606;0;243;1;Spese correnti;4;Trasferimenti correnti;2;Trasferimenti correnti a Famiglie;5;Altri trasferimenti a famiglie;999;Altri trasferimenti a famiglie n.a.c.;02-10-2018;
1488;1;0;"300,00";"300,00";OMESSO NOMINATIVO NEL RISPETTO DELLA NORMATIVA SULLA PROTEZIONE DATI PERSONALI; ;IMPEGNO DI SPESA PER CONTRIBUTO A FAVORE DI CITTADINI SOFFERENTI MENTALI INSERITI IN STRUTTURE RESIDENZIALI ANNUALITA' 2018.;02-10-2018;1412;0;3;1;Spese correnti;3;Acquisto di beni e servizi;2;Acquisto di servizi;15;Contratti di servizio pubblico;8;Contratti di servizio di assistenza sociale residenziale e semiresidenziale;02-10-2018;
1489;1;0;"161,99";"161,99";OMESSO NOMINATIVO NEL RISPETTO DELLA NORMATIVA SULLA PROTEZIONE DATI PERSONALI; ;IMPEGNO DI SPESA PER PIANI PERSONALIZZATI IN SOSTEGNO DELLE PERSONE CON DISABILITA' GRAVE DI CUI ALLA L.162/1998 -DGR 55/12 DEL 31.12.2017.;02-10-2018;1420;2;142;1;Spese correnti;4;Trasferimenti correnti;2;Trasferimenti correnti a Famiglie;2;Interventi assistenziali;999;Altri assegni e sussidi assistenziali;02-10-2018;
1490;1;0;"326,90";"326,90";OMESSO NOMINATIVO NEL RISPETTO DELLA NORMATIVA SULLA PROTEZIONE DATI PERSONALI; ;IMPEGNO DI SPESA PER PIANI PERSONALIZZATI IN SOSTEGNO DELLE PERSONE CON DISABILITA' GRAVE DI CUI ALLA L.162/1998 -DGR 55/12 DEL 31.12.2017.;02-10-2018;1420;2;142;1;Spese correnti;4;Trasferimenti correnti;2;Trasferimenti correnti a Famiglie;2;Interventi assistenziali;999;Altri assegni e sussidi assistenziali;02-10-2018;
1491;1;0;"118,97";"118,97";OMESSO NOMINATIVO NEL RISPETTO DELLA NORMATIVA SULLA PROTEZIONE DATI PERSONALI; ;IMPEGNO DI SPESA PER PIANI PERSONALIZZATI IN SOSTEGNO DELLE PERSONE CON DISABILITA' GRAVE DI CUI ALLA L.162/1998 -DGR 55/12 DEL 31.12.2017.;02-10-2018;1420;2;142;1;Spese correnti;4;Trasferimenti correnti;2;Trasferimenti correnti a Famiglie;2;Interventi assistenziali;999;Altri assegni e sussidi assistenziali;02-10-2018;
1492;1;0;"175,88";"175,88";OMESSO NOMINATIVO NEL RISPETTO DELLA NORMATIVA SULLA PROTEZIONE DATI PERSONALI; ;IMPEGNO DI SPESA PER PIANI PERSONALIZZATI IN SOSTEGNO DELLE PERSONE CON DISABILITA' GRAVE DI CUI ALLA L.162/1998 -DGR 55/12 DEL 31.12.2017.;02-10-2018;1420;2;142;1;Spese correnti;4;Trasferimenti correnti;2;Trasferimenti correnti a Famiglie;2;Interventi assistenziali;999;Altri assegni e sussidi assistenziali;02-10-2018;
1493;1;0;"1.031,42";"1.031,42";OMESSO NOMINATIVO NEL RISPETTO DELLA NORMATIVA SULLA PROTEZIONE DATI PERSONALI; ;IMPEGNO DI SPESA PER PIANI PERSONALIZZATI IN SOSTEGNO DELLE PERSONE CON DISABILITA' GRAVE DI CUI ALLA L.162/1998 -DGR 55/12 DEL 31.12.2017.;02-10-2018;1420;2;142;1;Spese correnti;4;Trasferimenti correnti;2;Trasferimenti correnti a Famiglie;2;Interventi assistenziali;999;Altri assegni e sussidi assistenziali;02-10-2018;
1494;1;0;"160,25";"160,25";OMESSO NOMINATIVO NEL RISPETTO DELLA NORMATIVA SULLA PROTEZIONE DATI PERSONALI; ;IMPEGNO DI SPESA PER PIANI PERSONALIZZATI IN SOSTEGNO DELLE PERSONE CON DISABILITA' GRAVE DI CUI ALLA L.162/1998 -DGR 55/12 DEL 31.12.2017.;02-10-2018;1420;2;142;1;Spese correnti;4;Trasferimenti correnti;2;Trasferimenti correnti a Famiglie;2;Interventi assistenziali;999;Altri assegni e sussidi assistenziali;02-10-2018;
1495;1;0;"839,89";"839,89";OMESSO NOMINATIVO NEL RISPETTO DELLA NORMATIVA SULLA PROTEZIONE DATI PERSONALI; ;IMPEGNO DI SPESA PER PIANI PERSONALIZZATI IN SOSTEGNO DELLE PERSONE CON DISABILITA' GRAVE DI CUI ALLA L.162/1998 -DGR 55/12 DEL 31.12.2017.;02-10-2018;1420;2;142;1;Spese correnti;4;Trasferimenti correnti;2;Trasferimenti correnti a Famiglie;2;Interventi assistenziali;999;Altri assegni e sussidi assistenziali;02-10-2018;
1496;1;0;"230,94";"230,94";OMESSO NOMINATIVO NEL RISPETTO DELLA NORMATIVA SULLA PROTEZIONE DATI PERSONALI; ;IMPEGNO DI SPESA PER PIANI PERSONALIZZATI IN SOSTEGNO DELLE PERSONE CON DISABILITA' GRAVE DI CUI ALLA L.162/1998 -DGR 55/12 DEL 31.12.2017.;02-10-2018;1420;2;142;1;Spese correnti;4;Trasferimenti correnti;2;Trasferimenti correnti a Famiglie;2;Interventi assistenziali;999;Altri assegni e sussidi assistenziali;02-10-2018;
1497;1;0;"187,50";"187,50";OMESSO NOMINATIVO NEL RISPETTO DELLA NORMATIVA SULLA PROTEZIONE DATI PERSONALI; ;IMPEGNO DI SPESA PER PIANI PERSONALIZZATI IN SOSTEGNO DELLE PERSONE CON DISABILITA' GRAVE DI CUI ALLA L.162/1998 -DGR 55/12 DEL 31.12.2017.;02-10-2018;1420;2;142;1;Spese correnti;4;Trasferimenti correnti;2;Trasferimenti correnti a Famiglie;2;Interventi assistenziali;999;Altri assegni e sussidi assistenziali;02-10-2018;
1498;1;0;"161,66";"161,66";OMESSO NOMINATIVO NEL RISPETTO DELLA NORMATIVA SULLA PROTEZIONE DATI PERSONALI; ;IMPEGNO DI SPESA PER PIANI PERSONALIZZATI IN SOSTEGNO DELLE PERSONE CON DISABILITA' GRAVE DI CUI ALLA L.162/1998 -DGR 55/12 DEL 31.12.2017.;02-10-2018;1420;2;142;1;Spese correnti;4;Trasferimenti correnti;2;Trasferimenti correnti a Famiglie;2;Interventi assistenziali;999;Altri assegni e sussidi assistenziali;02-10-2018;
1499;1;0;"187,50";"187,50";OMESSO NOMINATIVO NEL RISPETTO DELLA NORMATIVA SULLA PROTEZIONE DATI PERSONALI; ;IMPEGNO DI SPESA PER PIANI PERSONALIZZATI IN SOSTEGNO DELLE PERSONE CON DISABILITA' GRAVE DI CUI ALLA L.162/1998 -DGR 55/12 DEL 31.12.2017.;02-10-2018;1420;2;142;1;Spese correnti;4;Trasferimenti correnti;2;Trasferimenti correnti a Famiglie;2;Interventi assistenziali;999;Altri assegni e sussidi assistenziali;02-10-2018;
1500;1;0;"156,25";"156,25";OMESSO NOMINATIVO NEL RISPETTO DELLA NORMATIVA SULLA PROTEZIONE DATI PERSONALI; ;IMPEGNO DI SPESA PER PIANI PERSONALIZZATI IN SOSTEGNO DELLE PERSONE CON DISABILITA' GRAVE DI CUI ALLA L.162/1998 -DGR 55/12 DEL 31.12.2017.;02-10-2018;1420;2;142;1;Spese correnti;4;Trasferimenti correnti;2;Trasferimenti correnti a Famiglie;2;Interventi assistenziali;999;Altri assegni e sussidi assistenziali;02-10-2018;
1501;1;0;"200,00";"200,00";OMESSO NOMINATIVO NEL RISPETTO DELLA NORMATIVA SULLA PROTEZIONE DATI PERSONALI; ;IMPEGNO DI SPESA PER PIANI PERSONALIZZATI IN SOSTEGNO DELLE PERSONE CON DISABILITA' GRAVE DI CUI ALLA L.162/1998 -DGR 55/12 DEL 31.12.2017.;02-10-2018;1420;2;142;1;Spese correnti;4;Trasferimenti correnti;2;Trasferimenti correnti a Famiglie;2;Interventi assistenziali;999;Altri assegni e sussidi assistenziali;02-10-2018;
1502;1;0;"113,57";"113,57";OMESSO NOMINATIVO NEL RISPETTO DELLA NORMATIVA SULLA PROTEZIONE DATI PERSONALI; ;IMPEGNO DI SPESA PER PIANI PERSONALIZZATI IN SOSTEGNO DELLE PERSONE CON DISABILITA' GRAVE DI CUI ALLA L.162/1998 -DGR 55/12 DEL 31.12.2017.;02-10-2018;1420;2;142;1;Spese correnti;4;Trasferimenti correnti;2;Trasferimenti correnti a Famiglie;2;Interventi assistenziali;999;Altri assegni e sussidi assistenziali;02-10-2018;
1503;1;0;"172,47";"172,47";OMESSO NOMINATIVO NEL RISPETTO DELLA NORMATIVA SULLA PROTEZIONE DATI PERSONALI; ;IMPEGNO DI SPESA PER PIANI PERSONALIZZATI IN SOSTEGNO DELLE PERSONE CON DISABILITA' GRAVE DI CUI ALLA L.162/1998 -DGR 55/12 DEL 31.12.2017.;02-10-2018;1420;2;142;1;Spese correnti;4;Trasferimenti correnti;2;Trasferimenti correnti a Famiglie;2;Interventi assistenziali;999;Altri assegni e sussidi assistenziali;02-10-2018;
1504;1;0;"826,82";"826,82";OMESSO NOMINATIVO NEL RISPETTO DELLA NORMATIVA SULLA PROTEZIONE DATI PERSONALI; ;IMPEGNO DI SPESA PER PIANI PERSONALIZZATI IN SOSTEGNO DELLE PERSONE CON DISABILITA' GRAVE DI CUI ALLA L.162/1998 -DGR 55/12 DEL 31.12.2017.;02-10-2018;1420;2;142;1;Spese correnti;4;Trasferimenti correnti;2;Trasferimenti correnti a Famiglie;2;Interventi assistenziali;999;Altri assegni e sussidi assistenziali;02-10-2018;
1505;1;0;"104,75";"104,75";OMESSO NOMINATIVO NEL RISPETTO DELLA NORMATIVA SULLA PROTEZIONE DATI PERSONALI; ;IMPEGNO DI SPESA PER PIANI PERSONALIZZATI IN SOSTEGNO DELLE PERSONE CON DISABILITA' GRAVE DI CUI ALLA L.162/1998 -DGR 55/12 DEL 31.12.2017.;02-10-2018;1420;2;142;1;Spese correnti;4;Trasferimenti correnti;2;Trasferimenti correnti a Famiglie;2;Interventi assistenziali;999;Altri assegni e sussidi assistenziali;02-10-2018;
1506;1;0;"148,79";"148,79";OMESSO NOMINATIVO NEL RISPETTO DELLA NORMATIVA SULLA PROTEZIONE DATI PERSONALI; ;IMPEGNO DI SPESA PER PIANI PERSONALIZZATI IN SOSTEGNO DELLE PERSONE CON DISABILITA' GRAVE DI CUI ALLA L.162/1998 -DGR 55/12 DEL 31.12.2017.;02-10-2018;1420;2;142;1;Spese correnti;4;Trasferimenti correnti;2;Trasferimenti correnti a Famiglie;2;Interventi assistenziali;999;Altri assegni e sussidi assistenziali;02-10-2018;
1507;1;0;"248,41";"248,41";OMESSO NOMINATIVO NEL RISPETTO DELLA NORMATIVA SULLA PROTEZIONE DATI PERSONALI; ;IMPEGNO DI SPESA PER L.R. 11/185-PROVVIDENZE A FAVORE DI NEFROPATICI-PRESA IN CARICO ANNO 2018.;02-10-2018;1438;0;19;1;Spese correnti;4;Trasferimenti correnti;2;Trasferimenti correnti a Famiglie;2;Interventi assistenziali;999;Altri assegni e sussidi assistenziali;02-10-2018;
1508;1;0;"530,21";"530,21";OMESSO NOMINATIVO NEL RISPETTO DELLA NORMATIVA SULLA PROTEZIONE DATI PERSONALI; ;IMPEGNO DI SPESA PER L.R. 27/83 -TALASSEMICI ED EMOLINFOPATICI-ANNO 2018.;02-10-2018;1438;0;101;1;Spese correnti;4;Trasferimenti correnti;2;Trasferimenti correnti a Famiglie;2;Interventi assistenziali;999;Altri assegni e sussidi assistenziali;02-10-2018;
1509;1;0;"298,00";"298,00";OMESSO NOMINATIVO NEL RISPETTO DELLA NORMATIVA SULLA PROTEZIONE DATI PERSONALI; ;L.R.N. 9/2004- ART. 1 PRESA IN CARICO E IMPEGNO DI SPESA 2017.;02-10-2018;1438;0;199;1;Spese correnti;4;Trasferimenti correnti;2;Trasferimenti correnti a Famiglie;2;Interventi assistenziali;999;Altri assegni e sussidi assistenziali;02-10-2018;
1510;1;0;"2.023,19";"2.023,19";COOP. SPES a r.l.;Z422136A24;Fatt.n. 43 PA del 30/09/2018 Fattura Cliente;03-10-2018;118;5;12;1;Spese correnti;3;Acquisto di beni e servizi;2;Acquisto di servizi;13;Servizi ausiliari per il funzionamento dell'ente;2;Servizi di pulizia e lavanderia;03-10-2018;
1511;1;0;"154,42";"154,42";POSTE ITALIANE Spa;Z8223E60A4;Fatt.n. 8718329047 del 02/10/2018 Fattura Elettronica relativa all'Identificativo Rendiconto 1000490550;03-10-2018;118;2;144;1;Spese correnti;3;Acquisto di beni e servizi;2;Acquisto di servizi;16;Servizi amministrativi;2;Spese postali;03-10-2018;
1512;1;0;"91,65";"91,65";OMESSO NOMINATIVO NEL RISPETTO DELLA NORMATIVA SULLA PROTEZIONE DATI PERSONALI; ;IMPEGNO DI SPESA PER PIANI PERSONALIZZATI IN SOSTEGNO DELLE PERSONE CON DISABILITA' GRAVE DI CUI ALLA L.162/1998 -DGR 55/12 DEL 31.12.2017.;03-10-2018;1420;2;142;1;Spese correnti;4;Trasferimenti correnti;2;Trasferimenti correnti a Famiglie;2;Interventi assistenziali;999;Altri assegni e sussidi assistenziali;03-10-2018;
1513;1;0;"252,57";"252,57";OMESSO NOMINATIVO NEL RISPETTO DELLA NORMATIVA SULLA PROTEZIONE DATI PERSONALI; ;IMPEGNO DI SPESA PER PIANI PERSONALIZZATI IN SOSTEGNO DELLE PERSONE CON DISABILITA' GRAVE DI CUI ALLA L.162/1998 -DGR 55/12 DEL 31.12.2017.;03-10-2018;1420;2;142;1;Spese correnti;4;Trasferimenti correnti;2;Trasferimenti correnti a Famiglie;2;Interventi assistenziali;999;Altri assegni e sussidi assistenziali;03-10-2018;
1514;1;0;"388,68";"388,68";OMESSO NOMINATIVO NEL RISPETTO DELLA NORMATIVA SULLA PROTEZIONE DATI PERSONALI; ;IMPEGNO DI SPESA PER PIANI PERSONALIZZATI IN SOSTEGNO DELLE PERSONE CON DISABILITA' GRAVE DI CUI ALLA L.162/1998 -DGR 55/12 DEL 31.12.2017.;03-10-2018;1420;2;142;1;Spese correnti;4;Trasferimenti correnti;2;Trasferimenti correnti a Famiglie;2;Interventi assistenziali;999;Altri assegni e sussidi assistenziali;03-10-2018;
1515;1;0;"147,81";"147,81";OMESSO NOMINATIVO NEL RISPETTO DELLA NORMATIVA SULLA PROTEZIONE DATI PERSONALI; ;IMPEGNO DI SPESA PER PIANI PERSONALIZZATI IN SOSTEGNO DELLE PERSONE CON DISABILITA' GRAVE DI CUI ALLA L.162/1998 -DGR 55/12 DEL 31.12.2017.;03-10-2018;1420;2;142;1;Spese correnti;4;Trasferimenti correnti;2;Trasferimenti correnti a Famiglie;2;Interventi assistenziali;999;Altri assegni e sussidi assistenziali;03-10-2018;
1516;1;0;"109,21";"109,21";OMESSO NOMINATIVO NEL RISPETTO DELLA NORMATIVA SULLA PROTEZIONE DATI PERSONALI; ;IMPEGNO DI SPESA PER PIANI PERSONALIZZATI IN SOSTEGNO DELLE PERSONE CON DISABILITA' GRAVE DI CUI ALLA L.162/1998 -DGR 55/12 DEL 31.12.2017.;03-10-2018;1420;2;142;1;Spese correnti;4;Trasferimenti correnti;2;Trasferimenti correnti a Famiglie;2;Interventi assistenziali;999;Altri assegni e sussidi assistenziali;03-10-2018;
1517;1;0;"321,58";"321,58";OMESSO NOMINATIVO NEL RISPETTO DELLA NORMATIVA SULLA PROTEZIONE DATI PERSONALI; ;IMPEGNO DI SPESA PER PIANI PERSONALIZZATI IN SOSTEGNO DELLE PERSONE CON DISABILITA' GRAVE DI CUI ALLA L.162/1998 -DGR 55/12 DEL 31.12.2017.;03-10-2018;1420;2;142;1;Spese correnti;4;Trasferimenti correnti;2;Trasferimenti correnti a Famiglie;2;Interventi assistenziali;999;Altri assegni e sussidi assistenziali;03-10-2018;
1518;1;0;"102,08";"102,08";OMESSO NOMINATIVO NEL RISPETTO DELLA NORMATIVA SULLA PROTEZIONE DATI PERSONALI; ;IMPEGNO DI SPESA PER PIANI PERSONALIZZATI IN SOSTEGNO DELLE PERSONE CON DISABILITA' GRAVE DI CUI ALLA L.162/1998 -DGR 55/12 DEL 31.12.2017.;03-10-2018;1420;2;142;1;Spese correnti;4;Trasferimenti correnti;2;Trasferimenti correnti a Famiglie;2;Interventi assistenziali;999;Altri assegni e sussidi assistenziali;03-10-2018;
1519;1;0;"325,58";"325,58";OMESSO NOMINATIVO NEL RISPETTO DELLA NORMATIVA SULLA PROTEZIONE DATI PERSONALI; ;IMPEGNO DI SPESA PER PIANI PERSONALIZZATI IN SOSTEGNO DELLE PERSONE CON DISABILITA' GRAVE DI CUI ALLA L.162/1998 -DGR 55/12 DEL 31.12.2017.;03-10-2018;1420;2;142;1;Spese correnti;4;Trasferimenti correnti;2;Trasferimenti correnti a Famiglie;2;Interventi assistenziali;999;Altri assegni e sussidi assistenziali;03-10-2018;
1520;1;0;"155,89";"155,89";OMESSO NOMINATIVO NEL RISPETTO DELLA NORMATIVA SULLA PROTEZIONE DATI PERSONALI; ;IMPEGNO DI SPESA PER PIANI PERSONALIZZATI IN SOSTEGNO DELLE PERSONE CON DISABILITA' GRAVE DI CUI ALLA L.162/1998 -DGR 55/12 DEL 31.12.2017.;03-10-2018;1420;2;142;1;Spese correnti;4;Trasferimenti correnti;2;Trasferimenti correnti a Famiglie;2;Interventi assistenziali;999;Altri assegni e sussidi assistenziali;03-10-2018;
1521;1;0;"73,32";"73,32";OMESSO NOMINATIVO NEL RISPETTO DELLA NORMATIVA SULLA PROTEZIONE DATI PERSONALI; ;IMPEGNO DI SPESA PER PIANI PERSONALIZZATI IN SOSTEGNO DELLE PERSONE CON DISABILITA' GRAVE DI CUI ALLA L.162/1998 -DGR 55/12 DEL 31.12.2017.;03-10-2018;1420;2;142;1;Spese correnti;4;Trasferimenti correnti;2;Trasferimenti correnti a Famiglie;2;Interventi assistenziali;999;Altri assegni e sussidi assistenziali;03-10-2018;
1522;1;0;"150,66";"150,66";OMESSO NOMINATIVO NEL RISPETTO DELLA NORMATIVA SULLA PROTEZIONE DATI PERSONALI; ;IMPEGNO DI SPESA PER PIANI PERSONALIZZATI IN SOSTEGNO DELLE PERSONE CON DISABILITA' GRAVE DI CUI ALLA L.162/1998 -DGR 55/12 DEL 31.12.2017.;03-10-2018;1420;2;142;1;Spese correnti;4;Trasferimenti correnti;2;Trasferimenti correnti a Famiglie;2;Interventi assistenziali;999;Altri assegni e sussidi assistenziali;03-10-2018;
1523;1;0;"141,00";"141,00";OMESSO NOMINATIVO NEL RISPETTO DELLA NORMATIVA SULLA PROTEZIONE DATI PERSONALI; ;IMPEGNO DI SPESA E PRESA IN CARICO PER L.R. N. 9/2004-ART. 1.;03-10-2018;1438;0;202;1;Spese correnti;4;Trasferimenti correnti;2;Trasferimenti correnti a Famiglie;2;Interventi assistenziali;999;Altri assegni e sussidi assistenziali;03-10-2018;
1524;1;0;"77,00";"77,00";OMESSO NOMINATIVO NEL RISPETTO DELLA NORMATIVA SULLA PROTEZIONE DATI PERSONALI; ;"IMPEGNO DI SPESA PER L.R. N.9/2014, ART 1- RICONOSCIMENTO BENEFICI ANNO 2017.";03-10-2018;1438;0;140;1;Spese correnti;4;Trasferimenti correnti;2;Trasferimenti correnti a Famiglie;2;Interventi assistenziali;999;Altri assegni e sussidi assistenziali;03-10-2018;
1525;1;0;"1.400,00";"1.400,00";PRO LOCO TULA; ;"Programma di assegnazione contributi alle Associazioni locali e Comitati per l'organizzazione delle manifestazioni di carattere sociale, culturale, religioso e sportivo - Anno 2018. MADONNA DEL MONTE";04-10-2018;760;0;168;1;Spese correnti;4;Trasferimenti correnti;4;Trasferimenti correnti a Istituzioni Sociali Private;1;Trasferimenti correnti a Istituzioni Sociali Private;1;Trasferimenti correnti a Istituzioni Sociali Private;04-10-2018;
1526;1;0;"2.690,10";"2.690,10";"EDILCAMPUS S.N.C. DI CAMPUS MASSIMILIANO &amp; CAMPUS";Z2D247D21E;Fatt.n. 8/PA del 28/09/2018;04-10-2018;3368;1;197;2;Spese in conto capitale;2;Investimenti fissi lordi e acquisto di terreni;1;Beni materiali;9;Beni immobili;999;Beni immobili n.a.c.;04-10-2018;
1527;1;0;"7.560,00";"7.560,00";SINI BRUNO;ZAA251774B;Fatt.n. 6 del 01/10/2018 LAVORI DI SISTEMAZIONE SIFONI PRESSO VIA RINO CANALIS;04-10-2018;1011;0;254;1;Spese correnti;3;Acquisto di beni e servizi;2;Acquisto di servizi;9;Manutenzione ordinaria e riparazioni;8;Manutenzione ordinaria e riparazioni di beni immobili;04-10-2018;
1528;1;0;"675,00";"675,00";SINI BRUNO;ZB52517751;Fatt.n. 7 del 01/10/2018 LAVORI DI SISTEMAZIONE PRATO LASTRICATO PRESSO VIA RINO CANALIS;04-10-2018;3121;0;255;2;Spese in conto capitale;2;Investimenti fissi lordi e acquisto di terreni;1;Beni materiali;9;Beni immobili;12;Infrastrutture stradali;04-10-2018;
1529;1;0;"2.440,00";"2.440,00";PUDDU PALMIRO;Z812501223;Fatt.n. 06/PA/2018 del 01/10/2018 SERVIZIO;04-10-2018;1300;0;247;1;Spese correnti;3;Acquisto di beni e servizi;1;Acquisto di beni;2;Altri beni di consumo;999;Altri beni e materiali di consumo n.a.c.;04-10-2018;
1530;1;0;"1.750,70";"1.750,70";BBG SARDEGNA SRL;ZA22298E9D;Fatt.n. FATTPA 69_18 del 03/10/2018;04-10-2018;200;0;93;1;Spese correnti;3;Acquisto di beni e servizi;2;Acquisto di servizi;99;Altri servizi;999;Altri servizi diversi n.a.c.;04-10-2018;
1531;1;0;"186,89";"186,89";OMESSO NOMINATIVO NEL RISPETTO DELLA NORMATIVA SULLA PROTEZIONE DATI PERSONALI; ;IMPEGNO DI SPESA PER PIANI PERSONALIZZATI IN SOSTEGNO DELLE PERSONE CON DISABILITA' GRAVE DI CUI ALLA L.162/1998 -DGR 55/12 DEL 31.12.2017.;04-10-2018;1420;2;142;1;Spese correnti;4;Trasferimenti correnti;2;Trasferimenti correnti a Famiglie;2;Interventi assistenziali;999;Altri assegni e sussidi assistenziali;04-10-2018;
1532;1;0;"207,00";"207,00";OMESSO NOMINATIVO NEL RISPETTO DELLA NORMATIVA SULLA PROTEZIONE DATI PERSONALI; ;IMPEGNO DI SPESA PER PIANI PERSONALIZZATI IN SOSTEGNO DELLE PERSONE CON DISABILITA' GRAVE DI CUI ALLA L.162/1998 -DGR 55/12 DEL 31.12.2017.;04-10-2018;1420;2;142;1;Spese correnti;4;Trasferimenti correnti;2;Trasferimenti correnti a Famiglie;2;Interventi assistenziali;999;Altri assegni e sussidi assistenziali;04-10-2018;
1533;1;0;"139,08";"139,08";OMESSO NOMINATIVO NEL RISPETTO DELLA NORMATIVA SULLA PROTEZIONE DATI PERSONALI; ;IMPEGNO DI SPESA PER PIANI PERSONALIZZATI IN SOSTEGNO DELLE PERSONE CON DISABILITA' GRAVE DI CUI ALLA L.162/1998 -DGR 55/12 DEL 31.12.2017.;04-10-2018;1420;2;142;1;Spese correnti;4;Trasferimenti correnti;2;Trasferimenti correnti a Famiglie;2;Interventi assistenziali;999;Altri assegni e sussidi assistenziali;04-10-2018;
1534;1;0;"216,72";"216,72";OMESSO NOMINATIVO NEL RISPETTO DELLA NORMATIVA SULLA PROTEZIONE DATI PERSONALI; ;IMPEGNO DI SPESA PER PIANI PERSONALIZZATI IN SOSTEGNO DELLE PERSONE CON DISABILITA' GRAVE DI CUI ALLA L.162/1998 -DGR 55/12 DEL 31.12.2017.;04-10-2018;1420;2;142;1;Spese correnti;4;Trasferimenti correnti;2;Trasferimenti correnti a Famiglie;2;Interventi assistenziali;999;Altri assegni e sussidi assistenziali;04-10-2018;
1535;1;0;"262,62";"262,62";OMESSO NOMINATIVO NEL RISPETTO DELLA NORMATIVA SULLA PROTEZIONE DATI PERSONALI; ;IMPEGNO DI SPESA PER PIANI PERSONALIZZATI IN SOSTEGNO DELLE PERSONE CON DISABILITA' GRAVE DI CUI ALLA L.162/1998 -DGR 55/12 DEL 31.12.2017.;04-10-2018;1420;2;142;1;Spese correnti;4;Trasferimenti correnti;2;Trasferimenti correnti a Famiglie;2;Interventi assistenziali;999;Altri assegni e sussidi assistenziali;04-10-2018;
1536;1;0;"246,46";"246,46";OMESSO NOMINATIVO NEL RISPETTO DELLA NORMATIVA SULLA PROTEZIONE DATI PERSONALI; ;IMPEGNO DI SPESA PER PIANI PERSONALIZZATI IN SOSTEGNO DELLE PERSONE CON DISABILITA' GRAVE DI CUI ALLA L.162/1998 -DGR 55/12 DEL 31.12.2017.;04-10-2018;1420;2;142;1;Spese correnti;4;Trasferimenti correnti;2;Trasferimenti correnti a Famiglie;2;Interventi assistenziali;999;Altri assegni e sussidi assistenziali;04-10-2018;
1537;1;0;"542,75";"542,75";OMESSO NOMINATIVO NEL RISPETTO DELLA NORMATIVA SULLA PROTEZIONE DATI PERSONALI; ;IMPEGNO DI SPESA PER PIANI PERSONALIZZATI IN SOSTEGNO DELLE PERSONE CON DISABILITA' GRAVE DI CUI ALLA L.162/1998 -DGR 55/12 DEL 31.12.2017.;04-10-2018;1420;2;142;1;Spese correnti;4;Trasferimenti correnti;2;Trasferimenti correnti a Famiglie;2;Interventi assistenziali;999;Altri assegni e sussidi assistenziali;04-10-2018;
1538;1;0;"139,10";"139,10";OMESSO NOMINATIVO NEL RISPETTO DELLA NORMATIVA SULLA PROTEZIONE DATI PERSONALI; ;IMPEGNO DI SPESA PER PIANI PERSONALIZZATI IN SOSTEGNO DELLE PERSONE CON DISABILITA' GRAVE DI CUI ALLA L.162/1998 -DGR 55/12 DEL 31.12.2017.;05-10-2018;1420;2;142;1;Spese correnti;4;Trasferimenti correnti;2;Trasferimenti correnti a Famiglie;2;Interventi assistenziali;999;Altri assegni e sussidi assistenziali;05-10-2018;
1539;1;0;"217,73";"217,73";OMESSO NOMINATIVO NEL RISPETTO DELLA NORMATIVA SULLA PROTEZIONE DATI PERSONALI; ;IMPEGNO DI SPESA PER PIANI PERSONALIZZATI IN SOSTEGNO DELLE PERSONE CON DISABILITA' GRAVE DI CUI ALLA L.162/1998 -DGR 55/12 DEL 31.12.2017.;05-10-2018;1420;2;142;1;Spese correnti;4;Trasferimenti correnti;2;Trasferimenti correnti a Famiglie;2;Interventi assistenziali;999;Altri assegni e sussidi assistenziali;05-10-2018;
1540;1;0;"218,27";"218,27";TESORERIA DI ROMA SUCCURSALE 348; ;VERSAMENTO AL MINISTERO DELL'INTERNO DEI DIRITTI RELATIVI ALLE C.I.E. EMESSE NEL MESE DI SETTEMBRE 2018 - N. 13 PER LA I QUINDICINA DI SETTEMBRE;05-10-2018;290;0;261;1;Spese correnti;4;Trasferimenti correnti;1;Trasferimenti correnti a Amministrazioni Pubbliche;1;Trasferimenti correnti a Amministrazioni Centrali;1;Trasferimenti correnti a Ministeri;05-10-2018;
1541;1;0;"167,90";"167,90";TESORERIA DI ROMA SUCCURSALE 348; ;VERSAMENTO AL MINISTERO DELL'INTERNO DEI DIRITTI RELATIVI ALLE C.I.E. EMESSE NEL MESE DI SETTEMBRE 2018 - N. 10 PER LA II QUINDICINA DI SETTEMBRE;05-10-2018;290;0;261;1;Spese correnti;4;Trasferimenti correnti;1;Trasferimenti correnti a Amministrazioni Pubbliche;1;Trasferimenti correnti a Amministrazioni Centrali;1;Trasferimenti correnti a Ministeri;05-10-2018;
1542;1;0;"208,40";"208,40";OMESSO NOMINATIVO NEL RISPETTO DELLA NORMATIVA SULLA PROTEZIONE DATI PERSONALI; ;IMPEGNO DI SPESA PER PIANI PERSONALIZZATI IN SOSTEGNO DELLE PERSONE CON DISABILITA' GRAVE DI CUI ALLA L.162/1998 -DGR 55/12 DEL 31.12.2017.;09-10-2018;1420;2;142;1;Spese correnti;4;Trasferimenti correnti;2;Trasferimenti correnti a Famiglie;2;Interventi assistenziali;999;Altri assegni e sussidi assistenziali;09-10-2018;
1543;1;0;"593,56";"593,56";OMESSO NOMINATIVO NEL RISPETTO DELLA NORMATIVA SULLA PROTEZIONE DATI PERSONALI; ;IMPEGNO DI SPESA PER PIANI PERSONALIZZATI IN SOSTEGNO DELLE PERSONE CON DISABILITA' GRAVE DI CUI ALLA L.162/1998 -DGR 55/12 DEL 31.12.2017.;09-10-2018;1420;2;142;1;Spese correnti;4;Trasferimenti correnti;2;Trasferimenti correnti a Famiglie;2;Interventi assistenziali;999;Altri assegni e sussidi assistenziali;09-10-2018;
1544;1;0;"95,04";"95,04";OMESSO NOMINATIVO NEL RISPETTO DELLA NORMATIVA SULLA PROTEZIONE DATI PERSONALI; ;IMPEGNO DI SPESA PER PIANI PERSONALIZZATI IN SOSTEGNO DELLE PERSONE CON DISABILITA' GRAVE DI CUI ALLA L.162/1998 -DGR 55/12 DEL 31.12.2017.;09-10-2018;1420;2;142;1;Spese correnti;4;Trasferimenti correnti;2;Trasferimenti correnti a Famiglie;2;Interventi assistenziali;999;Altri assegni e sussidi assistenziali;09-10-2018;
1545;1;0;"400,00";"400,00";PISANU ELISABETTA; ;IMPEGNO DI SPESA PER INTERVENTO DENOMINATO BONUS BEBE'.;09-10-2018;1430;0;221;1;Spese correnti;4;Trasferimenti correnti;2;Trasferimenti correnti a Famiglie;2;Interventi assistenziali;999;Altri assegni e sussidi assistenziali;09-10-2018;
1546;1;0;"244,00";"244,00";PUDDU SERGIO;Z5A24D70D4;Fatt.n. FATTPA 4_18 del 03/10/2018;09-10-2018;3126;0;220;2;Spese in conto capitale;2;Investimenti fissi lordi e acquisto di terreni;1;Beni materiali;9;Beni immobili;14;Opere per la sistemazione del suolo;09-10-2018;
1547;1;0;"1.511,21";"1.511,21";PUDDU SERGIO;ZCE250097A;Fatt.n. FATTPA 5_18 del 03/10/2018;09-10-2018;3126;0;253;2;Spese in conto capitale;2;Investimenti fissi lordi e acquisto di terreni;1;Beni materiali;9;Beni immobili;14;Opere per la sistemazione del suolo;09-10-2018;
1548;1;0;"6.732,49";"6.732,49";MILIA ANTONIO;ZB823CA747;Fatt.n. 1/PA del 08/10/2018 Realizzazione viale cimitero DET. 185 del 04/06/2018 CIG ZB823CA747;09-10-2018;3781;0;173;2;Spese in conto capitale;2;Investimenti fissi lordi e acquisto di terreni;1;Beni materiali;9;Beni immobili;15;Cimiteri;09-10-2018;
1549;1;0;"2.720,60";"2.720,60";MILIA ANTONIO;ZAF252B555;Fatt.n. 2/PA del 08/10/2018 Completamento viale cimitero DET.  338 del 04/10/2018 CIG ZAF252B555;09-10-2018;3781;0;264;2;Spese in conto capitale;2;Investimenti fissi lordi e acquisto di terreni;1;Beni materiali;9;Beni immobili;15;Cimiteri;09-10-2018;
1550;1;0;"301,36";"301,36";L'ARCOBALENO di Muggianu Rosanna;Z7D23AECDF;Fatt.n. 478B del 04/10/2018;09-10-2018;714;0;134;1;Spese correnti;3;Acquisto di beni e servizi;1;Acquisto di beni;1;"Giornali, riviste e pubblicazioni";2;Pubblicazioni;09-10-2018;
1551;1;0;"2.840,40";"2.840,40";HALLEY SARDEGNA SRL;Z9422A628B;Fatt.n. 0001182 del 04/10/2018;09-10-2018;82;2;75;1;Spese correnti;3;Acquisto di beni e servizi;2;Acquisto di servizi;19;Servizi informatici e di telecomunicazioni;1;Gestione e manutenzione applicazioni;09-10-2018;
1552;1;0;"773,18";"773,18";VODAFONE OMNITEL N.V.;ZB6229C6FD;Fatt.n. AI18090374 del 04/10/2018 scissione pagamenti;09-10-2018;118;3;40;1;Spese correnti;3;Acquisto di beni e servizi;2;Acquisto di servizi;5;Utenze e canoni;1;Telefonia fissa;09-10-2018;
1553;1;0;"1.669,16";"1.669,16";MURGIA GIACOMO;ZCD252EC7B;Fatt.n. 3/A del 04/10/2018 LAVORI DI MANUTENZIONE MARCIAPIEDE IN VIA RINO CANALIS;09-10-2018;3121;0;259;2;Spese in conto capitale;2;Investimenti fissi lordi e acquisto di terreni;1;Beni materiali;9;Beni immobili;12;Infrastrutture stradali;09-10-2018;
1554;1;0;"14.685,81";"14.685,81";MUNTONI MARIO;Z3824D6B96;Fatt.n. FATTPA 4_18 del 04/10/2018;09-10-2018;3368;1;217;2;Spese in conto capitale;2;Investimenti fissi lordi e acquisto di terreni;1;Beni materiali;9;Beni immobili;999;Beni immobili n.a.c.;09-10-2018;
1555;1;0;"3.549,07";"3.549,07";ORVEI COOPERATIVA SOCIALE ONLUS;Z3E2138775;"Fatt.n. 18/PA del 08/10/2018 LAVORI DI MANUTENZIONE VERDE, CIMITERO, PULIZIA STRADE, PULIZIA SORGENTI, MANUTENZIONE IMPIANTI DI IRRIGAZIONE - CIG Z3E2138775 DET. N.431 DEL 29/12/2017 SETTEMBRE 2018";09-10-2018;1302;0;9;1;Spese correnti;3;Acquisto di beni e servizi;2;Acquisto di servizi;13;Servizi ausiliari per il funzionamento dell'ente;999;Altri servizi ausiliari n.a.c.;09-10-2018;
1556;1;0;"5.000,00";"5.000,00";Associazione Culturale Time in Jazz; ;Organizzazione Rassegna estiva denominata E-STATE A TULA 2018;09-10-2018;746;0;184;1;Spese correnti;3;Acquisto di beni e servizi;2;Acquisto di servizi;2;"Organizzazione eventi, pubblicita` e servizi per trasferta";5;Organizzazione e partecipazione a manifestazioni e convegni;09-10-2018;
1557;1;0;"1.280,92";"1.280,92";OMESSO NOMINATIVO NEL RISPETTO DELLA NORMATIVA SULLA PROTEZIONE DATI PERSONALI; ;IMPEGNO DI SPESA E PRESA IN CARICO L.R. 9/2004 ART. 1-ANNO 2018.;09-10-2018;1438;0;260;1;Spese correnti;4;Trasferimenti correnti;2;Trasferimenti correnti a Famiglie;2;Interventi assistenziali;999;Altri assegni e sussidi assistenziali;09-10-2018;
1558;1;0;"632,00";"632,00";BECCIU SARA;Z7D23AECDF;Fatt.n. 2/PA del 08/10/2018 DETERMINA N 172 DEL 22/05/2018 N. PARTICOLARE NR. 21 CIG Z7D23AECDF;09-10-2018;714;0;134;1;Spese correnti;3;Acquisto di beni e servizi;1;Acquisto di beni;1;"Giornali, riviste e pubblicazioni";2;Pubblicazioni;09-10-2018;
1559;1;0;"1.161,60";"1.161,60";COOP. NUOVE IDEE;Z52230BA0F;Fatt.n. FATTPA 103_18 del 08/10/2018;09-10-2018;715;0;87;1;Spese correnti;3;Acquisto di beni e servizi;2;Acquisto di servizi;11;Prestazioni professionali e specialistiche;999;Altre prestazioni professionali e specialistiche n.a.c.;09-10-2018;
1560;1;0;"2.440,00";"2.440,00";A.I.T. SEGNALETICA SNC;Z272350737;SALDO Fatt.n. FatPAM 31  del 03/10/2018 1 sal lavori di segnaletica orizzontale;10-10-2018;1011;0;249;1;Spese correnti;3;Acquisto di beni e servizi;2;Acquisto di servizi;9;Manutenzione ordinaria e riparazioni;8;Manutenzione ordinaria e riparazioni di beni immobili;10-10-2018;
1561;1;0;"825,46";"825,46";A.I.T. SEGNALETICA SNC;Z272350737;Fatt.n. FatPAM 32 del 03/10/2018 2 SAL LAVORI SEGNALETICA "JAGA";10-10-2018;3126;0;250;2;Spese in conto capitale;2;Investimenti fissi lordi e acquisto di terreni;1;Beni materiali;9;Beni immobili;14;Opere per la sistemazione del suolo;10-10-2018;
1562;1;0;"779,39";"779,39";COOP. NUOVE IDEE;Z782197FF4;Fatt.n. FATTPA 105_18 del 08/10/2018;10-10-2018;1413;0;32;1;Spese correnti;3;Acquisto di beni e servizi;2;Acquisto di servizi;99;Altri servizi;999;Altri servizi diversi n.a.c.;10-10-2018;
1563;1;0;"7.706,09";"7.706,09";COOP. NUOVE IDEE;Z782197FF4;Fatt.n. FATTPA 104_18 del 08/10/2018;10-10-2018;1420;0;141;1;Spese correnti;3;Acquisto di beni e servizi;2;Acquisto di servizi;15;Contratti di servizio pubblico;9;Contratti di servizio di assistenza sociale domiciliare;10-10-2018;
1564;1;0;"954,57";"954,57";OMESSO NOMINATIVO NEL RISPETTO DELLA NORMATIVA SULLA PROTEZIONE DATI PERSONALI; ;IMPEGNO DI SPESA PER PIANI PERSONALIZZATI IN SOSTEGNO DELLE PERSONE CON DISABILITA' GRAVE DI CUI ALLA L.162/1998 -DGR 55/12 DEL 31.12.2017.;10-10-2018;1420;2;142;1;Spese correnti;4;Trasferimenti correnti;2;Trasferimenti correnti a Famiglie;2;Interventi assistenziali;999;Altri assegni e sussidi assistenziali;10-10-2018;
1565;1;0;"212,00";"212,00";OMESSO NOMINATIVO NEL RISPETTO DELLA NORMATIVA SULLA PROTEZIONE DATI PERSONALI; ;IMPEGNO DI SPESA PER PIANI PERSONALIZZATI IN SOSTEGNO DELLE PERSONE CON DISABILITA' GRAVE DI CUI ALLA L.162/1998 -DGR 55/12 DEL 31.12.2017.;10-10-2018;1420;2;142;1;Spese correnti;4;Trasferimenti correnti;2;Trasferimenti correnti a Famiglie;2;Interventi assistenziali;999;Altri assegni e sussidi assistenziali;10-10-2018;
1566;1;0;"283,41";"283,41";OMESSO NOMINATIVO NEL RISPETTO DELLA NORMATIVA SULLA PROTEZIONE DATI PERSONALI; ;IMPEGNO DI SPESA PER PIANI PERSONALIZZATI IN SOSTEGNO DELLE PERSONE CON DISABILITA' GRAVE DI CUI ALLA L.162/1998 -DGR 55/12 DEL 31.12.2017.;10-10-2018;1420;2;142;1;Spese correnti;4;Trasferimenti correnti;2;Trasferimenti correnti a Famiglie;2;Interventi assistenziali;999;Altri assegni e sussidi assistenziali;10-10-2018;
1567;1;0;"301,16";"301,16";OMESSO NOMINATIVO NEL RISPETTO DELLA NORMATIVA SULLA PROTEZIONE DATI PERSONALI; ;IMPEGNO DI SPESA PER PIANI PERSONALIZZATI IN SOSTEGNO DELLE PERSONE CON DISABILITA' GRAVE DI CUI ALLA L.162/1998 -DGR 55/12 DEL 31.12.2017.;10-10-2018;1420;2;142;1;Spese correnti;4;Trasferimenti correnti;2;Trasferimenti correnti a Famiglie;2;Interventi assistenziali;999;Altri assegni e sussidi assistenziali;10-10-2018;
1568;1;0;"300,00";"300,00";LANGIU ROBERTA; ;IMPEGNO DI SPESA PER INTERVENTO DENOMINATO BONUS BEBE'.;10-10-2018;1430;0;221;1;Spese correnti;4;Trasferimenti correnti;2;Trasferimenti correnti a Famiglie;2;Interventi assistenziali;999;Altri assegni e sussidi assistenziali;10-10-2018;
1569;1;0;"300,00";"300,00";SABA SALVATORICA; ;IMPEGNO DI SPESA PER INTERVENTO DENOMINATO BONUS BEBE'.;10-10-2018;1430;0;221;1;Spese correnti;4;Trasferimenti correnti;2;Trasferimenti correnti a Famiglie;2;Interventi assistenziali;999;Altri assegni e sussidi assistenziali;10-10-2018;
1570;1;0;"604,00";"604,00";OMESSO NOMINATIVO NEL RISPETTO DELLA NORMATIVA SULLA PROTEZIONE DATI PERSONALI; ;IMPEGNO DI SPESA PER L.R. 11/185-PROVVIDENZE A FAVORE DI NEFROPATICI-PRESA IN CARICO ANNO 2018.;10-10-2018;1438;0;19;1;Spese correnti;4;Trasferimenti correnti;2;Trasferimenti correnti a Famiglie;2;Interventi assistenziali;999;Altri assegni e sussidi assistenziali;10-10-2018;
1571;1;0;"604,00";"604,00";OMESSO NOMINATIVO NEL RISPETTO DELLA NORMATIVA SULLA PROTEZIONE DATI PERSONALI; ;IMPEGNO DI SPESA PER L.R. 11/185-PROVVIDENZE A FAVORE DI NEFROPATICI-PRESA IN CARICO ANNO 2018.;10-10-2018;1438;0;19;1;Spese correnti;4;Trasferimenti correnti;2;Trasferimenti correnti a Famiglie;2;Interventi assistenziali;999;Altri assegni e sussidi assistenziali;10-10-2018;
1572;1;0;"557,52";"557,52";OMESSO NOMINATIVO NEL RISPETTO DELLA NORMATIVA SULLA PROTEZIONE DATI PERSONALI; ;IMPEGNO DI SPESA PER L.R. 11/185-PROVVIDENZE A FAVORE DI NEFROPATICI-PRESA IN CARICO ANNO 2018.;10-10-2018;1438;0;19;1;Spese correnti;4;Trasferimenti correnti;2;Trasferimenti correnti a Famiglie;2;Interventi assistenziali;999;Altri assegni e sussidi assistenziali;10-10-2018;
1574;1;0;"3.451,49";"3.451,49";UNALI ANTONIA; ;Approvazione Bando Contributi a privati per interventi volti al risparmio energetico. annualita 2018;10-10-2018;1820;0;99;1;Spese correnti;4;Trasferimenti correnti;2;Trasferimenti correnti a Famiglie;5;Altri trasferimenti a famiglie;999;Altri trasferimenti a famiglie n.a.c.;10-10-2018;
1576;1;0;"399,41";"399,41";OMESSO NOMINATIVO NEL RISPETTO DELLA NORMATIVA SULLA PROTEZIONE DATI PERSONALI; ;IMPEGNO DI SPESA PER PIANI PERSONALIZZATI IN SOSTEGNO DELLE PERSONE CON DISABILITA' GRAVE DI CUI ALLA L.162/1998 -DGR 55/12 DEL 31.12.2017.;11-10-2018;1420;2;142;1;Spese correnti;4;Trasferimenti correnti;2;Trasferimenti correnti a Famiglie;2;Interventi assistenziali;999;Altri assegni e sussidi assistenziali;11-10-2018;
1577;1;0;"157,92";"157,92";OMESSO NOMINATIVO NEL RISPETTO DELLA NORMATIVA SULLA PROTEZIONE DATI PERSONALI; ;IMPEGNO DI SPESA PER PIANI PERSONALIZZATI IN SOSTEGNO DELLE PERSONE CON DISABILITA' GRAVE DI CUI ALLA L.162/1998 -DGR 55/12 DEL 31.12.2017.;11-10-2018;1420;2;142;1;Spese correnti;4;Trasferimenti correnti;2;Trasferimenti correnti a Famiglie;2;Interventi assistenziali;999;Altri assegni e sussidi assistenziali;11-10-2018;
1578;1;0;"616,39";"616,39";OMESSO NOMINATIVO NEL RISPETTO DELLA NORMATIVA SULLA PROTEZIONE DATI PERSONALI; ;IMPEGNO DI SPESA PER PIANI PERSONALIZZATI IN SOSTEGNO DELLE PERSONE CON DISABILITA' GRAVE DI CUI ALLA L.162/1998 -DGR 55/12 DEL 31.12.2017.;11-10-2018;1420;2;142;1;Spese correnti;4;Trasferimenti correnti;2;Trasferimenti correnti a Famiglie;2;Interventi assistenziali;999;Altri assegni e sussidi assistenziali;11-10-2018;
1579;1;0;"374,40";"374,40";OMESSO NOMINATIVO NEL RISPETTO DELLA NORMATIVA SULLA PROTEZIONE DATI PERSONALI; ;IMPEGNO DI SPESA PER PIANI PERSONALIZZATI IN SOSTEGNO DELLE PERSONE CON DISABILITA' GRAVE DI CUI ALLA L.162/1998 -DGR 55/12 DEL 31.12.2017.;11-10-2018;1420;2;142;1;Spese correnti;4;Trasferimenti correnti;2;Trasferimenti correnti a Famiglie;2;Interventi assistenziali;999;Altri assegni e sussidi assistenziali;11-10-2018;
1580;1;0;"514,80";"514,80";OMESSO NOMINATIVO NEL RISPETTO DELLA NORMATIVA SULLA PROTEZIONE DATI PERSONALI; ;IMPEGNO DI SPESA PER PIANI PERSONALIZZATI IN SOSTEGNO DELLE PERSONE CON DISABILITA' GRAVE DI CUI ALLA L.162/1998 -DGR 55/12 DEL 31.12.2017.;11-10-2018;1420;2;142;1;Spese correnti;4;Trasferimenti correnti;2;Trasferimenti correnti a Famiglie;2;Interventi assistenziali;999;Altri assegni e sussidi assistenziali;11-10-2018;
1581;1;0;"1.038,21";"1.038,21";OMESSO NOMINATIVO NEL RISPETTO DELLA NORMATIVA SULLA PROTEZIONE DATI PERSONALI; ;IMPEGNO DI SPESA PER PIANI PERSONALIZZATI IN SOSTEGNO DELLE PERSONE CON DISABILITA' GRAVE DI CUI ALLA L.162/1998 -DGR 55/12 DEL 31.12.2017.;11-10-2018;1420;2;142;1;Spese correnti;4;Trasferimenti correnti;2;Trasferimenti correnti a Famiglie;2;Interventi assistenziali;999;Altri assegni e sussidi assistenziali;11-10-2018;
1582;1;0;"1.086,15";"1.086,15";MUNTONI MARIO;z3824d6b96;Fatt.n. FATTPA 9_18 del 10/10/2018;12-10-2018;3368;1;263;2;Spese in conto capitale;2;Investimenti fissi lordi e acquisto di terreni;1;Beni materiali;9;Beni immobili;999;Beni immobili n.a.c.;12-10-2018;
1583;1;0;"834,99";"834,99";MUNTONI MARIO;XB8192E4FB;Fatt.n. FATTPA 5_18 del 10/10/2018;12-10-2018;3126;0;111;2;Spese in conto capitale;2;Investimenti fissi lordi e acquisto di terreni;1;Beni materiali;9;Beni immobili;14;Opere per la sistemazione del suolo;12-10-2018;
1584;1;0;"830,76";"830,76";MUNTONI MARIO;ZF7252FCB4;Fatt.n. FATTPA 8_18 del 10/10/2018;12-10-2018;3121;0;262;2;Spese in conto capitale;2;Investimenti fissi lordi e acquisto di terreni;1;Beni materiali;9;Beni immobili;12;Infrastrutture stradali;12-10-2018;
1585;1;0;"1.914,25";"1.914,25";MUNTONI MARIO;ZF7252FCB4;Fatt.n. FATTPA 7_18 del 10/10/2018;12-10-2018;3127;0;237;2;Spese in conto capitale;2;Investimenti fissi lordi e acquisto di terreni;1;Beni materiali;9;Beni immobili;14;Opere per la sistemazione del suolo;12-10-2018;
1586;1;0;"449,37";"449,37";MUNTONI MARIO;7104167012;Fatt.n. FATTPA 6_18 del 10/10/2018;12-10-2018;3368;0;248;2;Spese in conto capitale;2;Investimenti fissi lordi e acquisto di terreni;1;Beni materiali;9;Beni immobili;999;Beni immobili n.a.c.;12-10-2018;
1587;1;0;"587,84";"587,84";MURGIA GIACOMO;ZCD252EC7B;Fatt.n. 4/A del 10/10/2018 LAVORI DI REALIZZAZIONE RAMPA DISABILI;12-10-2018;3140;0;366;2;Spese in conto capitale;2;Investimenti fissi lordi e acquisto di terreni;1;Beni materiali;9;Beni immobili;999;Beni immobili n.a.c.;12-10-2018;
1588;1;0;"1.458,36";"1.458,36";SERVIZIO ELETTRICO NAZIONALE - SERVIZIO DI MAGGIOR TUTE;Z2F225B795;Fatt.n. 907151111749418 del 10/10/2018;12-10-2018;118;4;25;1;Spese correnti;3;Acquisto di beni e servizi;2;Acquisto di servizi;5;Utenze e canoni;4;Energia elettrica;12-10-2018;
1589;1;0;"66,86";"66,86";SERVIZIO ELETTRICO NAZIONALE - SERVIZIO DI MAGGIOR TUTE;XA2192E4EF;Fatt.n. 907150481720012 del 10/10/2018;12-10-2018;118;4;82;1;Spese correnti;3;Acquisto di beni e servizi;2;Acquisto di servizi;5;Utenze e canoni;4;Energia elettrica;12-10-2018;
1590;1;0;"175,95";"175,95";SERVIZIO ELETTRICO NAZIONALE - SERVIZIO DI MAGGIOR TUTE;ZA5229C654;Fatt.n. 907151471763438 del 10/10/2018;12-10-2018;716;4;38;1;Spese correnti;3;Acquisto di beni e servizi;2;Acquisto di servizi;5;Utenze e canoni;4;Energia elettrica;12-10-2018;
